Transaction Date,Local Authority Department,BENEFICIARY,Purpose,Amount,Non Recoverable,Merchant Category
01-02-2024,Marketing,Juniper Ventures Ltd,Events,5610,0,COMMERCIAL SUPPLIER
01-02-2024,Marketing,Juniper Ventures Ltd,Cleaning Services,7002,0,COMMERCIAL SUPPLIER
01-02-2024,Marketing,Anahata Trading,Consultancy Fees,4500,0,COMMERCIAL SUPPLIER
01-02-2024,Adults & Health,Vibrance,Daycare - Private Contractors Payment,874.2,0,VOLUNTARY ORGANISATION
01-02-2024,Adults & Health,Vibrance,Daycare - Private Contractors Payment,874.2,0,VOLUNTARY ORGANISATION
01-02-2024,Adults & Health,Vibrance,Daycare - Private Contractors Payment,874.2,0,VOLUNTARY ORGANISATION
01-02-2024,Adults & Health,Vibrance,Daycare - Private Contractors Payment,374.52,0,VOLUNTARY ORGANISATION
01-02-2024,Adults & Health,Uniting Friends,Daycare - Private Contractors Payment,360.25,0,VENDOR
01-02-2024,Adults & Health,Uniting Friends,Daycare - Private Contractors Payment,360.25,0,VENDOR
01-02-2024,Adults & Health,Uniting Friends,Daycare - Private Contractors Payment,288.2,0,VENDOR
01-02-2024,Environment and Sustainable Transport,Completely Kent Limited T/a Completely Hydraulic,"Purchase - Equipment, Furniture And Materials",256.25,0,COMMERCIAL SUPPLIER
01-02-2024,Marketing,NewLife Collective Ltd,Open Spaces Works,219.5,0,COMMERCIAL SUPPLIER
01-02-2024,Marketing,Born Everywhere Made in Newham,Arts And Leisure Costs,8312.5,0,VOLUNTARY ORGANISATION
01-02-2024,Housing Revenue Account,Chiltern Costs Consultants,Legal Fees,630,0,NON COMMERCIAL SUPPLIER
01-02-2024,Resources,Law Morgan Ltd,Agency Staff,3288.8,0,COMMERCIAL SUPPLIER
01-02-2024,Housing Revenue Account,MJV Solicitors,Legal Fees,5000,0,NON COMMERCIAL SUPPLIER
01-02-2024,Inclusive Economy & Housing,Potter Raper Ltd,Consultancy Fees,3750,0,COMMERCIAL SUPPLIER
01-02-2024,Adults & Health,Supply Chain Coordination Ltd (SCCL),Specialist Equipment For Service Provision,418.59,0,NHS BODIES
01-02-2024,Housing Revenue Account,Daisy Corporate Services Trading Ltd,Land Line Telephone Costs,509.78,0,COMMERCIAL SUPPLIER
01-02-2024,Environment and Sustainable Transport,Greener Solutions,Highway Services,875,0,VENDOR
01-02-2024,Environment and Sustainable Transport,Greener Solutions,Highway Services,115,0,VENDOR
01-02-2024,Environment and Sustainable Transport,Greener Solutions,Highway Services,660,0,VENDOR
01-02-2024,Environment and Sustainable Transport,Greener Solutions,Highway Services,212,0,VENDOR
01-02-2024,Adults & Health,St John Ambulance,Professional Services - General,3960,0,VENDOR
01-02-2024,Adults & Health,Care4Health Ltd,Occupational Health,585,0,
01-02-2024,Adults & Health,Care4Health Ltd,Occupational Health,250,0,
01-02-2024,Adults & Health,Care4Health Ltd,Occupational Health,500,0,
01-02-2024,Adults & Health,Care4Health Ltd,Occupational Health,1000,0,
01-02-2024,Environment and Sustainable Transport,O'Hara Bros Surfacing Ltd,"Maintenance - Equipment, Furniture And Materials",8936.27,0,CIS
01-02-2024,Inclusive Economy & Housing,Personal Information - Redacted,Licence And Permit Income,750,0,INDIVIDUALS
01-02-2024,RMS,A M Forktrucks Ltd,Purchase Of Vehicles Related Costs,810.33,0,COMMERCIAL SUPPLIER
01-02-2024,Inclusive Economy & Housing,Gradko International Ltd,"Purchase - Equipment, Furniture And Materials",980.4,0,COMMERCIAL SUPPLIER
01-02-2024,RMS,A M Forktrucks Ltd,Purchase Of Vehicles Related Costs,433.33,0,COMMERCIAL SUPPLIER
01-02-2024,Housing Revenue Account,RGE Services Ltd,Cyclical/Planned Maintenance - Mechanical And Electrical,333.3,0,CIS
01-02-2024,Resources,London and South East Electrical Ltd,"Maintenance - Equipment, Furniture And Materials",390,0,COMMERCIAL SUPPLIER
01-02-2024,Resources,London and South East Electrical Ltd,"Maintenance - Equipment, Furniture And Materials",630,0,COMMERCIAL SUPPLIER
01-02-2024,Inclusive Economy & Housing,Green Birds Construction,"Maintenance - Equipment, Furniture And Materials",1019.64,0,COMMERCIAL SUPPLIER
01-02-2024,Inclusive Economy & Housing,Green Birds Construction,"Maintenance - Equipment, Furniture And Materials",900,0,COMMERCIAL SUPPLIER
01-02-2024,RMS,Beacon Scaffolding Ltd,Private Contractors Payment - Other,1314.56,0,CIS
01-02-2024,RMS,Beacon Scaffolding Ltd,Private Contractors Payment - Other,619.2,0,CIS
01-02-2024,RMS,Beacon Scaffolding Ltd,Private Contractors Payment - Other,743.04,0,CIS
01-02-2024,RMS,Beacon Scaffolding Ltd,Private Contractors Payment - Other,1114.56,0,CIS
01-02-2024,RMS,Beacon Scaffolding Ltd,Private Contractors Payment - Other,1238.4,0,CIS
01-02-2024,RMS,Beacon Scaffolding Ltd,Private Contractors Payment - Other,835.92,0,CIS
01-02-2024,RMS,Beacon Scaffolding Ltd,Private Contractors Payment - Other,1294.56,0,CIS
01-02-2024,RMS,Beacon Scaffolding Ltd,Private Contractors Payment - Other,1021.68,0,CIS
01-02-2024,RMS,Beacon Scaffolding Ltd,Private Contractors Payment - Other,619.2,0,CIS
01-02-2024,RMS,Beacon Scaffolding Ltd,Private Contractors Payment - Other,928.8,0,CIS
01-02-2024,RMS,Beacon Scaffolding Ltd,Private Contractors Payment - Other,743.04,0,CIS
01-02-2024,Adults & Health,Headway East London,Daycare - Private Contractors Payment,218.88,0,COMMERCIAL SUPPLIER
01-02-2024,Adults & Health,Headway East London,Payments To Voluntary Sector,113.4,0,COMMERCIAL SUPPLIER
01-02-2024,Adults & Health,Headway East London,Payments To Voluntary Sector,113.4,0,COMMERCIAL SUPPLIER
01-02-2024,Adults & Health,Headway East London,Daycare - Private Contractors Payment,218.88,0,COMMERCIAL SUPPLIER
01-02-2024,Adults & Health,Headway East London,Daycare - Private Contractors Payment,218.88,0,COMMERCIAL SUPPLIER
01-02-2024,Adults & Health,Headway East London,Payments To Voluntary Sector,113.4,0,COMMERCIAL SUPPLIER
01-02-2024,Adults & Health,Headway East London,Daycare - Private Contractors Payment,228.08,0,COMMERCIAL SUPPLIER
01-02-2024,Adults & Health,Headway East London,Payments To Voluntary Sector,113.4,0,COMMERCIAL SUPPLIER
01-02-2024,Adults & Health,Headway East London,Daycare - Private Contractors Payment,109.44,0,COMMERCIAL SUPPLIER
01-02-2024,Adults & Health,Headway East London,Daycare - Private Contractors Payment,109.44,0,COMMERCIAL SUPPLIER
01-02-2024,Adults & Health,Headway East London,Daycare - Private Contractors Payment,109.44,0,COMMERCIAL SUPPLIER
01-02-2024,Adults & Health,Headway East London,Daycare - Private Contractors Payment,109.44,0,COMMERCIAL SUPPLIER
01-02-2024,Adults & Health,Headway East London,Daycare - Private Contractors Payment,109.44,0,COMMERCIAL SUPPLIER
01-02-2024,Adults & Health,Headway East London,Daycare - Private Contractors Payment,109.44,0,COMMERCIAL SUPPLIER
01-02-2024,Adults & Health,Headway East London,Daycare - Private Contractors Payment,109.44,0,COMMERCIAL SUPPLIER
01-02-2024,Adults & Health,Headway East London,Daycare - Private Contractors Payment,109.44,0,COMMERCIAL SUPPLIER
01-02-2024,Adults & Health,Headway East London,Daycare - Private Contractors Payment,218.88,0,COMMERCIAL SUPPLIER
01-02-2024,Adults & Health,Headway East London,Daycare - Private Contractors Payment,218.88,0,COMMERCIAL SUPPLIER
01-02-2024,Adults & Health,Headway East London,Daycare - Private Contractors Payment,218.88,0,COMMERCIAL SUPPLIER
01-02-2024,Adults & Health,Headway East London,Daycare - Private Contractors Payment,392.88,0,COMMERCIAL SUPPLIER
01-02-2024,Adults & Health,Headway East London,Daycare - Private Contractors Payment,218.88,0,COMMERCIAL SUPPLIER
01-02-2024,Adults & Health,Headway East London,Daycare - Private Contractors Payment,218.88,0,COMMERCIAL SUPPLIER
01-02-2024,Adults & Health,Headway East London,Daycare - Private Contractors Payment,218.88,0,COMMERCIAL SUPPLIER
01-02-2024,Adults & Health,Headway East London,Daycare - Private Contractors Payment,218.88,0,COMMERCIAL SUPPLIER
01-02-2024,Adults & Health,Headway East London,Daycare - Private Contractors Payment,91,0,COMMERCIAL SUPPLIER
01-02-2024,Adults & Health,Headway East London,Daycare - Private Contractors Payment,91,0,COMMERCIAL SUPPLIER
01-02-2024,Adults & Health,Headway East London,Daycare - Private Contractors Payment,91,0,COMMERCIAL SUPPLIER
01-02-2024,Environment and Sustainable Transport,Jepson & Co Ltd,Highway Services,219.45,0,VENDOR
01-02-2024,Environment and Sustainable Transport,Jepson & Co Ltd,Highway Services,44.75,0,VENDOR
01-02-2024,Environment and Sustainable Transport,Jepson & Co Ltd,Highway Services,44.75,0,VENDOR
01-02-2024,oneSource - Non Shared,CCS Media Limited.,Ict Hardware,8835.45,0,COMMERCIAL SUPPLIER
01-02-2024,oneSource - Non Shared,CCS Media Limited.,Ict Hardware,707.59,0,COMMERCIAL SUPPLIER
01-02-2024,RMS,Travis Perkins Trading Company Ltd,Building Alterations And Materials,1111.8,0,COMMERCIAL SUPPLIER
01-02-2024,RMS,Travis Perkins Trading Company Ltd,Building Alterations And Materials,641.2,0,COMMERCIAL SUPPLIER
01-02-2024,RMS,Travis Perkins Trading Company Ltd,Building Alterations And Materials,193,0,COMMERCIAL SUPPLIER
01-02-2024,RMS,Travis Perkins Trading Company Ltd,Building Alterations And Materials,153.78,0,COMMERCIAL SUPPLIER
01-02-2024,RMS,Travis Perkins Trading Company Ltd,Building Alterations And Materials,236.9,0,COMMERCIAL SUPPLIER
01-02-2024,RMS,Travis Perkins Trading Company Ltd,Building Alterations And Materials,112.05,0,COMMERCIAL SUPPLIER
01-02-2024,RMS,Travis Perkins Trading Company Ltd,Building Alterations And Materials,157.5,0,COMMERCIAL SUPPLIER
01-02-2024,RMS,Travis Perkins Trading Company Ltd,Building Alterations And Materials,167,0,COMMERCIAL SUPPLIER
01-02-2024,RMS,Travis Perkins Trading Company Ltd,Building Alterations And Materials,171.2,0,COMMERCIAL SUPPLIER
01-02-2024,RMS,Travis Perkins Trading Company Ltd,Building Alterations And Materials,216,0,COMMERCIAL SUPPLIER
01-02-2024,RMS,Travis Perkins Trading Company Ltd,Building Alterations And Materials,371.28,0,COMMERCIAL SUPPLIER
01-02-2024,RMS,Travis Perkins Trading Company Ltd,Building Alterations And Materials,285.6,0,COMMERCIAL SUPPLIER
01-02-2024,RMS,Travis Perkins Trading Company Ltd,Building Alterations And Materials,456,0,COMMERCIAL SUPPLIER
01-02-2024,RMS,Travis Perkins Trading Company Ltd,Building Alterations And Materials,598.8,0,COMMERCIAL SUPPLIER
01-02-2024,RMS,Travis Perkins Trading Company Ltd,Building Alterations And Materials,4736.46,0,COMMERCIAL SUPPLIER
01-02-2024,RMS,Travis Perkins Trading Company Ltd,Building Alterations And Materials,536,0,COMMERCIAL SUPPLIER
01-02-2024,RMS,Travis Perkins Trading Company Ltd,Building Alterations And Materials,1438.8,0,COMMERCIAL SUPPLIER
01-02-2024,RMS,Travis Perkins Trading Company Ltd,Building Alterations And Materials,314,0,COMMERCIAL SUPPLIER
01-02-2024,RMS,Travis Perkins Trading Company Ltd,Building Alterations And Materials,367.89,0,COMMERCIAL SUPPLIER
01-02-2024,RMS,Travis Perkins Trading Company Ltd,Building Alterations And Materials,139.65,0,COMMERCIAL SUPPLIER
01-02-2024,RMS,Travis Perkins Trading Company Ltd,Building Alterations And Materials,291.96,0,COMMERCIAL SUPPLIER
01-02-2024,RMS,Travis Perkins Trading Company Ltd,Building Alterations And Materials,232.96,0,COMMERCIAL SUPPLIER
01-02-2024,RMS,Travis Perkins Trading Company Ltd,Building Alterations And Materials,4401.5,0,COMMERCIAL SUPPLIER
01-02-2024,RMS,Travis Perkins Trading Company Ltd,Building Alterations And Materials,1870.5,0,COMMERCIAL SUPPLIER
01-02-2024,RMS,Travis Perkins Trading Company Ltd,Building Alterations And Materials,899,0,COMMERCIAL SUPPLIER
01-02-2024,RMS,Travis Perkins Trading Company Ltd,Building Alterations And Materials,493.8,0,COMMERCIAL SUPPLIER
01-02-2024,RMS,Travis Perkins Trading Company Ltd,Building Alterations And Materials,1597.6,0,COMMERCIAL SUPPLIER
01-02-2024,RMS,Travis Perkins Trading Company Ltd,Building Alterations And Materials,3409.04,0,COMMERCIAL SUPPLIER
01-02-2024,RMS,Travis Perkins Trading Company Ltd,Building Alterations And Materials,4122,0,COMMERCIAL SUPPLIER
01-02-2024,RMS,Travis Perkins Trading Company Ltd,Building Alterations And Materials,2650,0,COMMERCIAL SUPPLIER
01-02-2024,RMS,Travis Perkins Trading Company Ltd,Building Alterations And Materials,890.32,0,COMMERCIAL SUPPLIER
01-02-2024,RMS,Travis Perkins Trading Company Ltd,Building Alterations And Materials,2478.6,0,COMMERCIAL SUPPLIER
01-02-2024,RMS,Travis Perkins Trading Company Ltd,Building Alterations And Materials,293.06,0,COMMERCIAL SUPPLIER
01-02-2024,RMS,Travis Perkins Trading Company Ltd,Building Alterations And Materials,266.13,0,COMMERCIAL SUPPLIER
01-02-2024,Children and Young People,L M Installations Ltd,"Maintenance - Equipment, Furniture And Materials",227.07,0,CIS
01-02-2024,Adults & Health,The Forklift Company,Vehicle Hire,476.66,0,COMMERCIAL SUPPLIER
01-02-2024,Housing Revenue Account,Swan Housing Group,Professional Services - General,865412.03,0,VENDOR
01-02-2024,Children and Young People,Pulse Healthcare Ltd,Additional Placements - Third Party,457.44,0,COMMERCIAL SUPPLIER
01-02-2024,Children and Young People,Pulse Healthcare Ltd,Additional Placements - Third Party,914.88,0,COMMERCIAL SUPPLIER
01-02-2024,Environment and Sustainable Transport,Geo. Browns Implements Ltd,Building Alterations And Materials,630,0,VENDOR
01-02-2024,Environment and Sustainable Transport,Car Hire Day of Swansea Ltd t/a Days Rental,"Purchase - Equipment, Furniture And Materials",17100,0,COMMERCIAL SUPPLIER
01-02-2024,Adults & Health,Sayers (Car Hire),Payments To Voluntary Sector,80,0,VENDOR
01-02-2024,Adults & Health,Sayers (Car Hire),Payments To Voluntary Sector,80,0,VENDOR
01-02-2024,Adults & Health,Sayers (Car Hire),Payments To Voluntary Sector,120,0,VENDOR
01-02-2024,Adults & Health,Sayers (Car Hire),Payments To Voluntary Sector,120,0,VENDOR
01-02-2024,Environment and Sustainable Transport,Willow Pumps Limited,Waste Disposal Costs,570.25,0,COMMERCIAL SUPPLIER
01-02-2024,Environment and Sustainable Transport,Willow Pumps Limited,Waste Disposal Costs,570.25,0,COMMERCIAL SUPPLIER
01-02-2024,Environment and Sustainable Transport,Willow Pumps Limited,Waste Disposal Costs,570.25,0,COMMERCIAL SUPPLIER
01-02-2024,Environment and Sustainable Transport,Willow Pumps Limited,Waste Disposal Costs,570.25,0,COMMERCIAL SUPPLIER
01-02-2024,Environment and Sustainable Transport,Willow Pumps Limited,Waste Disposal Costs,570.25,0,COMMERCIAL SUPPLIER
01-02-2024,Environment and Sustainable Transport,Portakabin Ltd,Premises Hire - Facilities,2373.33,0,COMMERCIAL SUPPLIER
01-02-2024,Resources,Newham Learning Partnership (Project Co) Limited,"Maintenance - Equipment, Furniture And Materials",343241.99,0,VENDOR
01-02-2024,Resources,Newham Learning Partnership (Project Co) Limited,"Maintenance - Equipment, Furniture And Materials",425901.45,0,VENDOR
01-02-2024,Inclusive Economy & Housing,Moore's (Fencing & Building services Ltd,"Maintenance - Equipment, Furniture And Materials",6054.29,0,COMMERCIAL SUPPLIER
01-02-2024,Environment and Sustainable Transport,Brady Corp Ltd t/a Safetyshop,Health And Safety Works,1411.39,0,COMMERCIAL SUPPLIER
01-02-2024,RMS,British Standards Institution,Building Alterations And Materials,279,0,COMMERCIAL SUPPLIER
01-02-2024,Children and Young People,Association of Educational Psychologists (AEP),"Books, Publications And Resources",960,0,COMMERCIAL SUPPLIER
01-02-2024,Environment and Sustainable Transport,Worldline IT Services UK Ltd Re Fuel Genie,Transport Fuel,859.2,0,COMMERCIAL SUPPLIER
01-02-2024,Adults & Health,Perfect Community Care,Daycare - Private Contractors Payment,168.48,0,COMMERCIAL SUPPLIER
01-02-2024,Adults & Health,Perfect Community Care,Payments To Voluntary Sector,18.72,0,COMMERCIAL SUPPLIER
01-02-2024,Adults & Health,Perfect Community Care,Daycare - Private Contractors Payment,168.48,0,COMMERCIAL SUPPLIER
01-02-2024,Adults & Health,Perfect Community Care,Payments To Voluntary Sector,18.72,0,COMMERCIAL SUPPLIER
01-02-2024,Adults & Health,Perfect Community Care,Payments To Voluntary Sector,18.72,0,COMMERCIAL SUPPLIER
01-02-2024,Adults & Health,Perfect Community Care,Daycare - Private Contractors Payment,168.48,0,COMMERCIAL SUPPLIER
01-02-2024,Adults & Health,Perfect Community Care,Daycare - Private Contractors Payment,168.48,0,COMMERCIAL SUPPLIER
01-02-2024,Adults & Health,Perfect Community Care,Payments To Voluntary Sector,18.72,0,COMMERCIAL SUPPLIER
01-02-2024,Adults & Health,Perfect Community Care,Daycare - Private Contractors Payment,168.48,0,COMMERCIAL SUPPLIER
01-02-2024,Adults & Health,Perfect Community Care,Payments To Voluntary Sector,18.72,0,COMMERCIAL SUPPLIER
01-02-2024,Adults & Health,Perfect Community Care,Payments To Voluntary Sector,18.72,0,COMMERCIAL SUPPLIER
01-02-2024,Adults & Health,Perfect Community Care,Daycare - Private Contractors Payment,168.48,0,COMMERCIAL SUPPLIER
01-02-2024,Adults & Health,Perfect Community Care,Daycare - Private Contractors Payment,168.48,0,COMMERCIAL SUPPLIER
01-02-2024,Adults & Health,Perfect Community Care,Payments To Voluntary Sector,18.72,0,COMMERCIAL SUPPLIER
01-02-2024,Adults & Health,Perfect Community Care,Daycare - Private Contractors Payment,168.48,0,COMMERCIAL SUPPLIER
01-02-2024,Adults & Health,Perfect Community Care,Payments To Voluntary Sector,18.72,0,COMMERCIAL SUPPLIER
01-02-2024,Adults & Health,Perfect Community Care,Payments To Voluntary Sector,18.72,0,COMMERCIAL SUPPLIER
01-02-2024,Adults & Health,Perfect Community Care,Daycare - Private Contractors Payment,168.48,0,COMMERCIAL SUPPLIER
01-02-2024,Adults & Health,Perfect Community Care,Payments To Voluntary Sector,18.72,0,COMMERCIAL SUPPLIER
01-02-2024,Adults & Health,Perfect Community Care,Payments To Voluntary Sector,18.72,0,COMMERCIAL SUPPLIER
01-02-2024,Adults & Health,Perfect Community Care,Daycare - Private Contractors Payment,168.48,0,COMMERCIAL SUPPLIER
01-02-2024,Adults & Health,Perfect Community Care,Daycare - Private Contractors Payment,168.48,0,COMMERCIAL SUPPLIER
01-02-2024,Adults & Health,Perfect Community Care,Payments To Voluntary Sector,18.72,0,COMMERCIAL SUPPLIER
01-02-2024,Adults & Health,Perfect Community Care,Daycare - Private Contractors Payment,168.48,0,COMMERCIAL SUPPLIER
01-02-2024,Adults & Health,Look Ahead Housing and Care Ltd,Long Term Support - Community: Supported Living,20124.75,0,COMMERCIAL SUPPLIER
01-02-2024,Children and Young People,Miacis Media Consultancy Ltd,Design And Photographic Costs,450,0,COMMERCIAL SUPPLIER
01-02-2024,Children and Young People,Miacis Media Consultancy Ltd,Design And Photographic Costs,275,0,COMMERCIAL SUPPLIER
01-02-2024,Adults & Health,Miacis Media Consultancy Ltd,Design And Photographic Costs,250,0,COMMERCIAL SUPPLIER
01-02-2024,Children and Young People,Miacis Media Consultancy Ltd,Design And Photographic Costs,300,0,COMMERCIAL SUPPLIER
01-02-2024,Inclusive Economy & Housing,Miacis Media Consultancy Ltd,Design And Photographic Costs,250,0,COMMERCIAL SUPPLIER
01-02-2024,Housing Revenue Account,Miacis Media Consultancy Ltd,Design And Photographic Costs,425,0,COMMERCIAL SUPPLIER
01-02-2024,Adults & Health,London Black Women's Project,Private Contractors Payment - Other,8333.33,0,VENDOR
01-02-2024,RMS,Beacon Scaffolding Ltd,Private Contractors Payment - Other,928.8,0,CIS
01-02-2024,RMS,Beacon Scaffolding Ltd,Private Contractors Payment - Other,799.2,0,CIS
01-02-2024,RMS,Beacon Scaffolding Ltd,Private Contractors Payment - Other,1500,0,CIS
01-02-2024,RMS,Beacon Scaffolding Ltd,Private Contractors Payment - Other,1347.08,0,CIS
01-02-2024,RMS,Beacon Scaffolding Ltd,Private Contractors Payment - Other,1500,0,CIS
01-02-2024,RMS,Beacon Scaffolding Ltd,Private Contractors Payment - Other,171.84,0,CIS
01-02-2024,Children and Young People,Synergy Fostering,Fostering Agency Placements - Private Contractors Payment,984.2,0,NON COMMERCIAL SUPPLIER
01-02-2024,Children and Young People,Synergy Fostering,Fostering Agency Placements - Private Contractors Payment,984.2,0,NON COMMERCIAL SUPPLIER
01-02-2024,Children and Young People,Synergy Fostering,Fostering Agency Placements - Private Contractors Payment,984.2,0,NON COMMERCIAL SUPPLIER
01-02-2024,Children and Young People,Synergy Fostering,Fostering Agency Placements - Private Contractors Payment,984.2,0,NON COMMERCIAL SUPPLIER
01-02-2024,Children and Young People,Synergy Fostering,Fostering Agency Placements - Private Contractors Payment,651.2,0,NON COMMERCIAL SUPPLIER
01-02-2024,RMS,London Network for Pest Solutions Ltd,Private Contractors Payment - Other,290,0,COMMERCIAL SUPPLIER
01-02-2024,RMS,London Network for Pest Solutions Ltd,Private Contractors Payment - Other,425,0,COMMERCIAL SUPPLIER
01-02-2024,RMS,London Network for Pest Solutions Ltd,Private Contractors Payment - Other,725,0,COMMERCIAL SUPPLIER
01-02-2024,RMS,London Network for Pest Solutions Ltd,Private Contractors Payment - Other,650,0,COMMERCIAL SUPPLIER
01-02-2024,RMS,Door-Stop International Ltd,Building Alterations And Materials,614.59,0,VENDOR
01-02-2024,RMS,Door-Stop International Ltd,Building Alterations And Materials,614.59,0,VENDOR
01-02-2024,Children and Young People,Personal Information - Redacted,Legal Fees,1625,0,LEGAL SERVICES
01-02-2024,Children and Young People,Personal Information - Redacted,Legal Fees,700,0,LEGAL SERVICES
01-02-2024,Children and Young People,Personal Information - Redacted,Legal Fees,700,0,COMMERCIAL SUPPLIER
01-02-2024,Children and Young People,Personal Information - Redacted,Legal Fees,1562.5,0,COMMERCIAL SUPPLIER
01-02-2024,Children and Young People,Personal Information - Redacted,Legal Fees,700,0,LEGAL SERVICES
01-02-2024,Children and Young People,Personal Information - Redacted,Legal Fees,650,0,COMMERCIAL SUPPLIER
01-02-2024,Adults & Health,Setup 4 Life,Cleaning Services,551,0,COMMERCIAL SUPPLIER
01-02-2024,Adults & Health,London Black Women's Project,Private Contractors Payment - Other,16500,0,VENDOR
01-02-2024,Housing Revenue Account,Personal Information - Redacted,Cleaning Services,16.72,0,Employee
01-02-2024,Housing Revenue Account,Personal Information - Redacted,Employee Allowances,40,0,Employee
01-02-2024,Housing Revenue Account,Personal Information - Redacted,Employee Allowances,40,0,Employee
01-02-2024,Housing Revenue Account,Personal Information - Redacted,Employee Allowances,40,0,Employee
01-02-2024,Housing Revenue Account,Personal Information - Redacted,Employee Allowances,40,0,Employee
01-02-2024,Housing Revenue Account,Personal Information - Redacted,Employee Allowances,40,0,Employee
01-02-2024,Housing Revenue Account,Personal Information - Redacted,Employee Allowances,40,0,Employee
01-02-2024,Housing Revenue Account,Personal Information - Redacted,Employee Allowances,40,0,Employee
01-02-2024,Housing Revenue Account,Personal Information - Redacted,Employee Allowances,40,0,Employee
01-02-2024,Housing Revenue Account,Personal Information - Redacted,Employee Allowances,40,0,Employee
01-02-2024,Housing Revenue Account,Personal Information - Redacted,Employee Allowances,40,0,Employee
01-02-2024,Housing Revenue Account,Personal Information - Redacted,Stationery,9.17,0,Employee
01-02-2024,Housing Revenue Account,Personal Information - Redacted,Stationery,45.84,0,Employee
01-02-2024,Housing Revenue Account,Personal Information - Redacted,Cleaning Services,3.34,0,Employee
01-02-2024,Adults & Health,Personal Information - Redacted,"Purchase - Equipment, Furniture And Materials",31.49,0,Employee
01-02-2024,Adults & Health,Personal Information - Redacted,Payment To Health Authorities,99.88,0,Employee
01-02-2024,Adults & Health,Personal Information - Redacted,"Purchase - Equipment, Furniture And Materials",49.87,0,Employee
01-02-2024,Adults & Health,Personal Information - Redacted,Payment To Health Authorities,41.54,0,Employee
01-02-2024,Adults & Health,Personal Information - Redacted,"Purchase - Equipment, Furniture And Materials",2.58,0,Employee
01-02-2024,Inclusive Economy & Housing,Personal Information - Redacted,Ict Software,19.99,0,Employee
01-02-2024,Inclusive Economy & Housing,Personal Information - Redacted,Ict Software,7.99,0,Employee
01-02-2024,Inclusive Economy & Housing,Personal Information - Redacted,Postage And Courier Services,7.5,0,Employee
01-02-2024,Inclusive Economy & Housing,Personal Information - Redacted,Printing,23.97,0,Employee
01-02-2024,Inclusive Economy & Housing,Personal Information - Redacted,Ict Hardware,31.31,0,Employee
01-02-2024,Adults & Health,Highland Care Uk Ltd,Home Care - Private Contractors Payment,69.75,0,VENDOR
01-02-2024,Adults & Health,Highland Care Uk Ltd,Home Care - Private Contractors Payment,69.75,0,VENDOR
01-02-2024,Adults & Health,Highland Care Uk Ltd,Home Care - Private Contractors Payment,69.75,0,VENDOR
01-02-2024,Adults & Health,Highland Care Uk Ltd,Home Care - Private Contractors Payment,69.75,0,VENDOR
01-02-2024,Adults & Health,Highland Care Uk Ltd,Home Care - Private Contractors Payment,2664.45,0,VENDOR
01-02-2024,Marketing,Personal Information - Redacted,Events,3000,0,COMMERCIAL SUPPLIER
01-02-2024,Dedicated Schools Budget,Personal Information - Redacted,Professional Services - General,1755,0,COMMERCIAL SUPPLIER
01-02-2024,Adults & Health,Lloyd Park Nursing Home,Nursing Homes - Private Contractors Payment,447.96,0,COMMERCIAL SUPPLIER
01-02-2024,Adults & Health,Lloyd Park Nursing Home,Residential Care Income,-172.8,0,COMMERCIAL SUPPLIER
01-02-2024,Adults & Health,Lloyd Park Nursing Home,Nursing Homes - Private Contractors Payment,447.96,0,COMMERCIAL SUPPLIER
01-02-2024,Adults & Health,Lloyd Park Nursing Home,Residential Care Income,-172.8,0,COMMERCIAL SUPPLIER
01-02-2024,Adults & Health,Lloyd Park Nursing Home,Nursing Homes - Private Contractors Payment,447.96,0,COMMERCIAL SUPPLIER
01-02-2024,Adults & Health,Lloyd Park Nursing Home,Residential Care Income,-172.8,0,COMMERCIAL SUPPLIER
01-02-2024,Adults & Health,Lloyd Park Nursing Home,Nursing Homes - Private Contractors Payment,447.96,0,COMMERCIAL SUPPLIER
01-02-2024,Adults & Health,Lloyd Park Nursing Home,Residential Care Income,-172.8,0,COMMERCIAL SUPPLIER
01-02-2024,Adults & Health,Lloyd Park Nursing Home,Nursing Homes - Private Contractors Payment,447.96,0,COMMERCIAL SUPPLIER
01-02-2024,Adults & Health,Lloyd Park Nursing Home,Residential Care Income,-172.8,0,COMMERCIAL SUPPLIER
01-02-2024,Adults & Health,Lloyd Park Nursing Home,Nursing Homes - Private Contractors Payment,447.96,0,COMMERCIAL SUPPLIER
01-02-2024,Adults & Health,Lloyd Park Nursing Home,Residential Care Income,-172.8,0,COMMERCIAL SUPPLIER
01-02-2024,Adults & Health,Lloyd Park Nursing Home,Nursing Homes - Private Contractors Payment,447.96,0,COMMERCIAL SUPPLIER
01-02-2024,Adults & Health,Lloyd Park Nursing Home,Residential Care Income,-172.8,0,COMMERCIAL SUPPLIER
01-02-2024,Adults & Health,Lloyd Park Nursing Home,Nursing Homes - Private Contractors Payment,447.96,0,COMMERCIAL SUPPLIER
01-02-2024,Adults & Health,Lloyd Park Nursing Home,Residential Care Income,-172.8,0,COMMERCIAL SUPPLIER
01-02-2024,Adults & Health,Lloyd Park Nursing Home,Nursing Homes - Private Contractors Payment,447.96,0,COMMERCIAL SUPPLIER
01-02-2024,Adults & Health,Lloyd Park Nursing Home,Residential Care Income,-172.8,0,COMMERCIAL SUPPLIER
01-02-2024,Adults & Health,Lloyd Park Nursing Home,Residential Care Income,-172.8,0,COMMERCIAL SUPPLIER
01-02-2024,Adults & Health,Lloyd Park Nursing Home,Nursing Homes - Private Contractors Payment,447.96,0,COMMERCIAL SUPPLIER
01-02-2024,Adults & Health,Lloyd Park Nursing Home,Residential Care Income,-172.8,0,COMMERCIAL SUPPLIER
01-02-2024,Adults & Health,Lloyd Park Nursing Home,Nursing Homes - Private Contractors Payment,447.96,0,COMMERCIAL SUPPLIER
01-02-2024,Adults & Health,Lloyd Park Nursing Home,Nursing Homes - Private Contractors Payment,447.96,0,COMMERCIAL SUPPLIER
01-02-2024,Adults & Health,Lloyd Park Nursing Home,Residential Care Income,-172.8,0,COMMERCIAL SUPPLIER
01-02-2024,Adults & Health,Lloyd Park Nursing Home,Nursing Homes - Private Contractors Payment,447.96,0,COMMERCIAL SUPPLIER
01-02-2024,Adults & Health,Lloyd Park Nursing Home,Residential Care Income,-172.8,0,COMMERCIAL SUPPLIER
01-02-2024,Adults & Health,Lloyd Park Nursing Home,Residential Care Income,-172.8,0,COMMERCIAL SUPPLIER
01-02-2024,Adults & Health,Lloyd Park Nursing Home,Nursing Homes - Private Contractors Payment,447.96,0,COMMERCIAL SUPPLIER
01-02-2024,Adults & Health,Lloyd Park Nursing Home,Residential Care Income,-172.8,0,COMMERCIAL SUPPLIER
01-02-2024,Adults & Health,Lloyd Park Nursing Home,Nursing Homes - Private Contractors Payment,447.96,0,COMMERCIAL SUPPLIER
01-02-2024,Adults & Health,Lloyd Park Nursing Home,Nursing Homes - Private Contractors Payment,447.96,0,COMMERCIAL SUPPLIER
01-02-2024,Adults & Health,Lloyd Park Nursing Home,Residential Care Income,-172.8,0,COMMERCIAL SUPPLIER
01-02-2024,Adults & Health,Lloyd Park Nursing Home,Residential Care Income,-172.8,0,COMMERCIAL SUPPLIER
01-02-2024,Adults & Health,Lloyd Park Nursing Home,Nursing Homes - Private Contractors Payment,447.96,0,COMMERCIAL SUPPLIER
01-02-2024,Adults & Health,Lloyd Park Nursing Home,Nursing Homes - Private Contractors Payment,447.96,0,COMMERCIAL SUPPLIER
01-02-2024,Adults & Health,Lloyd Park Nursing Home,Residential Care Income,-172.8,0,COMMERCIAL SUPPLIER
01-02-2024,Adults & Health,Lloyd Park Nursing Home,Residential Care Income,-172.8,0,COMMERCIAL SUPPLIER
01-02-2024,Adults & Health,Lloyd Park Nursing Home,Nursing Homes - Private Contractors Payment,447.96,0,COMMERCIAL SUPPLIER
01-02-2024,Adults & Health,Lloyd Park Nursing Home,Residential Care Income,-172.8,0,COMMERCIAL SUPPLIER
01-02-2024,Adults & Health,Lloyd Park Nursing Home,Nursing Homes - Private Contractors Payment,447.96,0,COMMERCIAL SUPPLIER
01-02-2024,Adults & Health,Lloyd Park Nursing Home,Residential Care Income,-172.8,0,COMMERCIAL SUPPLIER
01-02-2024,Adults & Health,Lloyd Park Nursing Home,Nursing Homes - Private Contractors Payment,447.96,0,COMMERCIAL SUPPLIER
01-02-2024,Adults & Health,Lloyd Park Nursing Home,Nursing Homes - Private Contractors Payment,447.96,0,COMMERCIAL SUPPLIER
01-02-2024,Adults & Health,Lloyd Park Nursing Home,Residential Care Income,-172.8,0,COMMERCIAL SUPPLIER
01-02-2024,Adults & Health,Lloyd Park Nursing Home,Nursing Homes - Private Contractors Payment,447.96,0,COMMERCIAL SUPPLIER
01-02-2024,Adults & Health,Lloyd Park Nursing Home,Residential Care Income,-172.8,0,COMMERCIAL SUPPLIER
01-02-2024,Adults & Health,Lloyd Park Nursing Home,Residential Care Income,-172.8,0,COMMERCIAL SUPPLIER
01-02-2024,Adults & Health,Lloyd Park Nursing Home,Nursing Homes - Private Contractors Payment,447.96,0,COMMERCIAL SUPPLIER
01-02-2024,Adults & Health,Lloyd Park Nursing Home,Nursing Homes - Private Contractors Payment,447.96,0,COMMERCIAL SUPPLIER
01-02-2024,Adults & Health,Lloyd Park Nursing Home,Residential Care Income,-172.8,0,COMMERCIAL SUPPLIER
01-02-2024,Adults & Health,Lloyd Park Nursing Home,Nursing Homes - Private Contractors Payment,447.96,0,COMMERCIAL SUPPLIER
01-02-2024,Adults & Health,Lloyd Park Nursing Home,Residential Care Income,-172.8,0,COMMERCIAL SUPPLIER
01-02-2024,Adults & Health,Lloyd Park Nursing Home,Nursing Homes - Private Contractors Payment,723.12,0,COMMERCIAL SUPPLIER
01-02-2024,Adults & Health,Lloyd Park Nursing Home,Residential Care Income,-172.8,0,COMMERCIAL SUPPLIER
01-02-2024,Adults & Health,Lloyd Park Nursing Home,Nursing Homes - Private Contractors Payment,447.96,0,COMMERCIAL SUPPLIER
01-02-2024,Adults & Health,Lloyd Park Nursing Home,Residential Care Income,-172.8,0,COMMERCIAL SUPPLIER
01-02-2024,Adults & Health,Lloyd Park Nursing Home,Residential Care Income,-172.8,0,COMMERCIAL SUPPLIER
01-02-2024,Adults & Health,Lloyd Park Nursing Home,Nursing Homes - Private Contractors Payment,447.96,0,COMMERCIAL SUPPLIER
01-02-2024,Adults & Health,Lloyd Park Nursing Home,Nursing Homes - Private Contractors Payment,447.96,0,COMMERCIAL SUPPLIER
01-02-2024,Adults & Health,Lloyd Park Nursing Home,Residential Care Income,-172.8,0,COMMERCIAL SUPPLIER
01-02-2024,Adults & Health,Lloyd Park Nursing Home,Nursing Homes - Private Contractors Payment,447.96,0,COMMERCIAL SUPPLIER
01-02-2024,Adults & Health,Lloyd Park Nursing Home,Residential Care Income,-172.8,0,COMMERCIAL SUPPLIER
01-02-2024,Adults & Health,Lloyd Park Nursing Home,Residential Care Income,-172.8,0,COMMERCIAL SUPPLIER
01-02-2024,Adults & Health,Lloyd Park Nursing Home,Nursing Homes - Private Contractors Payment,447.96,0,COMMERCIAL SUPPLIER
01-02-2024,Adults & Health,Lloyd Park Nursing Home,Residential Care Income,-172.8,0,COMMERCIAL SUPPLIER
01-02-2024,Adults & Health,Lloyd Park Nursing Home,Nursing Homes - Private Contractors Payment,447.96,0,COMMERCIAL SUPPLIER
01-02-2024,Adults & Health,Highland Care Uk Ltd,Home Care - Private Contractors Payment,402.36,0,VENDOR
01-02-2024,Adults & Health,Highland Care Uk Ltd,Home Care - Private Contractors Payment,28.74,0,VENDOR
01-02-2024,Adults & Health,Highland Care Uk Ltd,Home Care - Private Contractors Payment,402.36,0,VENDOR
01-02-2024,Adults & Health,Highland Care Uk Ltd,Home Care - Private Contractors Payment,402.36,0,VENDOR
01-02-2024,Adults & Health,Highland Care Uk Ltd,Home Care - Private Contractors Payment,28.74,0,VENDOR
01-02-2024,Adults & Health,Highland Care Uk Ltd,Home Care - Private Contractors Payment,402.36,0,VENDOR
01-02-2024,Adults & Health,Highland Care Uk Ltd,Home Care - Private Contractors Payment,28.74,0,VENDOR
01-02-2024,Adults & Health,Highland Care Uk Ltd,Home Care - Private Contractors Payment,28.74,0,VENDOR
01-02-2024,oneSource,Bdi Securities,Security Services (Excluding Premises),1170.5,0,COMMERCIAL SUPPLIER
01-02-2024,oneSource,Bdi Securities,Security Services (Excluding Premises),288,0,COMMERCIAL SUPPLIER
01-02-2024,Marketing,Personal Information - Redacted,Events,2178,0,
01-02-2024,Environment and Sustainable Transport,Kenson Contractors (Benington) Ltd,"Maintenance - Equipment, Furniture And Materials",9835.81,0,COMMERCIAL SUPPLIER
01-02-2024,Environment and Sustainable Transport,Kenson Contractors (Benington) Ltd,"Maintenance - Equipment, Furniture And Materials",1794.74,0,COMMERCIAL SUPPLIER
01-02-2024,Environment and Sustainable Transport,Kenson Contractors (Benington) Ltd,"Maintenance - Equipment, Furniture And Materials",6658.06,0,COMMERCIAL SUPPLIER
01-02-2024,Environment and Sustainable Transport,Chipside Ltd,Private Contractors Payment - Other,660,0,COMMERCIAL SUPPLIER
01-02-2024,Adults & Health,Highland Care Uk Ltd,Home Care - Private Contractors Payment,38.32,0,VENDOR
01-02-2024,Adults & Health,Highland Care Uk Ltd,Home Care - Private Contractors Payment,134.12,0,VENDOR
01-02-2024,Adults & Health,Highland Care Uk Ltd,Home Care - Private Contractors Payment,134.12,0,VENDOR
01-02-2024,Resources,Education Support (Newham) Ltd,"Maintenance - Equipment, Furniture And Materials",371541.72,0,VENDOR
01-02-2024,Dedicated Schools Budget,Personal Information - Redacted,Schools - Transfer Payment,7764,0,VENDOR
01-02-2024,Dedicated Schools Budget,Personal Information - Redacted,Schools - Transfer Payment,5762,0,VENDOR
01-02-2024,Dedicated Schools Budget,Personal Information - Redacted,Schools - Transfer Payment,1407,0,NON COMMERCIAL SUPPLIER
01-02-2024,Dedicated Schools Budget,Personal Information - Redacted,Schools - Transfer Payment,10241,0,VENDOR
01-02-2024,Dedicated Schools Budget,Personal Information - Redacted,Schools - Transfer Payment,7671,0,VENDOR
01-02-2024,Dedicated Schools Budget,Personal Information - Redacted,Schools - Transfer Payment,1061,0,VENDOR
01-02-2024,Dedicated Schools Budget,Personal Information - Redacted,Schools - Transfer Payment,13174,0,NON COMMERCIAL SUPPLIER
01-02-2024,Dedicated Schools Budget,Personal Information - Redacted,Schools - Transfer Payment,3029,0,NON COMMERCIAL SUPPLIER
01-02-2024,Dedicated Schools Budget,Personal Information - Redacted,Schools - Transfer Payment,503,0,VENDOR
01-02-2024,Dedicated Schools Budget,Personal Information - Redacted,Schools - Transfer Payment,14498,0,VENDOR
01-02-2024,Dedicated Schools Budget,Personal Information - Redacted,Schools - Transfer Payment,6409,0,VENDOR
01-02-2024,Dedicated Schools Budget,Personal Information - Redacted,Schools - Transfer Payment,5202,0,COMMERCIAL SUPPLIER
01-02-2024,Dedicated Schools Budget,Personal Information - Redacted,Schools - Transfer Payment,2920,0,NON COMMERCIAL SUPPLIER
01-02-2024,Dedicated Schools Budget,Personal Information - Redacted,Schools - Transfer Payment,2548,0,NON COMMERCIAL SUPPLIER
01-02-2024,Dedicated Schools Budget,Personal Information - Redacted,Schools - Transfer Payment,6206,0,NON COMMERCIAL SUPPLIER
01-02-2024,Dedicated Schools Budget,Personal Information - Redacted,Schools - Transfer Payment,8897,0,NON COMMERCIAL SUPPLIER
01-02-2024,Dedicated Schools Budget,Personal Information - Redacted,Schools - Transfer Payment,8890,0,VENDOR
01-02-2024,Dedicated Schools Budget,Personal Information - Redacted,Schools - Transfer Payment,11922,0,VENDOR
01-02-2024,Dedicated Schools Budget,Personal Information - Redacted,Schools - Transfer Payment,858,0,VENDOR
01-02-2024,Dedicated Schools Budget,Personal Information - Redacted,Schools - Transfer Payment,12180,0,VENDOR
01-02-2024,Dedicated Schools Budget,Personal Information - Redacted,Schools - Transfer Payment,3524,0,VENDOR
01-02-2024,Dedicated Schools Budget,Personal Information - Redacted,Schools - Transfer Payment,14051,0,VENDOR
01-02-2024,Dedicated Schools Budget,Personal Information - Redacted,Schools - Transfer Payment,9512,0,VENDOR
01-02-2024,Dedicated Schools Budget,Personal Information - Redacted,Schools - Transfer Payment,19216,0,VENDOR
01-02-2024,Dedicated Schools Budget,Personal Information - Redacted,Schools - Transfer Payment,8843,0,NON COMMERCIAL SUPPLIER
01-02-2024,Dedicated Schools Budget,Personal Information - Redacted,Schools - Transfer Payment,7665,0,VENDOR
01-02-2024,Dedicated Schools Budget,Personal Information - Redacted,Schools - Transfer Payment,7382,0,VENDOR
01-02-2024,Dedicated Schools Budget,Personal Information - Redacted,Schools - Transfer Payment,6331,0,NON COMMERCIAL SUPPLIER
01-02-2024,Dedicated Schools Budget,Personal Information - Redacted,Schools - Transfer Payment,26203,0,NON COMMERCIAL SUPPLIER
01-02-2024,Dedicated Schools Budget,Personal Information - Redacted,Schools - Transfer Payment,18092,0,NON COMMERCIAL SUPPLIER
01-02-2024,Dedicated Schools Budget,Personal Information - Redacted,Schools - Transfer Payment,792,0,NON COMMERCIAL SUPPLIER
01-02-2024,Dedicated Schools Budget,Personal Information - Redacted,Schools - Transfer Payment,11228,0,NON COMMERCIAL SUPPLIER
01-02-2024,Dedicated Schools Budget,Personal Information - Redacted,Schools - Transfer Payment,7710,0,NON COMMERCIAL SUPPLIER
01-02-2024,Dedicated Schools Budget,Personal Information - Redacted,Schools - Transfer Payment,5069,0,VENDOR
01-02-2024,Dedicated Schools Budget,Personal Information - Redacted,Schools - Transfer Payment,6120,0,INDIVIDUALS
01-02-2024,Dedicated Schools Budget,Personal Information - Redacted,Schools - Transfer Payment,869,0,NON COMMERCIAL SUPPLIER
01-02-2024,Dedicated Schools Budget,Personal Information - Redacted,Schools - Transfer Payment,4049,0,NON COMMERCIAL SUPPLIER
01-02-2024,Dedicated Schools Budget,Personal Information - Redacted,Schools - Transfer Payment,4364,0,NON COMMERCIAL SUPPLIER
01-02-2024,Dedicated Schools Budget,Personal Information - Redacted,Schools - Transfer Payment,17039,0,NON COMMERCIAL SUPPLIER
01-02-2024,Dedicated Schools Budget,Personal Information - Redacted,Schools - Transfer Payment,5938,0,COMMERCIAL SUPPLIER
01-02-2024,Dedicated Schools Budget,Personal Information - Redacted,Schools - Transfer Payment,15037,0,NON COMMERCIAL SUPPLIER
01-02-2024,Dedicated Schools Budget,Personal Information - Redacted,Schools - Transfer Payment,8899,0,COMMERCIAL SUPPLIER
01-02-2024,Dedicated Schools Budget,Personal Information - Redacted,Schools - Transfer Payment,5293,0,VENDOR
01-02-2024,Dedicated Schools Budget,Personal Information - Redacted,Schools - Transfer Payment,6052,0,VENDOR
01-02-2024,Dedicated Schools Budget,Personal Information - Redacted,Schools - Transfer Payment,5690,0,COMMERCIAL SUPPLIER
01-02-2024,Dedicated Schools Budget,Personal Information - Redacted,Schools - Transfer Payment,4097,0,VENDOR
01-02-2024,Dedicated Schools Budget,Personal Information - Redacted,Schools - Transfer Payment,12867,0,VENDOR
01-02-2024,Dedicated Schools Budget,Personal Information - Redacted,Schools - Transfer Payment,7109,0,VENDOR
01-02-2024,Dedicated Schools Budget,Personal Information - Redacted,Schools - Transfer Payment,3356,0,VENDOR
01-02-2024,Dedicated Schools Budget,Personal Information - Redacted,Schools - Transfer Payment,1425,0,VENDOR
01-02-2024,Dedicated Schools Budget,Personal Information - Redacted,Schools - Transfer Payment,4760,0,VENDOR
01-02-2024,Dedicated Schools Budget,Personal Information - Redacted,Schools - Transfer Payment,10120,0,VENDOR
01-02-2024,Dedicated Schools Budget,Personal Information - Redacted,Schools - Transfer Payment,22833,0,VENDOR
01-02-2024,Dedicated Schools Budget,Personal Information - Redacted,Schools - Transfer Payment,27824,0,VENDOR
01-02-2024,Dedicated Schools Budget,Personal Information - Redacted,Schools - Transfer Payment,3679,0,INDIVIDUALS
01-02-2024,Dedicated Schools Budget,Personal Information - Redacted,Schools - Transfer Payment,6134,0,NON COMMERCIAL SUPPLIER
01-02-2024,Dedicated Schools Budget,Personal Information - Redacted,Schools - Transfer Payment,6176,0,VENDOR
01-02-2024,Dedicated Schools Budget,Personal Information - Redacted,Schools - Transfer Payment,9377,0,INDIVIDUALS
01-02-2024,Dedicated Schools Budget,Personal Information - Redacted,Schools - Transfer Payment,5220,0,VENDOR
01-02-2024,Dedicated Schools Budget,Personal Information - Redacted,Schools - Transfer Payment,2811,0,VENDOR
01-02-2024,Dedicated Schools Budget,Personal Information - Redacted,Schools - Transfer Payment,2082,0,VENDOR
01-02-2024,Dedicated Schools Budget,Personal Information - Redacted,Schools - Transfer Payment,12454,0,VENDOR
01-02-2024,Dedicated Schools Budget,Personal Information - Redacted,Schools - Transfer Payment,5274,0,
01-02-2024,Dedicated Schools Budget,Personal Information - Redacted,Schools - Transfer Payment,18312,0,NON COMMERCIAL SUPPLIER
01-02-2024,Dedicated Schools Budget,Personal Information - Redacted,Schools - Transfer Payment,1058,0,INDIVIDUALS
01-02-2024,Dedicated Schools Budget,Personal Information - Redacted,Schools - Transfer Payment,11571,0,VENDOR
01-02-2024,Dedicated Schools Budget,Personal Information - Redacted,Schools - Transfer Payment,10498,0,VENDOR
01-02-2024,Dedicated Schools Budget,Personal Information - Redacted,Schools - Transfer Payment,2559,0,VENDOR
01-02-2024,Dedicated Schools Budget,Personal Information - Redacted,Schools - Transfer Payment,7553,0,NON COMMERCIAL SUPPLIER
01-02-2024,Dedicated Schools Budget,Personal Information - Redacted,Schools - Transfer Payment,5657,0,VENDOR
01-02-2024,Dedicated Schools Budget,Personal Information - Redacted,Schools - Transfer Payment,1592,0,INDIVIDUALS
01-02-2024,Dedicated Schools Budget,Personal Information - Redacted,Schools - Transfer Payment,17090,0,COMMERCIAL SUPPLIER
01-02-2024,Dedicated Schools Budget,Personal Information - Redacted,Schools - Transfer Payment,9294,0,COMMERCIAL SUPPLIER
01-02-2024,Dedicated Schools Budget,Personal Information - Redacted,Schools - Transfer Payment,9119,0,VENDOR
01-02-2024,Dedicated Schools Budget,Personal Information - Redacted,Schools - Transfer Payment,2561,0,INDIVIDUALS
01-02-2024,Dedicated Schools Budget,Personal Information - Redacted,Schools - Transfer Payment,854,0,INDIVIDUALS
01-02-2024,Dedicated Schools Budget,Personal Information - Redacted,Schools - Transfer Payment,857,0,INDIVIDUALS
01-02-2024,Dedicated Schools Budget,Personal Information - Redacted,Schools - Transfer Payment,845,0,VENDOR
01-02-2024,Dedicated Schools Budget,Personal Information - Redacted,Schools - Transfer Payment,4259,0,VENDOR
01-02-2024,Dedicated Schools Budget,Personal Information - Redacted,Schools - Transfer Payment,617,0,VENDOR
01-02-2024,Dedicated Schools Budget,Personal Information - Redacted,Schools - Transfer Payment,4223,0,INDIVIDUALS
01-02-2024,Dedicated Schools Budget,Personal Information - Redacted,Schools - Transfer Payment,518,0,INDIVIDUALS
01-02-2024,Dedicated Schools Budget,Personal Information - Redacted,Schools - Transfer Payment,857,0,INDIVIDUALS
01-02-2024,Dedicated Schools Budget,Personal Information - Redacted,Schools - Transfer Payment,857,0,INDIVIDUALS
01-02-2024,Dedicated Schools Budget,Personal Information - Redacted,Schools - Transfer Payment,888,0,INDIVIDUALS
01-02-2024,Dedicated Schools Budget,Personal Information - Redacted,Dbs Checks,2541,0,INDIVIDUALS
01-02-2024,Dedicated Schools Budget,Personal Information - Redacted,Dbs Checks,1271,0,INDIVIDUALS
01-02-2024,Dedicated Schools Budget,Personal Information - Redacted,Dbs Checks,1271,0,INDIVIDUALS
01-02-2024,Dedicated Schools Budget,Personal Information - Redacted,Dbs Checks,1271,0,INDIVIDUALS
01-02-2024,Dedicated Schools Budget,Personal Information - Redacted,Dbs Checks,1271,0,INDIVIDUALS
01-02-2024,Dedicated Schools Budget,Personal Information - Redacted,Dbs Checks,1271,0,INDIVIDUALS
01-02-2024,Dedicated Schools Budget,Personal Information - Redacted,Dbs Checks,3812,0,INDIVIDUALS
01-02-2024,Dedicated Schools Budget,Personal Information - Redacted,Dbs Checks,1271,0,VENDOR
01-02-2024,Dedicated Schools Budget,Personal Information - Redacted,Dbs Checks,1271,0,INDIVIDUALS
01-02-2024,Dedicated Schools Budget,Personal Information - Redacted,Dbs Checks,1271,0,FOSTER CARERS
01-02-2024,Dedicated Schools Budget,Personal Information - Redacted,Dbs Checks,1228,0,VENDOR
01-02-2024,Dedicated Schools Budget,Personal Information - Redacted,Dbs Checks,1271,0,INDIVIDUALS
01-02-2024,Dedicated Schools Budget,Personal Information - Redacted,Dbs Checks,1271,0,INDIVIDUALS
01-02-2024,Dedicated Schools Budget,Personal Information - Redacted,Schools - Transfer Payment,3540,0,INDIVIDUALS
01-02-2024,Dedicated Schools Budget,Personal Information - Redacted,Payment To Other Establishments - General,10628,0,VENDOR
01-02-2024,Dedicated Schools Budget,Personal Information - Redacted,Schools - Transfer Payment,11860,0,VENDOR
01-02-2024,Dedicated Schools Budget,Personal Information - Redacted,Schools - Transfer Payment,626,0,INDIVIDUALS
01-02-2024,Dedicated Schools Budget,Personal Information - Redacted,Schools - Transfer Payment,708,0,INDIVIDUALS
01-02-2024,Dedicated Schools Budget,Personal Information - Redacted,Schools - Transfer Payment,3390,0,INDIVIDUALS
01-02-2024,Dedicated Schools Budget,Personal Information - Redacted,Schools - Transfer Payment,858,0,INDIVIDUALS
01-02-2024,Dedicated Schools Budget,Personal Information - Redacted,Schools - Transfer Payment,6779,0,VENDOR
01-02-2024,Dedicated Schools Budget,Personal Information - Redacted,Schools - Transfer Payment,3527,0,
01-02-2024,Dedicated Schools Budget,Personal Information - Redacted,Schools - Transfer Payment,5094,0,INDIVIDUALS
01-02-2024,Dedicated Schools Budget,Personal Information - Redacted,Schools - Transfer Payment,1701,0,INDIVIDUALS
01-02-2024,Dedicated Schools Budget,Personal Information - Redacted,Schools - Transfer Payment,2559,0,INDIVIDUALS
01-02-2024,Dedicated Schools Budget,Personal Information - Redacted,Schools - Transfer Payment,7665,0,NON COMMERCIAL SUPPLIER
01-02-2024,Dedicated Schools Budget,Personal Information - Redacted,Schools - Transfer Payment,3390,0,INDIVIDUALS
01-02-2024,Dedicated Schools Budget,Personal Information - Redacted,Schools - Transfer Payment,2010,0,INDIVIDUALS
01-02-2024,Dedicated Schools Budget,Personal Information - Redacted,Schools - Transfer Payment,553,0,NON COMMERCIAL SUPPLIER
01-02-2024,Dedicated Schools Budget,Personal Information - Redacted,Schools - Transfer Payment,854,0,INDIVIDUALS
01-02-2024,Dedicated Schools Budget,Personal Information - Redacted,Schools - Transfer Payment,8426,0,VENDOR
01-02-2024,Dedicated Schools Budget,Personal Information - Redacted,Schools - Transfer Payment,5984,0,COMMERCIAL SUPPLIER
01-02-2024,Dedicated Schools Budget,Personal Information - Redacted,Schools - Transfer Payment,2656,0,COMMERCIAL SUPPLIER
01-02-2024,Dedicated Schools Budget,Personal Information - Redacted,Schools - Transfer Payment,17403,0,VENDOR
01-02-2024,Dedicated Schools Budget,Personal Information - Redacted,Schools - Transfer Payment,5867,0,VENDOR
01-02-2024,Dedicated Schools Budget,Personal Information - Redacted,Schools - Transfer Payment,32264,0,NON COMMERCIAL SUPPLIER
01-02-2024,Dedicated Schools Budget,Personal Information - Redacted,Schools - Transfer Payment,9773,0,VENDOR
01-02-2024,Dedicated Schools Budget,Personal Information - Redacted,Schools - Transfer Payment,4571,0,NON COMMERCIAL SUPPLIER
01-02-2024,Dedicated Schools Budget,Personal Information - Redacted,Schools - Transfer Payment,7102,0,VENDOR
01-02-2024,Dedicated Schools Budget,Personal Information - Redacted,Schools - Transfer Payment,8504,0,COMMERCIAL SUPPLIER
01-02-2024,Dedicated Schools Budget,Personal Information - Redacted,Schools - Transfer Payment,30484,0,VENDOR
01-02-2024,Dedicated Schools Budget,Personal Information - Redacted,Schools - Transfer Payment,10593,0,COMMERCIAL SUPPLIER
01-02-2024,Dedicated Schools Budget,Personal Information - Redacted,Schools - Transfer Payment,9281,0,NON COMMERCIAL SUPPLIER
01-02-2024,Dedicated Schools Budget,Personal Information - Redacted,Schools - Transfer Payment,7170,0,VENDOR
01-02-2024,Dedicated Schools Budget,Personal Information - Redacted,Schools - Transfer Payment,14765,0,NON COMMERCIAL SUPPLIER
01-02-2024,Dedicated Schools Budget,Personal Information - Redacted,Schools - Transfer Payment,30076,0,VENDOR
01-02-2024,Dedicated Schools Budget,Personal Information - Redacted,Schools - Transfer Payment,1701,0,NON COMMERCIAL SUPPLIER
01-02-2024,Dedicated Schools Budget,Personal Information - Redacted,Schools - Transfer Payment,15516,0,VENDOR
01-02-2024,Dedicated Schools Budget,Personal Information - Redacted,Schools - Transfer Payment,25514,0,VENDOR
01-02-2024,Dedicated Schools Budget,Personal Information - Redacted,Schools - Transfer Payment,9590,0,VENDOR
01-02-2024,Dedicated Schools Budget,Personal Information - Redacted,Schools - Transfer Payment,8495,0,VENDOR
01-02-2024,Dedicated Schools Budget,Personal Information - Redacted,Schools - Transfer Payment,13571,0,VENDOR
01-02-2024,Dedicated Schools Budget,Personal Information - Redacted,Schools - Transfer Payment,10697,0,VENDOR
01-02-2024,Dedicated Schools Budget,Personal Information - Redacted,Schools - Transfer Payment,12984,0,VENDOR
01-02-2024,Dedicated Schools Budget,Personal Information - Redacted,Schools - Transfer Payment,6911,0,VENDOR
01-02-2024,Dedicated Schools Budget,Personal Information - Redacted,Schools - Transfer Payment,4820,0,NON COMMERCIAL SUPPLIER
01-02-2024,Dedicated Schools Budget,Personal Information - Redacted,Schools - Transfer Payment,10607,0,NON COMMERCIAL SUPPLIER
01-02-2024,Dedicated Schools Budget,Personal Information - Redacted,Schools - Transfer Payment,2557,0,NON COMMERCIAL SUPPLIER
01-02-2024,Dedicated Schools Budget,Personal Information - Redacted,Schools - Transfer Payment,6747,0,NON COMMERCIAL SUPPLIER
01-02-2024,Dedicated Schools Budget,Personal Information - Redacted,Schools - Transfer Payment,2484,0,VENDOR
01-02-2024,Dedicated Schools Budget,Personal Information - Redacted,Schools - Transfer Payment,15707,0,NON COMMERCIAL SUPPLIER
01-02-2024,Dedicated Schools Budget,Personal Information - Redacted,Schools - Transfer Payment,17350,0,NON COMMERCIAL SUPPLIER
01-02-2024,Dedicated Schools Budget,Personal Information - Redacted,Schools - Transfer Payment,13786,0,NON COMMERCIAL SUPPLIER
01-02-2024,Dedicated Schools Budget,Personal Information - Redacted,Schools - Transfer Payment,4964,0,NON COMMERCIAL SUPPLIER
01-02-2024,Dedicated Schools Budget,Personal Information - Redacted,Schools - Transfer Payment,1946,0,NON COMMERCIAL SUPPLIER
01-02-2024,Dedicated Schools Budget,Personal Information - Redacted,Schools - Transfer Payment,5093,0,NON COMMERCIAL SUPPLIER
01-02-2024,Dedicated Schools Budget,Personal Information - Redacted,Schools - Transfer Payment,5557,0,VENDOR
01-02-2024,Dedicated Schools Budget,Personal Information - Redacted,Schools - Transfer Payment,5951,0,INDIVIDUALS
01-02-2024,Dedicated Schools Budget,Personal Information - Redacted,Schools - Transfer Payment,1440,0,NON COMMERCIAL SUPPLIER
01-02-2024,Dedicated Schools Budget,Personal Information - Redacted,Schools - Transfer Payment,5864,0,NON COMMERCIAL SUPPLIER
01-02-2024,Dedicated Schools Budget,Personal Information - Redacted,Schools - Transfer Payment,2082,0,NON COMMERCIAL SUPPLIER
01-02-2024,Dedicated Schools Budget,Personal Information - Redacted,Schools - Transfer Payment,5088,0,NON COMMERCIAL SUPPLIER
01-02-2024,Dedicated Schools Budget,Personal Information - Redacted,Schools - Transfer Payment,5217,0,COMMERCIAL SUPPLIER
01-02-2024,Dedicated Schools Budget,Personal Information - Redacted,Schools - Transfer Payment,6217,0,NON COMMERCIAL SUPPLIER
01-02-2024,Dedicated Schools Budget,Personal Information - Redacted,Schools - Transfer Payment,1713,0,NON COMMERCIAL SUPPLIER
01-02-2024,Dedicated Schools Budget,Personal Information - Redacted,Schools - Transfer Payment,23342,0,COMMERCIAL SUPPLIER
01-02-2024,Dedicated Schools Budget,Personal Information - Redacted,Schools - Transfer Payment,10422,0,VENDOR
01-02-2024,Dedicated Schools Budget,Personal Information - Redacted,Schools - Transfer Payment,22366,0,VENDOR
01-02-2024,Dedicated Schools Budget,Personal Information - Redacted,Schools - Transfer Payment,11827,0,VENDOR
01-02-2024,Dedicated Schools Budget,Personal Information - Redacted,Schools - Transfer Payment,13665,0,COMMERCIAL SUPPLIER
01-02-2024,Dedicated Schools Budget,Personal Information - Redacted,Schools - Transfer Payment,11889,0,VENDOR
01-02-2024,Dedicated Schools Budget,Personal Information - Redacted,Schools - Transfer Payment,15855,0,VENDOR
01-02-2024,Dedicated Schools Budget,Personal Information - Redacted,Schools - Transfer Payment,3404,0,COMMERCIAL SUPPLIER
01-02-2024,Dedicated Schools Budget,Personal Information - Redacted,Schools - Transfer Payment,7425,0,VENDOR
01-02-2024,Dedicated Schools Budget,Personal Information - Redacted,Schools - Transfer Payment,13737,0,VENDOR
01-02-2024,Dedicated Schools Budget,Personal Information - Redacted,Schools - Transfer Payment,3234,0,VENDOR
01-02-2024,Dedicated Schools Budget,Personal Information - Redacted,Schools - Transfer Payment,14587,0,VENDOR
01-02-2024,Dedicated Schools Budget,Personal Information - Redacted,Schools - Transfer Payment,6887,0,VENDOR
01-02-2024,Dedicated Schools Budget,Personal Information - Redacted,Schools - Transfer Payment,1440,0,VENDOR
01-02-2024,Dedicated Schools Budget,Personal Information - Redacted,Schools - Transfer Payment,18138,0,VENDOR
01-02-2024,Dedicated Schools Budget,Personal Information - Redacted,Schools - Transfer Payment,3587,0,VENDOR
01-02-2024,Dedicated Schools Budget,Personal Information - Redacted,Schools - Transfer Payment,1701,0,NON COMMERCIAL SUPPLIER
01-02-2024,Dedicated Schools Budget,Personal Information - Redacted,Schools - Transfer Payment,13320,0,VENDOR
01-02-2024,Dedicated Schools Budget,Personal Information - Redacted,Schools - Transfer Payment,6278,0,COMMERCIAL SUPPLIER
01-02-2024,Dedicated Schools Budget,Personal Information - Redacted,Schools - Transfer Payment,32216,0,INDIVIDUALS
01-02-2024,Dedicated Schools Budget,Personal Information - Redacted,Schools - Transfer Payment,8052,0,VENDOR
01-02-2024,Dedicated Schools Budget,Personal Information - Redacted,Schools - Transfer Payment,16159,0,VENDOR
01-02-2024,Dedicated Schools Budget,Personal Information - Redacted,Schools - Transfer Payment,11111,0,VENDOR
01-02-2024,Dedicated Schools Budget,Personal Information - Redacted,Schools - Transfer Payment,21513,0,VENDOR
01-02-2024,Dedicated Schools Budget,Personal Information - Redacted,Schools - Transfer Payment,3135,0,
01-02-2024,Dedicated Schools Budget,Personal Information - Redacted,Schools - Transfer Payment,3245,0,NON COMMERCIAL SUPPLIER
01-02-2024,Dedicated Schools Budget,Personal Information - Redacted,Schools - Transfer Payment,16997,0,INDIVIDUALS
01-02-2024,Dedicated Schools Budget,Personal Information - Redacted,Schools - Transfer Payment,12167,0,INDIVIDUALS
01-02-2024,Dedicated Schools Budget,Personal Information - Redacted,Schools - Transfer Payment,738,0,COMMERCIAL SUPPLIER
01-02-2024,Dedicated Schools Budget,Personal Information - Redacted,Schools - Transfer Payment,42761,0,VENDOR
01-02-2024,Inclusive Economy & Housing,Castle Water Ltd,Water And Sewerage,164.38,0,COMMERCIAL SUPPLIER
01-02-2024,Inclusive Economy & Housing,Castle Water Ltd,Water And Sewerage,143.36,0,COMMERCIAL SUPPLIER
01-02-2024,Adults & Health,Castle Water Ltd,Water And Sewerage,746.85,0,COMMERCIAL SUPPLIER
01-02-2024,Children and Young People,Carter Brown The Expert Service Ltd,Legal Fees,2550,0,COMMERCIAL SUPPLIER
01-02-2024,Children and Young People,Carter Brown The Expert Service Ltd,Legal Fees,2100,0,COMMERCIAL SUPPLIER
01-02-2024,Children and Young People,Carter Brown The Expert Service Ltd,Legal Fees,1900,0,COMMERCIAL SUPPLIER
01-02-2024,Adults & Health,Highland Care Uk Ltd,Daycare - Private Contractors Payment,37.44,0,VENDOR
01-02-2024,Adults & Health,Highland Care Uk Ltd,Home Care - Private Contractors Payment,98.28,0,VENDOR
01-02-2024,Adults & Health,Highland Care Uk Ltd,Daycare - Private Contractors Payment,37.44,0,VENDOR
01-02-2024,Adults & Health,Highland Care Uk Ltd,Home Care - Private Contractors Payment,98.28,0,VENDOR
01-02-2024,Adults & Health,Highland Care Uk Ltd,Daycare - Private Contractors Payment,37.44,0,VENDOR
01-02-2024,Adults & Health,Highland Care Uk Ltd,Home Care - Private Contractors Payment,98.28,0,VENDOR
01-02-2024,Adults & Health,Highland Care Uk Ltd,Home Care - Private Contractors Payment,98.28,0,VENDOR
01-02-2024,Marketing,Wagstaff Interiors Group,"Purchase - Equipment, Furniture And Materials",606.15,0,COMMERCIAL SUPPLIER
02-02-2024,Environment and Sustainable Transport,Completely Kent Limited T/a Completely Hydraulic,"Purchase - Equipment, Furniture And Materials",275.24,0,COMMERCIAL SUPPLIER
02-02-2024,Children and Young People,HATS Group,Client Transport,76029.92,0,COMMERCIAL SUPPLIER
02-02-2024,Environment and Sustainable Transport,Chemical Corporation (Uk) Ltd,Highway Services,4710,0,VENDOR
02-02-2024,Environment and Sustainable Transport,Chemical Corporation (Uk) Ltd,Highway Services,21.45,0,VENDOR
02-02-2024,RMS,Till & Whitehead Ltd T/A UK Fasteners Ltd,Building Alterations And Materials,1925.6,0,COMMERCIAL SUPPLIER
02-02-2024,Marketing,Fight For Peace.,Arts And Leisure Costs,6795,0,VENDOR
02-02-2024,Children and Young People,Rights & Equalities In Newham (Rein),Private Contractors Payment - Other,7991.5,0,VENDOR
02-02-2024,Resources,Frontline Security Solutions,Security Services (Excluding Premises),984.66,0,VENDOR
02-02-2024,Children and Young People,OCEM Ltd t/a Omega Education Services,Professional Services - General,6000,0,COMMERCIAL SUPPLIER
02-02-2024,Adults & Health,Satash Community Care Projects Limited,Daycare - Private Contractors Payment,243.36,0,VENDOR
02-02-2024,Adults & Health,Satash Community Care Projects Limited,Daycare - Private Contractors Payment,243.36,0,VENDOR
02-02-2024,Adults & Health,Satash Community Care Projects Limited,Daycare - Private Contractors Payment,243.36,0,VENDOR
02-02-2024,Adults & Health,Satash Community Care Projects Limited,Daycare - Private Contractors Payment,243.36,0,VENDOR
02-02-2024,Adults & Health,Supply Chain Coordination Ltd (SCCL),Specialist Equipment For Service Provision,3019.07,0,NHS BODIES
02-02-2024,Adults & Health,Supply Chain Coordination Ltd (SCCL),Specialist Equipment For Service Provision,11820,0,NHS BODIES
02-02-2024,Adults & Health,Supply Chain Coordination Ltd (SCCL),Specialist Equipment For Service Provision,337.2,0,NHS BODIES
02-02-2024,oneSource,Bytes Software Services Ltd,Ict Licences,387.5,0,NON COMMERCIAL SUPPLIER
02-02-2024,oneSource,Bytes Software Services Ltd,Ict Licences,523.59,0,NON COMMERCIAL SUPPLIER
02-02-2024,oneSource,Bytes Software Services Ltd,Ict Licences,300,0,NON COMMERCIAL SUPPLIER
02-02-2024,Children and Young People,Bytes Software Services Ltd,Ict Licences,523.59,0,NON COMMERCIAL SUPPLIER
02-02-2024,oneSource,Bytes Software Services Ltd,Ict Licences,120624,0,NON COMMERCIAL SUPPLIER
02-02-2024,oneSource,Bytes Software Services Ltd,Ict Licences,1020,0,NON COMMERCIAL SUPPLIER
02-02-2024,oneSource,Bytes Software Services Ltd,Ict Licences,523.59,0,NON COMMERCIAL SUPPLIER
02-02-2024,Housing Revenue Account,Bytes Software Services Ltd,Ict Licences,329.7,0,NON COMMERCIAL SUPPLIER
02-02-2024,oneSource,Bytes Software Services Ltd,Ict Licences,350,0,NON COMMERCIAL SUPPLIER
02-02-2024,Adults & Health,Bytes Software Services Ltd,Ict Licences,355.32,0,NON COMMERCIAL SUPPLIER
02-02-2024,oneSource,Bytes Software Services Ltd,Ict Licences,329.7,0,NON COMMERCIAL SUPPLIER
02-02-2024,Housing Revenue Account,Satchell Moran Solicitors,Legal Fees,1021.8,0,COMMERCIAL SUPPLIER
02-02-2024,Environment and Sustainable Transport,Floglass Limited,"Purchase - Equipment, Furniture And Materials",242,0,COMMERCIAL SUPPLIER
02-02-2024,Children and Young People,First Option Healthcare,Equipment & Adaptation - Private Contractors Payment,1667.74,0,NON COMMERCIAL SUPPLIER
02-02-2024,Children and Young People,Nottingham Rehab Ltd,Occupational Health,2760.16,0,COMMERCIAL SUPPLIER
02-02-2024,Children and Young People,Akshaya Patra UK Ltd,Catering And Vending Supplies,240,0,VOLUNTARY ORGANISATION
02-02-2024,Environment and Sustainable Transport,L & F Plant Hire Co Ltd T/A Ti,Vehicle Hire,946,0,VENDOR
02-02-2024,Environment and Sustainable Transport,L & F Plant Hire Co Ltd T/A Ti,Vehicle Hire,946,0,VENDOR
02-02-2024,Environment and Sustainable Transport,L & F Plant Hire Co Ltd T/A Ti,Vehicle Hire,946,0,VENDOR
02-02-2024,Environment and Sustainable Transport,L & F Plant Hire Co Ltd T/A Ti,Vehicle Hire,946,0,VENDOR
02-02-2024,Environment and Sustainable Transport,L & F Plant Hire Co Ltd T/A Ti,Vehicle Hire,946,0,VENDOR
02-02-2024,Environment and Sustainable Transport,L & F Plant Hire Co Ltd T/A Ti,Vehicle Hire,946,0,VENDOR
02-02-2024,Environment and Sustainable Transport,L & F Plant Hire Co Ltd T/A Ti,Vehicle Hire,946,0,VENDOR
02-02-2024,Environment and Sustainable Transport,L & F Plant Hire Co Ltd T/A Ti,Vehicle Hire,946,0,VENDOR
02-02-2024,Environment and Sustainable Transport,L & F Plant Hire Co Ltd T/A Ti,Vehicle Hire,1034,0,VENDOR
02-02-2024,Environment and Sustainable Transport,L & F Plant Hire Co Ltd T/A Ti,Vehicle Hire,946,0,VENDOR
02-02-2024,Environment and Sustainable Transport,L & F Plant Hire Co Ltd T/A Ti,Vehicle Hire,946,0,VENDOR
02-02-2024,Environment and Sustainable Transport,L & F Plant Hire Co Ltd T/A Ti,Vehicle Hire,1034,0,VENDOR
02-02-2024,Environment and Sustainable Transport,L & F Plant Hire Co Ltd T/A Ti,Vehicle Hire,1716,0,VENDOR
02-02-2024,Environment and Sustainable Transport,L & F Plant Hire Co Ltd T/A Ti,Vehicle Hire,1716,0,VENDOR
02-02-2024,Adults & Health,Br3Ak Free,Payments To Voluntary Sector,175,0,VENDOR
02-02-2024,Adults & Health,Br3Ak Free,Daycare - Private Contractors Payment,688.05,0,VENDOR
02-02-2024,Adults & Health,Br3Ak Free,Daycare - Private Contractors Payment,688.05,0,VENDOR
02-02-2024,Adults & Health,Br3Ak Free,Daycare - Private Contractors Payment,688.05,0,VENDOR
02-02-2024,Adults & Health,Br3Ak Free,Payments To Voluntary Sector,315,0,VENDOR
02-02-2024,Adults & Health,Br3Ak Free,Daycare - Private Contractors Payment,613.35,0,VENDOR
02-02-2024,Adults & Health,Br3Ak Free,Payments To Voluntary Sector,140,0,VENDOR
02-02-2024,Adults & Health,Br3Ak Free,Daycare - Private Contractors Payment,700,0,VENDOR
02-02-2024,Adults & Health,Br3Ak Free,Payments To Voluntary Sector,175,0,VENDOR
02-02-2024,Adults & Health,Br3Ak Free,Daycare - Private Contractors Payment,875,0,VENDOR
02-02-2024,Adults & Health,Br3Ak Free,Payments To Voluntary Sector,105,0,VENDOR
02-02-2024,Adults & Health,Br3Ak Free,Payments To Voluntary Sector,175,0,VENDOR
02-02-2024,Adults & Health,Br3Ak Free,Daycare - Private Contractors Payment,875,0,VENDOR
02-02-2024,Adults & Health,Br3Ak Free,Payments To Voluntary Sector,175,0,VENDOR
02-02-2024,Adults & Health,Br3Ak Free,Daycare - Private Contractors Payment,875,0,VENDOR
02-02-2024,Adults & Health,Br3Ak Free,Daycare - Private Contractors Payment,525,0,VENDOR
02-02-2024,Adults & Health,Br3Ak Free,Payments To Voluntary Sector,90,0,VENDOR
02-02-2024,Adults & Health,Br3Ak Free,Daycare - Private Contractors Payment,888,0,VENDOR
02-02-2024,Adults & Health,Br3Ak Free,Payments To Voluntary Sector,120,0,VENDOR
02-02-2024,Adults & Health,Br3Ak Free,Daycare - Private Contractors Payment,444,0,VENDOR
02-02-2024,Adults & Health,Br3Ak Free,Payments To Voluntary Sector,60,0,VENDOR
02-02-2024,Adults & Health,Br3Ak Free,Daycare - Private Contractors Payment,888,0,VENDOR
02-02-2024,Adults & Health,Br3Ak Free,Payments To Voluntary Sector,120,0,VENDOR
02-02-2024,Adults & Health,Br3Ak Free,Daycare - Private Contractors Payment,888,0,VENDOR
02-02-2024,Adults & Health,Br3Ak Free,Payments To Voluntary Sector,120,0,VENDOR
02-02-2024,Adults & Health,Br3Ak Free,Daycare - Private Contractors Payment,666,0,VENDOR
02-02-2024,Inclusive Economy & Housing,Populo Living Ltd,Licence And Permit Income,2800,0,NON COMMERCIAL SUPPLIER
02-02-2024,Adults & Health,Rhythmic Care UK Ltd,Home Care - Private Contractors Payment,435.89,0,COMMERCIAL SUPPLIER
02-02-2024,Adults & Health,Rhythmic Care UK Ltd,Home Care - Private Contractors Payment,186.81,0,COMMERCIAL SUPPLIER
02-02-2024,Adults & Health,Rhythmic Care UK Ltd,Home Care - Private Contractors Payment,570.01,0,COMMERCIAL SUPPLIER
02-02-2024,Adults & Health,Rhythmic Care UK Ltd,Home Care - Private Contractors Payment,914.89,0,COMMERCIAL SUPPLIER
02-02-2024,Adults & Health,Rhythmic Care UK Ltd,Home Care - Private Contractors Payment,449.28,0,COMMERCIAL SUPPLIER
02-02-2024,Adults & Health,Rhythmic Care UK Ltd,Daycare - Private Contractors Payment,61.56,0,COMMERCIAL SUPPLIER
02-02-2024,Adults & Health,Rhythmic Care UK Ltd,Home Care - Private Contractors Payment,682.29,0,COMMERCIAL SUPPLIER
02-02-2024,Adults & Health,Rhythmic Care UK Ltd,Daycare - Private Contractors Payment,61.56,0,COMMERCIAL SUPPLIER
02-02-2024,Adults & Health,Rhythmic Care UK Ltd,Home Care - Private Contractors Payment,449.28,0,COMMERCIAL SUPPLIER
02-02-2024,Adults & Health,Rhythmic Care UK Ltd,Home Care - Private Contractors Payment,682.29,0,COMMERCIAL SUPPLIER
02-02-2024,Adults & Health,Rhythmic Care UK Ltd,Daycare - Private Contractors Payment,10.8,0,COMMERCIAL SUPPLIER
02-02-2024,Adults & Health,Rhythmic Care UK Ltd,Home Care - Private Contractors Payment,449.28,0,COMMERCIAL SUPPLIER
02-02-2024,Adults & Health,Rhythmic Care UK Ltd,Home Care - Private Contractors Payment,449.28,0,COMMERCIAL SUPPLIER
02-02-2024,Adults & Health,Rhythmic Care UK Ltd,Home Care - Private Contractors Payment,682.29,0,COMMERCIAL SUPPLIER
02-02-2024,Adults & Health,Rhythmic Care UK Ltd,Home Care - Private Contractors Payment,682.29,0,COMMERCIAL SUPPLIER
02-02-2024,Adults & Health,Rhythmic Care UK Ltd,Home Care - Private Contractors Payment,46.17,0,COMMERCIAL SUPPLIER
02-02-2024,Adults & Health,Rhythmic Care UK Ltd,Home Care - Private Contractors Payment,46.17,0,COMMERCIAL SUPPLIER
02-02-2024,Adults & Health,Rhythmic Care UK Ltd,Home Care - Private Contractors Payment,46.17,0,COMMERCIAL SUPPLIER
02-02-2024,Adults & Health,Rhythmic Care UK Ltd,Home Care - Private Contractors Payment,20.52,0,COMMERCIAL SUPPLIER
02-02-2024,Adults & Health,Rhythmic Care UK Ltd,Home Care - Private Contractors Payment,323.19,0,COMMERCIAL SUPPLIER
02-02-2024,Adults & Health,Rhythmic Care UK Ltd,Home Care - Private Contractors Payment,143.64,0,COMMERCIAL SUPPLIER
02-02-2024,Adults & Health,Rhythmic Care UK Ltd,Home Care - Private Contractors Payment,287.28,0,COMMERCIAL SUPPLIER
02-02-2024,Adults & Health,Rhythmic Care UK Ltd,Home Care - Private Contractors Payment,287.28,0,COMMERCIAL SUPPLIER
02-02-2024,Adults & Health,Rhythmic Care UK Ltd,Home Care - Private Contractors Payment,287.28,0,COMMERCIAL SUPPLIER
02-02-2024,Adults & Health,Rhythmic Care UK Ltd,Home Care - Private Contractors Payment,415.53,0,COMMERCIAL SUPPLIER
02-02-2024,Adults & Health,Rhythmic Care UK Ltd,Home Care - Private Contractors Payment,251.37,0,COMMERCIAL SUPPLIER
02-02-2024,Adults & Health,Rhythmic Care UK Ltd,Home Care - Private Contractors Payment,251.37,0,COMMERCIAL SUPPLIER
02-02-2024,Adults & Health,Rhythmic Care UK Ltd,Daycare - Private Contractors Payment,-50.76,0,COMMERCIAL SUPPLIER
02-02-2024,Adults & Health,Rhythmic Care UK Ltd,Home Care - Private Contractors Payment,449.28,0,COMMERCIAL SUPPLIER
02-02-2024,Adults & Health,Rhythmic Care UK Ltd,Home Care - Private Contractors Payment,682.29,0,COMMERCIAL SUPPLIER
02-02-2024,Adults & Health,Rhythmic Care UK Ltd,Daycare - Private Contractors Payment,61.56,0,COMMERCIAL SUPPLIER
02-02-2024,Adults & Health,Rhythmic Care UK Ltd,Home Care - Private Contractors Payment,449.28,0,COMMERCIAL SUPPLIER
02-02-2024,Adults & Health,Rhythmic Care UK Ltd,Home Care - Private Contractors Payment,682.29,0,COMMERCIAL SUPPLIER
02-02-2024,Adults & Health,Rhythmic Care UK Ltd,Daycare - Private Contractors Payment,61.56,0,COMMERCIAL SUPPLIER
02-02-2024,Adults & Health,Rhythmic Care UK Ltd,Home Care - Private Contractors Payment,682.29,0,COMMERCIAL SUPPLIER
02-02-2024,Adults & Health,Rhythmic Care UK Ltd,Daycare - Private Contractors Payment,61.56,0,COMMERCIAL SUPPLIER
02-02-2024,Adults & Health,Rhythmic Care UK Ltd,Home Care - Private Contractors Payment,449.28,0,COMMERCIAL SUPPLIER
02-02-2024,Adults & Health,Rhythmic Care UK Ltd,Home Care - Private Contractors Payment,682.29,0,COMMERCIAL SUPPLIER
02-02-2024,Adults & Health,Rhythmic Care UK Ltd,Daycare - Private Contractors Payment,61.56,0,COMMERCIAL SUPPLIER
02-02-2024,Adults & Health,Rhythmic Care UK Ltd,Home Care - Private Contractors Payment,449.28,0,COMMERCIAL SUPPLIER
02-02-2024,Adults & Health,Rhythmic Care UK Ltd,Home Care - Private Contractors Payment,215.46,0,COMMERCIAL SUPPLIER
02-02-2024,Adults & Health,Rhythmic Care UK Ltd,Home Care - Private Contractors Payment,30.78,0,COMMERCIAL SUPPLIER
02-02-2024,Adults & Health,Rhythmic Care UK Ltd,Home Care - Private Contractors Payment,215.46,0,COMMERCIAL SUPPLIER
02-02-2024,Adults & Health,Rhythmic Care UK Ltd,Home Care - Private Contractors Payment,30.78,0,COMMERCIAL SUPPLIER
02-02-2024,Adults & Health,Rhythmic Care UK Ltd,Home Care - Private Contractors Payment,215.46,0,COMMERCIAL SUPPLIER
02-02-2024,Adults & Health,Rhythmic Care UK Ltd,Home Care - Private Contractors Payment,30.78,0,COMMERCIAL SUPPLIER
02-02-2024,Adults & Health,Rhythmic Care UK Ltd,Home Care - Private Contractors Payment,30.78,0,COMMERCIAL SUPPLIER
02-02-2024,Adults & Health,Rhythmic Care UK Ltd,Home Care - Private Contractors Payment,215.46,0,COMMERCIAL SUPPLIER
02-02-2024,Adults & Health,Rhythmic Care UK Ltd,Home Care - Private Contractors Payment,19.16,0,COMMERCIAL SUPPLIER
02-02-2024,Adults & Health,Rhythmic Care UK Ltd,Home Care - Private Contractors Payment,134.12,0,COMMERCIAL SUPPLIER
02-02-2024,Adults & Health,Rhythmic Care UK Ltd,Home Care - Private Contractors Payment,19.16,0,COMMERCIAL SUPPLIER
02-02-2024,Adults & Health,Rhythmic Care UK Ltd,Home Care - Private Contractors Payment,134.12,0,COMMERCIAL SUPPLIER
02-02-2024,Adults & Health,Rhythmic Care UK Ltd,Home Care - Private Contractors Payment,134.12,0,COMMERCIAL SUPPLIER
02-02-2024,Adults & Health,Rhythmic Care UK Ltd,Home Care - Private Contractors Payment,19.16,0,COMMERCIAL SUPPLIER
02-02-2024,Adults & Health,Rhythmic Care UK Ltd,Home Care - Private Contractors Payment,134.12,0,COMMERCIAL SUPPLIER
02-02-2024,Adults & Health,Rhythmic Care UK Ltd,Home Care - Private Contractors Payment,19.16,0,COMMERCIAL SUPPLIER
02-02-2024,Adults & Health,Rhythmic Care UK Ltd,Home Care - Private Contractors Payment,323.19,0,COMMERCIAL SUPPLIER
02-02-2024,Adults & Health,Rhythmic Care UK Ltd,Home Care - Private Contractors Payment,251.37,0,COMMERCIAL SUPPLIER
02-02-2024,Adults & Health,Rhythmic Care UK Ltd,Home Care - Private Contractors Payment,610.47,0,COMMERCIAL SUPPLIER
02-02-2024,Adults & Health,Rhythmic Care UK Ltd,Home Care - Private Contractors Payment,805.41,0,COMMERCIAL SUPPLIER
02-02-2024,Adults & Health,Rhythmic Care UK Ltd,Home Care - Private Contractors Payment,610.47,0,COMMERCIAL SUPPLIER
02-02-2024,Adults & Health,De Vere Care Partnership Ltd,Home Care - Private Contractors Payment,92.34,0,NON COMMERCIAL SUPPLIER
02-02-2024,Adults & Health,De Vere Care Partnership Ltd,Home Care - Private Contractors Payment,82.08,0,NON COMMERCIAL SUPPLIER
02-02-2024,Adults & Health,De Vere Care Partnership Ltd,Home Care - Private Contractors Payment,41.04,0,NON COMMERCIAL SUPPLIER
02-02-2024,Adults & Health,De Vere Care Partnership Ltd,Home Care - Private Contractors Payment,41.04,0,NON COMMERCIAL SUPPLIER
02-02-2024,Adults & Health,De Vere Care Partnership Ltd,Home Care - Private Contractors Payment,251.37,0,NON COMMERCIAL SUPPLIER
02-02-2024,Adults & Health,De Vere Care Partnership Ltd,Daycare - Private Contractors Payment,41.04,0,NON COMMERCIAL SUPPLIER
02-02-2024,Adults & Health,De Vere Care Partnership Ltd,Home Care - Private Contractors Payment,235.98,0,NON COMMERCIAL SUPPLIER
02-02-2024,Adults & Health,De Vere Care Partnership Ltd,Home Care - Private Contractors Payment,574.56,0,NON COMMERCIAL SUPPLIER
02-02-2024,Adults & Health,De Vere Care Partnership Ltd,Home Care - Private Contractors Payment,20.52,0,NON COMMERCIAL SUPPLIER
02-02-2024,Adults & Health,De Vere Care Partnership Ltd,Home Care - Private Contractors Payment,415.53,0,NON COMMERCIAL SUPPLIER
02-02-2024,Adults & Health,De Vere Care Partnership Ltd,Home Care - Private Contractors Payment,143.64,0,NON COMMERCIAL SUPPLIER
02-02-2024,Adults & Health,De Vere Care Partnership Ltd,Home Care - Private Contractors Payment,441.18,0,NON COMMERCIAL SUPPLIER
02-02-2024,Adults & Health,De Vere Care Partnership Ltd,Home Care - Private Contractors Payment,430.92,0,NON COMMERCIAL SUPPLIER
02-02-2024,Adults & Health,De Vere Care Partnership Ltd,Home Care - Private Contractors Payment,30.78,0,NON COMMERCIAL SUPPLIER
02-02-2024,Adults & Health,De Vere Care Partnership Ltd,Home Care - Private Contractors Payment,502.74,0,NON COMMERCIAL SUPPLIER
02-02-2024,Adults & Health,De Vere Care Partnership Ltd,Home Care - Private Contractors Payment,184.68,0,NON COMMERCIAL SUPPLIER
02-02-2024,Adults & Health,De Vere Care Partnership Ltd,Home Care - Private Contractors Payment,179.55,0,NON COMMERCIAL SUPPLIER
02-02-2024,Adults & Health,De Vere Care Partnership Ltd,Daycare - Private Contractors Payment,20.52,0,NON COMMERCIAL SUPPLIER
02-02-2024,Adults & Health,De Vere Care Partnership Ltd,Home Care - Private Contractors Payment,107.73,0,NON COMMERCIAL SUPPLIER
02-02-2024,Adults & Health,De Vere Care Partnership Ltd,Home Care - Private Contractors Payment,107.73,0,NON COMMERCIAL SUPPLIER
02-02-2024,Adults & Health,De Vere Care Partnership Ltd,Home Care - Private Contractors Payment,61.56,0,NON COMMERCIAL SUPPLIER
02-02-2024,Adults & Health,De Vere Care Partnership Ltd,Home Care - Private Contractors Payment,107.73,0,NON COMMERCIAL SUPPLIER
02-02-2024,Adults & Health,De Vere Care Partnership Ltd,Daycare - Private Contractors Payment,82.08,0,NON COMMERCIAL SUPPLIER
02-02-2024,Adults & Health,De Vere Care Partnership Ltd,Daycare - Private Contractors Payment,20.52,0,NON COMMERCIAL SUPPLIER
02-02-2024,Adults & Health,De Vere Care Partnership Ltd,Home Care - Private Contractors Payment,251.37,0,NON COMMERCIAL SUPPLIER
02-02-2024,Adults & Health,De Vere Care Partnership Ltd,Daycare - Private Contractors Payment,82.08,0,NON COMMERCIAL SUPPLIER
02-02-2024,Adults & Health,De Vere Care Partnership Ltd,Daycare - Private Contractors Payment,41.04,0,NON COMMERCIAL SUPPLIER
02-02-2024,Adults & Health,De Vere Care Partnership Ltd,Home Care - Private Contractors Payment,574.56,0,NON COMMERCIAL SUPPLIER
02-02-2024,Adults & Health,De Vere Care Partnership Ltd,Daycare - Private Contractors Payment,82.08,0,NON COMMERCIAL SUPPLIER
02-02-2024,Adults & Health,De Vere Care Partnership Ltd,Home Care - Private Contractors Payment,143.64,0,NON COMMERCIAL SUPPLIER
02-02-2024,Adults & Health,De Vere Care Partnership Ltd,Home Care - Private Contractors Payment,441.18,0,NON COMMERCIAL SUPPLIER
02-02-2024,Adults & Health,De Vere Care Partnership Ltd,Home Care - Private Contractors Payment,107.73,0,NON COMMERCIAL SUPPLIER
02-02-2024,Adults & Health,De Vere Care Partnership Ltd,Home Care - Private Contractors Payment,205.2,0,NON COMMERCIAL SUPPLIER
02-02-2024,Adults & Health,De Vere Care Partnership Ltd,Home Care - Private Contractors Payment,61.56,0,NON COMMERCIAL SUPPLIER
02-02-2024,Adults & Health,De Vere Care Partnership Ltd,Home Care - Private Contractors Payment,143.64,0,NON COMMERCIAL SUPPLIER
02-02-2024,Adults & Health,De Vere Care Partnership Ltd,Home Care - Private Contractors Payment,143.64,0,NON COMMERCIAL SUPPLIER
02-02-2024,Adults & Health,De Vere Care Partnership Ltd,Home Care - Private Contractors Payment,76.95,0,NON COMMERCIAL SUPPLIER
02-02-2024,Adults & Health,De Vere Care Partnership Ltd,Home Care - Private Contractors Payment,430.92,0,NON COMMERCIAL SUPPLIER
02-02-2024,Adults & Health,De Vere Care Partnership Ltd,Daycare - Private Contractors Payment,41.04,0,NON COMMERCIAL SUPPLIER
02-02-2024,Adults & Health,De Vere Care Partnership Ltd,Home Care - Private Contractors Payment,261.63,0,NON COMMERCIAL SUPPLIER
02-02-2024,Adults & Health,De Vere Care Partnership Ltd,Home Care - Private Contractors Payment,20.52,0,NON COMMERCIAL SUPPLIER
02-02-2024,Adults & Health,De Vere Care Partnership Ltd,Home Care - Private Contractors Payment,466.83,0,NON COMMERCIAL SUPPLIER
02-02-2024,Adults & Health,De Vere Care Partnership Ltd,Home Care - Private Contractors Payment,107.73,0,NON COMMERCIAL SUPPLIER
02-02-2024,Adults & Health,De Vere Care Partnership Ltd,Home Care - Private Contractors Payment,41.04,0,NON COMMERCIAL SUPPLIER
02-02-2024,Adults & Health,De Vere Care Partnership Ltd,Home Care - Private Contractors Payment,179.55,0,NON COMMERCIAL SUPPLIER
02-02-2024,Adults & Health,De Vere Care Partnership Ltd,Reablement,107.73,0,NON COMMERCIAL SUPPLIER
02-02-2024,Adults & Health,De Vere Care Partnership Ltd,Home Care - Private Contractors Payment,61.56,0,NON COMMERCIAL SUPPLIER
02-02-2024,Adults & Health,De Vere Care Partnership Ltd,Home Care - Private Contractors Payment,143.64,0,NON COMMERCIAL SUPPLIER
02-02-2024,Adults & Health,De Vere Care Partnership Ltd,Home Care - Private Contractors Payment,287.28,0,NON COMMERCIAL SUPPLIER
02-02-2024,Adults & Health,De Vere Care Partnership Ltd,Home Care - Private Contractors Payment,107.73,0,NON COMMERCIAL SUPPLIER
02-02-2024,Adults & Health,De Vere Care Partnership Ltd,Home Care - Private Contractors Payment,425.79,0,NON COMMERCIAL SUPPLIER
02-02-2024,Adults & Health,De Vere Care Partnership Ltd,Home Care - Private Contractors Payment,143.64,0,NON COMMERCIAL SUPPLIER
02-02-2024,Adults & Health,De Vere Care Partnership Ltd,Home Care - Private Contractors Payment,61.56,0,NON COMMERCIAL SUPPLIER
02-02-2024,Adults & Health,De Vere Care Partnership Ltd,Home Care - Private Contractors Payment,20.52,0,NON COMMERCIAL SUPPLIER
02-02-2024,Adults & Health,De Vere Care Partnership Ltd,Home Care - Private Contractors Payment,466.83,0,NON COMMERCIAL SUPPLIER
02-02-2024,Adults & Health,De Vere Care Partnership Ltd,Home Care - Private Contractors Payment,143.64,0,NON COMMERCIAL SUPPLIER
02-02-2024,Adults & Health,De Vere Care Partnership Ltd,Daycare - Private Contractors Payment,246.24,0,NON COMMERCIAL SUPPLIER
02-02-2024,Adults & Health,De Vere Care Partnership Ltd,Home Care - Private Contractors Payment,30.78,0,NON COMMERCIAL SUPPLIER
02-02-2024,Adults & Health,De Vere Care Partnership Ltd,Daycare - Private Contractors Payment,41.04,0,NON COMMERCIAL SUPPLIER
02-02-2024,Adults & Health,De Vere Care Partnership Ltd,Reablement,143.64,0,NON COMMERCIAL SUPPLIER
02-02-2024,Adults & Health,De Vere Care Partnership Ltd,Home Care - Private Contractors Payment,610.47,0,NON COMMERCIAL SUPPLIER
02-02-2024,Adults & Health,De Vere Care Partnership Ltd,Home Care - Private Contractors Payment,179.55,0,NON COMMERCIAL SUPPLIER
02-02-2024,Adults & Health,De Vere Care Partnership Ltd,Daycare - Private Contractors Payment,41.04,0,NON COMMERCIAL SUPPLIER
02-02-2024,Adults & Health,De Vere Care Partnership Ltd,Home Care - Private Contractors Payment,107.73,0,NON COMMERCIAL SUPPLIER
02-02-2024,Adults & Health,De Vere Care Partnership Ltd,Home Care - Private Contractors Payment,636.12,0,NON COMMERCIAL SUPPLIER
02-02-2024,Adults & Health,De Vere Care Partnership Ltd,Home Care - Private Contractors Payment,30.78,0,NON COMMERCIAL SUPPLIER
02-02-2024,Adults & Health,De Vere Care Partnership Ltd,Home Care - Private Contractors Payment,41.04,0,NON COMMERCIAL SUPPLIER
02-02-2024,Adults & Health,De Vere Care Partnership Ltd,Reablement,107.73,0,NON COMMERCIAL SUPPLIER
02-02-2024,Adults & Health,De Vere Care Partnership Ltd,Home Care - Private Contractors Payment,466.83,0,NON COMMERCIAL SUPPLIER
02-02-2024,Adults & Health,De Vere Care Partnership Ltd,Home Care - Private Contractors Payment,143.64,0,NON COMMERCIAL SUPPLIER
02-02-2024,Adults & Health,De Vere Care Partnership Ltd,Home Care - Private Contractors Payment,610.47,0,NON COMMERCIAL SUPPLIER
02-02-2024,Adults & Health,De Vere Care Partnership Ltd,Home Care - Private Contractors Payment,20.52,0,NON COMMERCIAL SUPPLIER
02-02-2024,Adults & Health,De Vere Care Partnership Ltd,Home Care - Private Contractors Payment,71.82,0,NON COMMERCIAL SUPPLIER
02-02-2024,Adults & Health,De Vere Care Partnership Ltd,Home Care - Private Contractors Payment,20.52,0,NON COMMERCIAL SUPPLIER
02-02-2024,Adults & Health,De Vere Care Partnership Ltd,Daycare - Private Contractors Payment,20.52,0,NON COMMERCIAL SUPPLIER
02-02-2024,Adults & Health,De Vere Care Partnership Ltd,Home Care - Private Contractors Payment,20.52,0,NON COMMERCIAL SUPPLIER
02-02-2024,Adults & Health,De Vere Care Partnership Ltd,Home Care - Private Contractors Payment,20.52,0,NON COMMERCIAL SUPPLIER
02-02-2024,Adults & Health,De Vere Care Partnership Ltd,Daycare - Private Contractors Payment,41.04,0,NON COMMERCIAL SUPPLIER
02-02-2024,Adults & Health,De Vere Care Partnership Ltd,Home Care - Private Contractors Payment,143.64,0,NON COMMERCIAL SUPPLIER
02-02-2024,Adults & Health,De Vere Care Partnership Ltd,Home Care - Private Contractors Payment,312.93,0,NON COMMERCIAL SUPPLIER
02-02-2024,Adults & Health,De Vere Care Partnership Ltd,Home Care - Private Contractors Payment,76.95,0,NON COMMERCIAL SUPPLIER
02-02-2024,Adults & Health,De Vere Care Partnership Ltd,Home Care - Private Contractors Payment,20.52,0,NON COMMERCIAL SUPPLIER
02-02-2024,Adults & Health,De Vere Care Partnership Ltd,Home Care - Private Contractors Payment,718.2,0,NON COMMERCIAL SUPPLIER
02-02-2024,Adults & Health,De Vere Care Partnership Ltd,Home Care - Private Contractors Payment,107.73,0,NON COMMERCIAL SUPPLIER
02-02-2024,Adults & Health,De Vere Care Partnership Ltd,Home Care - Private Contractors Payment,20.52,0,NON COMMERCIAL SUPPLIER
02-02-2024,Adults & Health,De Vere Care Partnership Ltd,Reablement,20.52,0,NON COMMERCIAL SUPPLIER
02-02-2024,Adults & Health,De Vere Care Partnership Ltd,Home Care - Private Contractors Payment,30.78,0,NON COMMERCIAL SUPPLIER
02-02-2024,Adults & Health,De Vere Care Partnership Ltd,Daycare - Private Contractors Payment,41.04,0,NON COMMERCIAL SUPPLIER
02-02-2024,Adults & Health,De Vere Care Partnership Ltd,Daycare - Private Contractors Payment,20.52,0,NON COMMERCIAL SUPPLIER
02-02-2024,Adults & Health,De Vere Care Partnership Ltd,Home Care - Private Contractors Payment,143.64,0,NON COMMERCIAL SUPPLIER
02-02-2024,Adults & Health,De Vere Care Partnership Ltd,Home Care - Private Contractors Payment,466.83,0,NON COMMERCIAL SUPPLIER
02-02-2024,Adults & Health,De Vere Care Partnership Ltd,Home Care - Private Contractors Payment,179.55,0,NON COMMERCIAL SUPPLIER
02-02-2024,Adults & Health,De Vere Care Partnership Ltd,Home Care - Private Contractors Payment,61.56,0,NON COMMERCIAL SUPPLIER
02-02-2024,Adults & Health,De Vere Care Partnership Ltd,Respite Care - Private Contractors Payment,61.56,0,NON COMMERCIAL SUPPLIER
02-02-2024,Adults & Health,De Vere Care Partnership Ltd,Home Care - Private Contractors Payment,395.01,0,NON COMMERCIAL SUPPLIER
02-02-2024,Adults & Health,De Vere Care Partnership Ltd,Home Care - Private Contractors Payment,861.84,0,NON COMMERCIAL SUPPLIER
02-02-2024,Adults & Health,De Vere Care Partnership Ltd,Home Care - Private Contractors Payment,179.55,0,NON COMMERCIAL SUPPLIER
02-02-2024,Adults & Health,De Vere Care Partnership Ltd,Daycare - Private Contractors Payment,20.52,0,NON COMMERCIAL SUPPLIER
02-02-2024,Adults & Health,De Vere Care Partnership Ltd,Home Care - Private Contractors Payment,1795.5,0,NON COMMERCIAL SUPPLIER
02-02-2024,Adults & Health,De Vere Care Partnership Ltd,Home Care - Private Contractors Payment,251.37,0,NON COMMERCIAL SUPPLIER
02-02-2024,Adults & Health,De Vere Care Partnership Ltd,Home Care - Private Contractors Payment,20.52,0,NON COMMERCIAL SUPPLIER
02-02-2024,Adults & Health,De Vere Care Partnership Ltd,Home Care - Private Contractors Payment,61.56,0,NON COMMERCIAL SUPPLIER
02-02-2024,Adults & Health,De Vere Care Partnership Ltd,Home Care - Private Contractors Payment,395.01,0,NON COMMERCIAL SUPPLIER
02-02-2024,Adults & Health,De Vere Care Partnership Ltd,Home Care - Private Contractors Payment,20.52,0,NON COMMERCIAL SUPPLIER
02-02-2024,Adults & Health,De Vere Care Partnership Ltd,Home Care - Private Contractors Payment,41.04,0,NON COMMERCIAL SUPPLIER
02-02-2024,Adults & Health,De Vere Care Partnership Ltd,Home Care - Private Contractors Payment,205.2,0,NON COMMERCIAL SUPPLIER
02-02-2024,Adults & Health,De Vere Care Partnership Ltd,Home Care - Private Contractors Payment,215.46,0,NON COMMERCIAL SUPPLIER
02-02-2024,Adults & Health,De Vere Care Partnership Ltd,Home Care - Private Contractors Payment,395.01,0,NON COMMERCIAL SUPPLIER
02-02-2024,Adults & Health,De Vere Care Partnership Ltd,Home Care - Private Contractors Payment,143.64,0,NON COMMERCIAL SUPPLIER
02-02-2024,Adults & Health,De Vere Care Partnership Ltd,Home Care - Private Contractors Payment,359.1,0,NON COMMERCIAL SUPPLIER
02-02-2024,Adults & Health,De Vere Care Partnership Ltd,Home Care - Private Contractors Payment,143.64,0,NON COMMERCIAL SUPPLIER
02-02-2024,Adults & Health,De Vere Care Partnership Ltd,Home Care - Private Contractors Payment,71.82,0,NON COMMERCIAL SUPPLIER
02-02-2024,Adults & Health,De Vere Care Partnership Ltd,Home Care - Private Contractors Payment,610.47,0,NON COMMERCIAL SUPPLIER
02-02-2024,Adults & Health,De Vere Care Partnership Ltd,Home Care - Private Contractors Payment,610.47,0,NON COMMERCIAL SUPPLIER
02-02-2024,Adults & Health,De Vere Care Partnership Ltd,Daycare - Private Contractors Payment,246.24,0,NON COMMERCIAL SUPPLIER
02-02-2024,Adults & Health,De Vere Care Partnership Ltd,Home Care - Private Contractors Payment,107.73,0,NON COMMERCIAL SUPPLIER
02-02-2024,Adults & Health,De Vere Care Partnership Ltd,Home Care - Private Contractors Payment,323.19,0,NON COMMERCIAL SUPPLIER
02-02-2024,Adults & Health,De Vere Care Partnership Ltd,Home Care - Private Contractors Payment,754.11,0,NON COMMERCIAL SUPPLIER
02-02-2024,Adults & Health,De Vere Care Partnership Ltd,Reablement,107.73,0,NON COMMERCIAL SUPPLIER
02-02-2024,Adults & Health,De Vere Care Partnership Ltd,Home Care - Private Contractors Payment,179.55,0,NON COMMERCIAL SUPPLIER
02-02-2024,Adults & Health,De Vere Care Partnership Ltd,Daycare - Private Contractors Payment,41.04,0,NON COMMERCIAL SUPPLIER
02-02-2024,Adults & Health,De Vere Care Partnership Ltd,Home Care - Private Contractors Payment,41.04,0,NON COMMERCIAL SUPPLIER
02-02-2024,Adults & Health,De Vere Care Partnership Ltd,Daycare - Private Contractors Payment,184.68,0,NON COMMERCIAL SUPPLIER
02-02-2024,Adults & Health,De Vere Care Partnership Ltd,Home Care - Private Contractors Payment,51.3,0,NON COMMERCIAL SUPPLIER
02-02-2024,Adults & Health,De Vere Care Partnership Ltd,Home Care - Private Contractors Payment,251.37,0,NON COMMERCIAL SUPPLIER
02-02-2024,Adults & Health,De Vere Care Partnership Ltd,Home Care - Private Contractors Payment,861.84,0,NON COMMERCIAL SUPPLIER
02-02-2024,Adults & Health,De Vere Care Partnership Ltd,Home Care - Private Contractors Payment,61.56,0,NON COMMERCIAL SUPPLIER
02-02-2024,Adults & Health,De Vere Care Partnership Ltd,Home Care - Private Contractors Payment,251.37,0,NON COMMERCIAL SUPPLIER
02-02-2024,Adults & Health,De Vere Care Partnership Ltd,Daycare - Private Contractors Payment,82.08,0,NON COMMERCIAL SUPPLIER
02-02-2024,Adults & Health,De Vere Care Partnership Ltd,Home Care - Private Contractors Payment,143.64,0,NON COMMERCIAL SUPPLIER
02-02-2024,Adults & Health,De Vere Care Partnership Ltd,Home Care - Private Contractors Payment,251.37,0,NON COMMERCIAL SUPPLIER
02-02-2024,Adults & Health,De Vere Care Partnership Ltd,Home Care - Private Contractors Payment,107.73,0,NON COMMERCIAL SUPPLIER
02-02-2024,Adults & Health,De Vere Care Partnership Ltd,Home Care - Private Contractors Payment,15.39,0,NON COMMERCIAL SUPPLIER
02-02-2024,Adults & Health,De Vere Care Partnership Ltd,Home Care - Private Contractors Payment,20.52,0,NON COMMERCIAL SUPPLIER
02-02-2024,Adults & Health,De Vere Care Partnership Ltd,Home Care - Private Contractors Payment,20.52,0,NON COMMERCIAL SUPPLIER
02-02-2024,Adults & Health,De Vere Care Partnership Ltd,Home Care - Private Contractors Payment,754.11,0,NON COMMERCIAL SUPPLIER
02-02-2024,Adults & Health,De Vere Care Partnership Ltd,Home Care - Private Contractors Payment,477.09,0,NON COMMERCIAL SUPPLIER
02-02-2024,Adults & Health,De Vere Care Partnership Ltd,Daycare - Private Contractors Payment,82.08,0,NON COMMERCIAL SUPPLIER
02-02-2024,Adults & Health,De Vere Care Partnership Ltd,Home Care - Private Contractors Payment,266.76,0,NON COMMERCIAL SUPPLIER
02-02-2024,Adults & Health,De Vere Care Partnership Ltd,Home Care - Private Contractors Payment,610.47,0,NON COMMERCIAL SUPPLIER
02-02-2024,Adults & Health,De Vere Care Partnership Ltd,Home Care - Private Contractors Payment,718.2,0,NON COMMERCIAL SUPPLIER
02-02-2024,Adults & Health,De Vere Care Partnership Ltd,Home Care - Private Contractors Payment,179.55,0,NON COMMERCIAL SUPPLIER
02-02-2024,Adults & Health,De Vere Care Partnership Ltd,Home Care - Private Contractors Payment,2082.78,0,NON COMMERCIAL SUPPLIER
02-02-2024,Adults & Health,De Vere Care Partnership Ltd,Home Care - Private Contractors Payment,107.73,0,NON COMMERCIAL SUPPLIER
02-02-2024,Adults & Health,De Vere Care Partnership Ltd,Home Care - Private Contractors Payment,30.78,0,NON COMMERCIAL SUPPLIER
02-02-2024,Adults & Health,De Vere Care Partnership Ltd,Home Care - Private Contractors Payment,323.19,0,NON COMMERCIAL SUPPLIER
02-02-2024,Adults & Health,De Vere Care Partnership Ltd,Home Care - Private Contractors Payment,251.37,0,NON COMMERCIAL SUPPLIER
02-02-2024,Adults & Health,De Vere Care Partnership Ltd,Home Care - Private Contractors Payment,107.73,0,NON COMMERCIAL SUPPLIER
02-02-2024,Adults & Health,De Vere Care Partnership Ltd,Home Care - Private Contractors Payment,184.68,0,NON COMMERCIAL SUPPLIER
02-02-2024,Adults & Health,De Vere Care Partnership Ltd,Home Care - Private Contractors Payment,107.73,0,NON COMMERCIAL SUPPLIER
02-02-2024,Adults & Health,De Vere Care Partnership Ltd,Home Care - Private Contractors Payment,251.37,0,NON COMMERCIAL SUPPLIER
02-02-2024,Adults & Health,De Vere Care Partnership Ltd,Home Care - Private Contractors Payment,20.52,0,NON COMMERCIAL SUPPLIER
02-02-2024,Adults & Health,De Vere Care Partnership Ltd,Home Care - Private Contractors Payment,143.64,0,NON COMMERCIAL SUPPLIER
02-02-2024,Adults & Health,De Vere Care Partnership Ltd,Home Care - Private Contractors Payment,1436.4,0,NON COMMERCIAL SUPPLIER
02-02-2024,Adults & Health,De Vere Care Partnership Ltd,Home Care - Private Contractors Payment,179.55,0,NON COMMERCIAL SUPPLIER
02-02-2024,Adults & Health,De Vere Care Partnership Ltd,Home Care - Private Contractors Payment,430.92,0,NON COMMERCIAL SUPPLIER
02-02-2024,Adults & Health,De Vere Care Partnership Ltd,Home Care - Private Contractors Payment,143.64,0,NON COMMERCIAL SUPPLIER
02-02-2024,Adults & Health,De Vere Care Partnership Ltd,Home Care - Private Contractors Payment,610.47,0,NON COMMERCIAL SUPPLIER
02-02-2024,Adults & Health,De Vere Care Partnership Ltd,Home Care - Private Contractors Payment,143.64,0,NON COMMERCIAL SUPPLIER
02-02-2024,Adults & Health,De Vere Care Partnership Ltd,Home Care - Private Contractors Payment,159.03,0,NON COMMERCIAL SUPPLIER
02-02-2024,Adults & Health,De Vere Care Partnership Ltd,Home Care - Private Contractors Payment,82.08,0,NON COMMERCIAL SUPPLIER
02-02-2024,Adults & Health,De Vere Care Partnership Ltd,Respite Care - Private Contractors Payment,102.6,0,NON COMMERCIAL SUPPLIER
02-02-2024,Adults & Health,De Vere Care Partnership Ltd,Home Care - Private Contractors Payment,143.64,0,NON COMMERCIAL SUPPLIER
02-02-2024,Adults & Health,De Vere Care Partnership Ltd,Home Care - Private Contractors Payment,71.82,0,NON COMMERCIAL SUPPLIER
02-02-2024,Adults & Health,De Vere Care Partnership Ltd,Daycare - Private Contractors Payment,20.52,0,NON COMMERCIAL SUPPLIER
02-02-2024,Adults & Health,De Vere Care Partnership Ltd,Home Care - Private Contractors Payment,241.11,0,NON COMMERCIAL SUPPLIER
02-02-2024,Adults & Health,De Vere Care Partnership Ltd,Daycare - Private Contractors Payment,41.04,0,NON COMMERCIAL SUPPLIER
02-02-2024,Adults & Health,De Vere Care Partnership Ltd,Home Care - Private Contractors Payment,718.2,0,NON COMMERCIAL SUPPLIER
02-02-2024,Adults & Health,De Vere Care Partnership Ltd,Home Care - Private Contractors Payment,466.83,0,NON COMMERCIAL SUPPLIER
02-02-2024,Adults & Health,De Vere Care Partnership Ltd,Home Care - Private Contractors Payment,323.19,0,NON COMMERCIAL SUPPLIER
02-02-2024,Adults & Health,De Vere Care Partnership Ltd,Home Care - Private Contractors Payment,41.04,0,NON COMMERCIAL SUPPLIER
02-02-2024,Adults & Health,De Vere Care Partnership Ltd,Home Care - Private Contractors Payment,20.52,0,NON COMMERCIAL SUPPLIER
02-02-2024,Adults & Health,De Vere Care Partnership Ltd,Home Care - Private Contractors Payment,143.64,0,NON COMMERCIAL SUPPLIER
02-02-2024,Adults & Health,De Vere Care Partnership Ltd,Home Care - Private Contractors Payment,143.64,0,NON COMMERCIAL SUPPLIER
02-02-2024,Adults & Health,De Vere Care Partnership Ltd,Home Care - Private Contractors Payment,184.68,0,NON COMMERCIAL SUPPLIER
02-02-2024,Adults & Health,De Vere Care Partnership Ltd,Home Care - Private Contractors Payment,107.73,0,NON COMMERCIAL SUPPLIER
02-02-2024,Adults & Health,De Vere Care Partnership Ltd,Home Care - Private Contractors Payment,143.64,0,NON COMMERCIAL SUPPLIER
02-02-2024,Adults & Health,De Vere Care Partnership Ltd,Home Care - Private Contractors Payment,251.37,0,NON COMMERCIAL SUPPLIER
02-02-2024,Adults & Health,De Vere Care Partnership Ltd,Home Care - Private Contractors Payment,251.37,0,NON COMMERCIAL SUPPLIER
02-02-2024,Adults & Health,De Vere Care Partnership Ltd,Daycare - Private Contractors Payment,30.78,0,NON COMMERCIAL SUPPLIER
02-02-2024,Adults & Health,De Vere Care Partnership Ltd,Home Care - Private Contractors Payment,41.04,0,NON COMMERCIAL SUPPLIER
02-02-2024,Adults & Health,De Vere Care Partnership Ltd,Home Care - Private Contractors Payment,20.52,0,NON COMMERCIAL SUPPLIER
02-02-2024,Adults & Health,De Vere Care Partnership Ltd,Home Care - Private Contractors Payment,71.82,0,NON COMMERCIAL SUPPLIER
02-02-2024,Adults & Health,De Vere Care Partnership Ltd,Home Care - Private Contractors Payment,20.52,0,NON COMMERCIAL SUPPLIER
02-02-2024,Adults & Health,De Vere Care Partnership Ltd,Home Care - Private Contractors Payment,323.19,0,NON COMMERCIAL SUPPLIER
02-02-2024,Adults & Health,De Vere Care Partnership Ltd,Home Care - Private Contractors Payment,61.56,0,NON COMMERCIAL SUPPLIER
02-02-2024,Adults & Health,De Vere Care Partnership Ltd,Home Care - Private Contractors Payment,184.68,0,NON COMMERCIAL SUPPLIER
02-02-2024,Adults & Health,De Vere Care Partnership Ltd,Reablement,82.08,0,NON COMMERCIAL SUPPLIER
02-02-2024,Adults & Health,De Vere Care Partnership Ltd,Home Care - Private Contractors Payment,61.56,0,NON COMMERCIAL SUPPLIER
02-02-2024,Adults & Health,De Vere Care Partnership Ltd,Home Care - Private Contractors Payment,20.52,0,NON COMMERCIAL SUPPLIER
02-02-2024,Adults & Health,De Vere Care Partnership Ltd,Reablement,51.3,0,NON COMMERCIAL SUPPLIER
02-02-2024,Adults & Health,De Vere Care Partnership Ltd,Reablement,215.46,0,NON COMMERCIAL SUPPLIER
02-02-2024,Adults & Health,De Vere Care Partnership Ltd,Reablement,107.73,0,NON COMMERCIAL SUPPLIER
02-02-2024,Adults & Health,De Vere Care Partnership Ltd,Home Care - Private Contractors Payment,359.1,0,NON COMMERCIAL SUPPLIER
02-02-2024,Adults & Health,De Vere Care Partnership Ltd,Home Care - Private Contractors Payment,143.64,0,NON COMMERCIAL SUPPLIER
02-02-2024,Adults & Health,De Vere Care Partnership Ltd,Home Care - Private Contractors Payment,179.55,0,NON COMMERCIAL SUPPLIER
02-02-2024,Adults & Health,De Vere Care Partnership Ltd,Home Care - Private Contractors Payment,20.52,0,NON COMMERCIAL SUPPLIER
02-02-2024,Adults & Health,De Vere Care Partnership Ltd,Home Care - Private Contractors Payment,107.73,0,NON COMMERCIAL SUPPLIER
02-02-2024,Adults & Health,De Vere Care Partnership Ltd,Home Care - Private Contractors Payment,466.83,0,NON COMMERCIAL SUPPLIER
02-02-2024,Adults & Health,De Vere Care Partnership Ltd,Daycare - Private Contractors Payment,82.08,0,NON COMMERCIAL SUPPLIER
02-02-2024,Adults & Health,De Vere Care Partnership Ltd,Home Care - Private Contractors Payment,1436.4,0,NON COMMERCIAL SUPPLIER
02-02-2024,Adults & Health,De Vere Care Partnership Ltd,Daycare - Private Contractors Payment,30.78,0,NON COMMERCIAL SUPPLIER
02-02-2024,Adults & Health,De Vere Care Partnership Ltd,Home Care - Private Contractors Payment,71.82,0,NON COMMERCIAL SUPPLIER
02-02-2024,Adults & Health,De Vere Care Partnership Ltd,Home Care - Private Contractors Payment,323.19,0,NON COMMERCIAL SUPPLIER
02-02-2024,Adults & Health,De Vere Care Partnership Ltd,Home Care - Private Contractors Payment,20.52,0,NON COMMERCIAL SUPPLIER
02-02-2024,Adults & Health,De Vere Care Partnership Ltd,Home Care - Private Contractors Payment,20.52,0,NON COMMERCIAL SUPPLIER
02-02-2024,Adults & Health,De Vere Care Partnership Ltd,Home Care - Private Contractors Payment,143.64,0,NON COMMERCIAL SUPPLIER
02-02-2024,Adults & Health,De Vere Care Partnership Ltd,Home Care - Private Contractors Payment,251.37,0,NON COMMERCIAL SUPPLIER
02-02-2024,Adults & Health,De Vere Care Partnership Ltd,Home Care - Private Contractors Payment,143.64,0,NON COMMERCIAL SUPPLIER
02-02-2024,Adults & Health,De Vere Care Partnership Ltd,Home Care - Private Contractors Payment,251.37,0,NON COMMERCIAL SUPPLIER
02-02-2024,Adults & Health,De Vere Care Partnership Ltd,Home Care - Private Contractors Payment,143.64,0,NON COMMERCIAL SUPPLIER
02-02-2024,Adults & Health,De Vere Care Partnership Ltd,Home Care - Private Contractors Payment,251.37,0,NON COMMERCIAL SUPPLIER
02-02-2024,Adults & Health,De Vere Care Partnership Ltd,Daycare - Private Contractors Payment,20.52,0,NON COMMERCIAL SUPPLIER
02-02-2024,Adults & Health,De Vere Care Partnership Ltd,Home Care - Private Contractors Payment,215.46,0,NON COMMERCIAL SUPPLIER
02-02-2024,Adults & Health,De Vere Care Partnership Ltd,Home Care - Private Contractors Payment,179.55,0,NON COMMERCIAL SUPPLIER
02-02-2024,Adults & Health,De Vere Care Partnership Ltd,Home Care - Private Contractors Payment,179.55,0,NON COMMERCIAL SUPPLIER
02-02-2024,Adults & Health,De Vere Care Partnership Ltd,Home Care - Private Contractors Payment,251.37,0,NON COMMERCIAL SUPPLIER
02-02-2024,Adults & Health,De Vere Care Partnership Ltd,Daycare - Private Contractors Payment,20.52,0,NON COMMERCIAL SUPPLIER
02-02-2024,Adults & Health,De Vere Care Partnership Ltd,Home Care - Private Contractors Payment,41.04,0,NON COMMERCIAL SUPPLIER
02-02-2024,Adults & Health,De Vere Care Partnership Ltd,Home Care - Private Contractors Payment,61.56,0,NON COMMERCIAL SUPPLIER
02-02-2024,Adults & Health,De Vere Care Partnership Ltd,Home Care - Private Contractors Payment,215.46,0,NON COMMERCIAL SUPPLIER
02-02-2024,Adults & Health,De Vere Care Partnership Ltd,Home Care - Private Contractors Payment,143.64,0,NON COMMERCIAL SUPPLIER
02-02-2024,Adults & Health,De Vere Care Partnership Ltd,Home Care - Private Contractors Payment,20.52,0,NON COMMERCIAL SUPPLIER
02-02-2024,Adults & Health,De Vere Care Partnership Ltd,Home Care - Private Contractors Payment,179.55,0,NON COMMERCIAL SUPPLIER
02-02-2024,Adults & Health,De Vere Care Partnership Ltd,Home Care - Private Contractors Payment,143.64,0,NON COMMERCIAL SUPPLIER
02-02-2024,Adults & Health,De Vere Care Partnership Ltd,Home Care - Private Contractors Payment,861.84,0,NON COMMERCIAL SUPPLIER
02-02-2024,Adults & Health,De Vere Care Partnership Ltd,Home Care - Private Contractors Payment,266.76,0,NON COMMERCIAL SUPPLIER
02-02-2024,Adults & Health,De Vere Care Partnership Ltd,Home Care - Private Contractors Payment,107.73,0,NON COMMERCIAL SUPPLIER
02-02-2024,Adults & Health,De Vere Care Partnership Ltd,Home Care - Private Contractors Payment,153.9,0,NON COMMERCIAL SUPPLIER
02-02-2024,Adults & Health,De Vere Care Partnership Ltd,Home Care - Private Contractors Payment,348.84,0,NON COMMERCIAL SUPPLIER
02-02-2024,Adults & Health,De Vere Care Partnership Ltd,Home Care - Private Contractors Payment,143.64,0,NON COMMERCIAL SUPPLIER
02-02-2024,Adults & Health,De Vere Care Partnership Ltd,Home Care - Private Contractors Payment,251.37,0,NON COMMERCIAL SUPPLIER
02-02-2024,Adults & Health,De Vere Care Partnership Ltd,Daycare - Private Contractors Payment,41.04,0,NON COMMERCIAL SUPPLIER
02-02-2024,Adults & Health,De Vere Care Partnership Ltd,Home Care - Private Contractors Payment,502.74,0,NON COMMERCIAL SUPPLIER
02-02-2024,Adults & Health,De Vere Care Partnership Ltd,Home Care - Private Contractors Payment,20.52,0,NON COMMERCIAL SUPPLIER
02-02-2024,Adults & Health,De Vere Care Partnership Ltd,Home Care - Private Contractors Payment,143.64,0,NON COMMERCIAL SUPPLIER
02-02-2024,Adults & Health,De Vere Care Partnership Ltd,Home Care - Private Contractors Payment,107.73,0,NON COMMERCIAL SUPPLIER
02-02-2024,Adults & Health,De Vere Care Partnership Ltd,Home Care - Private Contractors Payment,251.37,0,NON COMMERCIAL SUPPLIER
02-02-2024,Adults & Health,De Vere Care Partnership Ltd,Home Care - Private Contractors Payment,754.11,0,NON COMMERCIAL SUPPLIER
02-02-2024,Adults & Health,De Vere Care Partnership Ltd,Home Care - Private Contractors Payment,20.52,0,NON COMMERCIAL SUPPLIER
02-02-2024,Adults & Health,De Vere Care Partnership Ltd,Home Care - Private Contractors Payment,143.64,0,NON COMMERCIAL SUPPLIER
02-02-2024,Adults & Health,De Vere Care Partnership Ltd,Home Care - Private Contractors Payment,318.06,0,NON COMMERCIAL SUPPLIER
02-02-2024,Adults & Health,De Vere Care Partnership Ltd,Home Care - Private Contractors Payment,215.46,0,NON COMMERCIAL SUPPLIER
02-02-2024,Adults & Health,De Vere Care Partnership Ltd,Home Care - Private Contractors Payment,179.55,0,NON COMMERCIAL SUPPLIER
02-02-2024,Adults & Health,De Vere Care Partnership Ltd,Home Care - Private Contractors Payment,15.39,0,NON COMMERCIAL SUPPLIER
02-02-2024,Adults & Health,De Vere Care Partnership Ltd,Home Care - Private Contractors Payment,41.04,0,NON COMMERCIAL SUPPLIER
02-02-2024,Adults & Health,De Vere Care Partnership Ltd,Daycare - Private Contractors Payment,41.04,0,NON COMMERCIAL SUPPLIER
02-02-2024,Adults & Health,De Vere Care Partnership Ltd,Home Care - Private Contractors Payment,143.64,0,NON COMMERCIAL SUPPLIER
02-02-2024,Adults & Health,De Vere Care Partnership Ltd,Home Care - Private Contractors Payment,71.82,0,NON COMMERCIAL SUPPLIER
02-02-2024,Adults & Health,De Vere Care Partnership Ltd,Home Care - Private Contractors Payment,133.38,0,NON COMMERCIAL SUPPLIER
02-02-2024,Adults & Health,De Vere Care Partnership Ltd,Reablement,107.73,0,NON COMMERCIAL SUPPLIER
02-02-2024,Adults & Health,De Vere Care Partnership Ltd,Daycare - Private Contractors Payment,82.08,0,NON COMMERCIAL SUPPLIER
02-02-2024,Adults & Health,De Vere Care Partnership Ltd,Home Care - Private Contractors Payment,230.85,0,NON COMMERCIAL SUPPLIER
02-02-2024,Adults & Health,De Vere Care Partnership Ltd,Home Care - Private Contractors Payment,251.37,0,NON COMMERCIAL SUPPLIER
02-02-2024,Adults & Health,De Vere Care Partnership Ltd,Daycare - Private Contractors Payment,102.6,0,NON COMMERCIAL SUPPLIER
02-02-2024,Adults & Health,De Vere Care Partnership Ltd,Home Care - Private Contractors Payment,251.37,0,NON COMMERCIAL SUPPLIER
02-02-2024,Adults & Health,De Vere Care Partnership Ltd,Home Care - Private Contractors Payment,251.37,0,NON COMMERCIAL SUPPLIER
02-02-2024,Adults & Health,De Vere Care Partnership Ltd,Home Care - Private Contractors Payment,20.52,0,NON COMMERCIAL SUPPLIER
02-02-2024,Adults & Health,De Vere Care Partnership Ltd,Home Care - Private Contractors Payment,20.52,0,NON COMMERCIAL SUPPLIER
02-02-2024,Adults & Health,De Vere Care Partnership Ltd,Home Care - Private Contractors Payment,215.46,0,NON COMMERCIAL SUPPLIER
02-02-2024,Adults & Health,De Vere Care Partnership Ltd,Home Care - Private Contractors Payment,20.52,0,NON COMMERCIAL SUPPLIER
02-02-2024,Adults & Health,De Vere Care Partnership Ltd,Home Care - Private Contractors Payment,82.08,0,NON COMMERCIAL SUPPLIER
02-02-2024,Adults & Health,De Vere Care Partnership Ltd,Reablement,179.55,0,NON COMMERCIAL SUPPLIER
02-02-2024,Adults & Health,De Vere Care Partnership Ltd,Home Care - Private Contractors Payment,251.37,0,NON COMMERCIAL SUPPLIER
02-02-2024,Adults & Health,De Vere Care Partnership Ltd,Home Care - Private Contractors Payment,76.95,0,NON COMMERCIAL SUPPLIER
02-02-2024,Adults & Health,De Vere Care Partnership Ltd,Home Care - Private Contractors Payment,179.55,0,NON COMMERCIAL SUPPLIER
02-02-2024,Adults & Health,De Vere Care Partnership Ltd,Home Care - Private Contractors Payment,117.99,0,NON COMMERCIAL SUPPLIER
02-02-2024,Adults & Health,De Vere Care Partnership Ltd,Home Care - Private Contractors Payment,610.47,0,NON COMMERCIAL SUPPLIER
02-02-2024,Adults & Health,De Vere Care Partnership Ltd,Home Care - Private Contractors Payment,20.52,0,NON COMMERCIAL SUPPLIER
02-02-2024,Adults & Health,De Vere Care Partnership Ltd,Home Care - Private Contractors Payment,610.47,0,NON COMMERCIAL SUPPLIER
02-02-2024,Adults & Health,De Vere Care Partnership Ltd,Home Care - Private Contractors Payment,179.55,0,NON COMMERCIAL SUPPLIER
02-02-2024,Adults & Health,De Vere Care Partnership Ltd,Home Care - Private Contractors Payment,610.47,0,NON COMMERCIAL SUPPLIER
02-02-2024,Adults & Health,De Vere Care Partnership Ltd,Home Care - Private Contractors Payment,51.3,0,NON COMMERCIAL SUPPLIER
02-02-2024,Adults & Health,De Vere Care Partnership Ltd,Home Care - Private Contractors Payment,20.52,0,NON COMMERCIAL SUPPLIER
02-02-2024,Adults & Health,De Vere Care Partnership Ltd,Home Care - Private Contractors Payment,143.64,0,NON COMMERCIAL SUPPLIER
02-02-2024,Adults & Health,De Vere Care Partnership Ltd,Home Care - Private Contractors Payment,15.39,0,NON COMMERCIAL SUPPLIER
02-02-2024,Adults & Health,De Vere Care Partnership Ltd,Daycare - Private Contractors Payment,164.16,0,NON COMMERCIAL SUPPLIER
02-02-2024,Adults & Health,De Vere Care Partnership Ltd,Home Care - Private Contractors Payment,179.55,0,NON COMMERCIAL SUPPLIER
02-02-2024,Adults & Health,De Vere Care Partnership Ltd,Daycare - Private Contractors Payment,51.3,0,NON COMMERCIAL SUPPLIER
02-02-2024,Adults & Health,De Vere Care Partnership Ltd,Home Care - Private Contractors Payment,71.82,0,NON COMMERCIAL SUPPLIER
02-02-2024,Adults & Health,De Vere Care Partnership Ltd,Daycare - Private Contractors Payment,30.78,0,NON COMMERCIAL SUPPLIER
02-02-2024,Adults & Health,De Vere Care Partnership Ltd,Home Care - Private Contractors Payment,30.78,0,NON COMMERCIAL SUPPLIER
02-02-2024,Adults & Health,De Vere Care Partnership Ltd,Home Care - Private Contractors Payment,718.2,0,NON COMMERCIAL SUPPLIER
02-02-2024,Adults & Health,De Vere Care Partnership Ltd,Home Care - Private Contractors Payment,430.92,0,NON COMMERCIAL SUPPLIER
02-02-2024,Adults & Health,De Vere Care Partnership Ltd,Home Care - Private Contractors Payment,287.28,0,NON COMMERCIAL SUPPLIER
02-02-2024,Adults & Health,De Vere Care Partnership Ltd,Reablement,112.86,0,NON COMMERCIAL SUPPLIER
02-02-2024,Adults & Health,De Vere Care Partnership Ltd,Home Care - Private Contractors Payment,153.9,0,NON COMMERCIAL SUPPLIER
02-02-2024,Adults & Health,De Vere Care Partnership Ltd,Home Care - Private Contractors Payment,251.37,0,NON COMMERCIAL SUPPLIER
02-02-2024,Adults & Health,De Vere Care Partnership Ltd,Respite Care - Private Contractors Payment,102.6,0,NON COMMERCIAL SUPPLIER
02-02-2024,Adults & Health,De Vere Care Partnership Ltd,Home Care - Private Contractors Payment,179.55,0,NON COMMERCIAL SUPPLIER
02-02-2024,Adults & Health,De Vere Care Partnership Ltd,Home Care - Private Contractors Payment,323.19,0,NON COMMERCIAL SUPPLIER
02-02-2024,Adults & Health,De Vere Care Partnership Ltd,Home Care - Private Contractors Payment,430.92,0,NON COMMERCIAL SUPPLIER
02-02-2024,Adults & Health,De Vere Care Partnership Ltd,Home Care - Private Contractors Payment,261.63,0,NON COMMERCIAL SUPPLIER
02-02-2024,Adults & Health,De Vere Care Partnership Ltd,Reablement,82.08,0,NON COMMERCIAL SUPPLIER
02-02-2024,Adults & Health,De Vere Care Partnership Ltd,Home Care - Private Contractors Payment,502.74,0,NON COMMERCIAL SUPPLIER
02-02-2024,Adults & Health,De Vere Care Partnership Ltd,Daycare - Private Contractors Payment,102.6,0,NON COMMERCIAL SUPPLIER
02-02-2024,Adults & Health,De Vere Care Partnership Ltd,Daycare - Private Contractors Payment,30.78,0,NON COMMERCIAL SUPPLIER
02-02-2024,Adults & Health,De Vere Care Partnership Ltd,Daycare - Private Contractors Payment,51.3,0,NON COMMERCIAL SUPPLIER
02-02-2024,Adults & Health,De Vere Care Partnership Ltd,Home Care - Private Contractors Payment,610.47,0,NON COMMERCIAL SUPPLIER
02-02-2024,Adults & Health,De Vere Care Partnership Ltd,Home Care - Private Contractors Payment,35.91,0,NON COMMERCIAL SUPPLIER
02-02-2024,Adults & Health,De Vere Care Partnership Ltd,Home Care - Private Contractors Payment,323.19,0,NON COMMERCIAL SUPPLIER
02-02-2024,Adults & Health,De Vere Care Partnership Ltd,Home Care - Private Contractors Payment,143.64,0,NON COMMERCIAL SUPPLIER
02-02-2024,Adults & Health,De Vere Care Partnership Ltd,Home Care - Private Contractors Payment,20.52,0,NON COMMERCIAL SUPPLIER
02-02-2024,Adults & Health,De Vere Care Partnership Ltd,Daycare - Private Contractors Payment,41.04,0,NON COMMERCIAL SUPPLIER
02-02-2024,Adults & Health,De Vere Care Partnership Ltd,Home Care - Private Contractors Payment,574.56,0,NON COMMERCIAL SUPPLIER
02-02-2024,Adults & Health,De Vere Care Partnership Ltd,Home Care - Private Contractors Payment,179.55,0,NON COMMERCIAL SUPPLIER
02-02-2024,Adults & Health,De Vere Care Partnership Ltd,Home Care - Private Contractors Payment,179.55,0,NON COMMERCIAL SUPPLIER
02-02-2024,Adults & Health,De Vere Care Partnership Ltd,Home Care - Private Contractors Payment,251.37,0,NON COMMERCIAL SUPPLIER
02-02-2024,Adults & Health,De Vere Care Partnership Ltd,Daycare - Private Contractors Payment,82.08,0,NON COMMERCIAL SUPPLIER
02-02-2024,Adults & Health,De Vere Care Partnership Ltd,Home Care - Private Contractors Payment,466.83,0,NON COMMERCIAL SUPPLIER
02-02-2024,Adults & Health,De Vere Care Partnership Ltd,Reablement,307.8,0,NON COMMERCIAL SUPPLIER
02-02-2024,Adults & Health,De Vere Care Partnership Ltd,Daycare - Private Contractors Payment,20.52,0,NON COMMERCIAL SUPPLIER
02-02-2024,Adults & Health,De Vere Care Partnership Ltd,Home Care - Private Contractors Payment,179.55,0,NON COMMERCIAL SUPPLIER
02-02-2024,Adults & Health,De Vere Care Partnership Ltd,Home Care - Private Contractors Payment,266.76,0,NON COMMERCIAL SUPPLIER
02-02-2024,Adults & Health,De Vere Care Partnership Ltd,Home Care - Private Contractors Payment,82.08,0,NON COMMERCIAL SUPPLIER
02-02-2024,Adults & Health,De Vere Care Partnership Ltd,Home Care - Private Contractors Payment,323.19,0,NON COMMERCIAL SUPPLIER
02-02-2024,Adults & Health,De Vere Care Partnership Ltd,Home Care - Private Contractors Payment,430.92,0,NON COMMERCIAL SUPPLIER
02-02-2024,Adults & Health,De Vere Care Partnership Ltd,Home Care - Private Contractors Payment,143.64,0,NON COMMERCIAL SUPPLIER
02-02-2024,Adults & Health,De Vere Care Partnership Ltd,Home Care - Private Contractors Payment,15.39,0,NON COMMERCIAL SUPPLIER
02-02-2024,Adults & Health,De Vere Care Partnership Ltd,Home Care - Private Contractors Payment,143.64,0,NON COMMERCIAL SUPPLIER
02-02-2024,Adults & Health,De Vere Care Partnership Ltd,Home Care - Private Contractors Payment,20.52,0,NON COMMERCIAL SUPPLIER
02-02-2024,Adults & Health,De Vere Care Partnership Ltd,Home Care - Private Contractors Payment,143.64,0,NON COMMERCIAL SUPPLIER
02-02-2024,Adults & Health,De Vere Care Partnership Ltd,Home Care - Private Contractors Payment,287.28,0,NON COMMERCIAL SUPPLIER
02-02-2024,Adults & Health,De Vere Care Partnership Ltd,Home Care - Private Contractors Payment,184.68,0,NON COMMERCIAL SUPPLIER
02-02-2024,Adults & Health,De Vere Care Partnership Ltd,Home Care - Private Contractors Payment,179.55,0,NON COMMERCIAL SUPPLIER
02-02-2024,Adults & Health,De Vere Care Partnership Ltd,Reablement,251.37,0,NON COMMERCIAL SUPPLIER
02-02-2024,Adults & Health,De Vere Care Partnership Ltd,Home Care - Private Contractors Payment,18.47,0,NON COMMERCIAL SUPPLIER
02-02-2024,Adults & Health,De Vere Care Partnership Ltd,Home Care - Private Contractors Payment,71.82,0,NON COMMERCIAL SUPPLIER
02-02-2024,Adults & Health,De Vere Care Partnership Ltd,Daycare - Private Contractors Payment,205.2,0,NON COMMERCIAL SUPPLIER
02-02-2024,Adults & Health,De Vere Care Partnership Ltd,Home Care - Private Contractors Payment,143.64,0,NON COMMERCIAL SUPPLIER
02-02-2024,Adults & Health,De Vere Care Partnership Ltd,Home Care - Private Contractors Payment,133.38,0,NON COMMERCIAL SUPPLIER
02-02-2024,Adults & Health,De Vere Care Partnership Ltd,Home Care - Private Contractors Payment,71.82,0,NON COMMERCIAL SUPPLIER
02-02-2024,Adults & Health,De Vere Care Partnership Ltd,Home Care - Private Contractors Payment,179.55,0,NON COMMERCIAL SUPPLIER
02-02-2024,Adults & Health,De Vere Care Partnership Ltd,Home Care - Private Contractors Payment,30.78,0,NON COMMERCIAL SUPPLIER
02-02-2024,Adults & Health,De Vere Care Partnership Ltd,Home Care - Private Contractors Payment,107.73,0,NON COMMERCIAL SUPPLIER
02-02-2024,Adults & Health,De Vere Care Partnership Ltd,Home Care - Private Contractors Payment,682.29,0,NON COMMERCIAL SUPPLIER
02-02-2024,Adults & Health,De Vere Care Partnership Ltd,Home Care - Private Contractors Payment,107.73,0,NON COMMERCIAL SUPPLIER
02-02-2024,Adults & Health,De Vere Care Partnership Ltd,Home Care - Private Contractors Payment,20.52,0,NON COMMERCIAL SUPPLIER
02-02-2024,Adults & Health,De Vere Care Partnership Ltd,Home Care - Private Contractors Payment,61.56,0,NON COMMERCIAL SUPPLIER
02-02-2024,Adults & Health,De Vere Care Partnership Ltd,Home Care - Private Contractors Payment,143.64,0,NON COMMERCIAL SUPPLIER
02-02-2024,Adults & Health,De Vere Care Partnership Ltd,Home Care - Private Contractors Payment,251.37,0,NON COMMERCIAL SUPPLIER
02-02-2024,Adults & Health,De Vere Care Partnership Ltd,Home Care - Private Contractors Payment,107.73,0,NON COMMERCIAL SUPPLIER
02-02-2024,Adults & Health,De Vere Care Partnership Ltd,Home Care - Private Contractors Payment,15.39,0,NON COMMERCIAL SUPPLIER
02-02-2024,Adults & Health,De Vere Care Partnership Ltd,Home Care - Private Contractors Payment,430.92,0,NON COMMERCIAL SUPPLIER
02-02-2024,Adults & Health,De Vere Care Partnership Ltd,Home Care - Private Contractors Payment,179.55,0,NON COMMERCIAL SUPPLIER
02-02-2024,Adults & Health,De Vere Care Partnership Ltd,Home Care - Private Contractors Payment,179.55,0,NON COMMERCIAL SUPPLIER
02-02-2024,Adults & Health,De Vere Care Partnership Ltd,Reablement,251.37,0,NON COMMERCIAL SUPPLIER
02-02-2024,Adults & Health,De Vere Care Partnership Ltd,Home Care - Private Contractors Payment,179.55,0,NON COMMERCIAL SUPPLIER
02-02-2024,Adults & Health,De Vere Care Partnership Ltd,Home Care - Private Contractors Payment,20.52,0,NON COMMERCIAL SUPPLIER
02-02-2024,Adults & Health,De Vere Care Partnership Ltd,Home Care - Private Contractors Payment,107.73,0,NON COMMERCIAL SUPPLIER
02-02-2024,Adults & Health,De Vere Care Partnership Ltd,Daycare - Private Contractors Payment,41.04,0,NON COMMERCIAL SUPPLIER
02-02-2024,Adults & Health,De Vere Care Partnership Ltd,Home Care - Private Contractors Payment,215.46,0,NON COMMERCIAL SUPPLIER
02-02-2024,Adults & Health,De Vere Care Partnership Ltd,Home Care - Private Contractors Payment,20.52,0,NON COMMERCIAL SUPPLIER
02-02-2024,Adults & Health,De Vere Care Partnership Ltd,Home Care - Private Contractors Payment,430.92,0,NON COMMERCIAL SUPPLIER
02-02-2024,Adults & Health,De Vere Care Partnership Ltd,Reablement,41.04,0,NON COMMERCIAL SUPPLIER
02-02-2024,Adults & Health,De Vere Care Partnership Ltd,Home Care - Private Contractors Payment,56.43,0,NON COMMERCIAL SUPPLIER
02-02-2024,Adults & Health,De Vere Care Partnership Ltd,Daycare - Private Contractors Payment,51.3,0,NON COMMERCIAL SUPPLIER
02-02-2024,Adults & Health,De Vere Care Partnership Ltd,Home Care - Private Contractors Payment,287.28,0,NON COMMERCIAL SUPPLIER
02-02-2024,Adults & Health,De Vere Care Partnership Ltd,Home Care - Private Contractors Payment,430.92,0,NON COMMERCIAL SUPPLIER
02-02-2024,Adults & Health,De Vere Care Partnership Ltd,Home Care - Private Contractors Payment,30.78,0,NON COMMERCIAL SUPPLIER
02-02-2024,Adults & Health,De Vere Care Partnership Ltd,Home Care - Private Contractors Payment,502.74,0,NON COMMERCIAL SUPPLIER
02-02-2024,Adults & Health,De Vere Care Partnership Ltd,Daycare - Private Contractors Payment,20.52,0,NON COMMERCIAL SUPPLIER
02-02-2024,Adults & Health,De Vere Care Partnership Ltd,Home Care - Private Contractors Payment,133.38,0,NON COMMERCIAL SUPPLIER
02-02-2024,Adults & Health,De Vere Care Partnership Ltd,Home Care - Private Contractors Payment,82.08,0,NON COMMERCIAL SUPPLIER
02-02-2024,Adults & Health,De Vere Care Partnership Ltd,Respite Care - Private Contractors Payment,61.56,0,NON COMMERCIAL SUPPLIER
02-02-2024,Adults & Health,De Vere Care Partnership Ltd,Home Care - Private Contractors Payment,251.37,0,NON COMMERCIAL SUPPLIER
02-02-2024,Adults & Health,De Vere Care Partnership Ltd,Home Care - Private Contractors Payment,107.73,0,NON COMMERCIAL SUPPLIER
02-02-2024,Adults & Health,De Vere Care Partnership Ltd,Home Care - Private Contractors Payment,251.37,0,NON COMMERCIAL SUPPLIER
02-02-2024,Adults & Health,De Vere Care Partnership Ltd,Daycare - Private Contractors Payment,102.6,0,NON COMMERCIAL SUPPLIER
02-02-2024,Adults & Health,De Vere Care Partnership Ltd,Daycare - Private Contractors Payment,30.78,0,NON COMMERCIAL SUPPLIER
02-02-2024,Adults & Health,De Vere Care Partnership Ltd,Home Care - Private Contractors Payment,477.09,0,NON COMMERCIAL SUPPLIER
02-02-2024,Adults & Health,De Vere Care Partnership Ltd,Reablement,246.24,0,NON COMMERCIAL SUPPLIER
02-02-2024,Adults & Health,De Vere Care Partnership Ltd,Home Care - Private Contractors Payment,20.52,0,NON COMMERCIAL SUPPLIER
02-02-2024,Adults & Health,De Vere Care Partnership Ltd,Reablement,82.08,0,NON COMMERCIAL SUPPLIER
02-02-2024,Adults & Health,De Vere Care Partnership Ltd,Home Care - Private Contractors Payment,466.83,0,NON COMMERCIAL SUPPLIER
02-02-2024,Adults & Health,De Vere Care Partnership Ltd,Home Care - Private Contractors Payment,41.04,0,NON COMMERCIAL SUPPLIER
02-02-2024,Adults & Health,De Vere Care Partnership Ltd,Home Care - Private Contractors Payment,287.28,0,NON COMMERCIAL SUPPLIER
02-02-2024,Adults & Health,De Vere Care Partnership Ltd,Home Care - Private Contractors Payment,71.82,0,NON COMMERCIAL SUPPLIER
02-02-2024,Adults & Health,De Vere Care Partnership Ltd,Home Care - Private Contractors Payment,179.55,0,NON COMMERCIAL SUPPLIER
02-02-2024,Adults & Health,De Vere Care Partnership Ltd,Home Care - Private Contractors Payment,323.19,0,NON COMMERCIAL SUPPLIER
02-02-2024,Adults & Health,De Vere Care Partnership Ltd,Home Care - Private Contractors Payment,71.82,0,NON COMMERCIAL SUPPLIER
02-02-2024,Adults & Health,De Vere Care Partnership Ltd,Home Care - Private Contractors Payment,179.55,0,NON COMMERCIAL SUPPLIER
02-02-2024,Adults & Health,De Vere Care Partnership Ltd,Home Care - Private Contractors Payment,323.19,0,NON COMMERCIAL SUPPLIER
02-02-2024,Adults & Health,De Vere Care Partnership Ltd,Reablement,71.82,0,NON COMMERCIAL SUPPLIER
02-02-2024,Adults & Health,De Vere Care Partnership Ltd,Home Care - Private Contractors Payment,215.46,0,NON COMMERCIAL SUPPLIER
02-02-2024,Adults & Health,De Vere Care Partnership Ltd,Home Care - Private Contractors Payment,179.55,0,NON COMMERCIAL SUPPLIER
02-02-2024,Adults & Health,De Vere Care Partnership Ltd,Home Care - Private Contractors Payment,153.9,0,NON COMMERCIAL SUPPLIER
02-02-2024,Adults & Health,De Vere Care Partnership Ltd,Reablement,41.04,0,NON COMMERCIAL SUPPLIER
02-02-2024,Adults & Health,De Vere Care Partnership Ltd,Home Care - Private Contractors Payment,41.04,0,NON COMMERCIAL SUPPLIER
02-02-2024,Adults & Health,De Vere Care Partnership Ltd,Home Care - Private Contractors Payment,107.73,0,NON COMMERCIAL SUPPLIER
02-02-2024,Adults & Health,De Vere Care Partnership Ltd,Home Care - Private Contractors Payment,369.36,0,NON COMMERCIAL SUPPLIER
02-02-2024,Adults & Health,De Vere Care Partnership Ltd,Home Care - Private Contractors Payment,107.73,0,NON COMMERCIAL SUPPLIER
02-02-2024,Adults & Health,De Vere Care Partnership Ltd,Home Care - Private Contractors Payment,682.29,0,NON COMMERCIAL SUPPLIER
02-02-2024,Adults & Health,De Vere Care Partnership Ltd,Home Care - Private Contractors Payment,251.37,0,NON COMMERCIAL SUPPLIER
02-02-2024,Adults & Health,De Vere Care Partnership Ltd,Home Care - Private Contractors Payment,82.08,0,NON COMMERCIAL SUPPLIER
02-02-2024,Adults & Health,De Vere Care Partnership Ltd,Home Care - Private Contractors Payment,179.55,0,NON COMMERCIAL SUPPLIER
02-02-2024,Adults & Health,De Vere Care Partnership Ltd,Home Care - Private Contractors Payment,430.92,0,NON COMMERCIAL SUPPLIER
02-02-2024,Adults & Health,De Vere Care Partnership Ltd,Home Care - Private Contractors Payment,143.64,0,NON COMMERCIAL SUPPLIER
02-02-2024,Adults & Health,De Vere Care Partnership Ltd,Home Care - Private Contractors Payment,35.91,0,NON COMMERCIAL SUPPLIER
02-02-2024,Adults & Health,De Vere Care Partnership Ltd,Home Care - Private Contractors Payment,107.73,0,NON COMMERCIAL SUPPLIER
02-02-2024,Adults & Health,De Vere Care Partnership Ltd,Reablement,179.55,0,NON COMMERCIAL SUPPLIER
02-02-2024,Adults & Health,De Vere Care Partnership Ltd,Home Care - Private Contractors Payment,107.73,0,NON COMMERCIAL SUPPLIER
02-02-2024,Adults & Health,De Vere Care Partnership Ltd,Home Care - Private Contractors Payment,430.92,0,NON COMMERCIAL SUPPLIER
02-02-2024,Adults & Health,De Vere Care Partnership Ltd,Daycare - Private Contractors Payment,41.04,0,NON COMMERCIAL SUPPLIER
02-02-2024,Adults & Health,De Vere Care Partnership Ltd,Home Care - Private Contractors Payment,251.37,0,NON COMMERCIAL SUPPLIER
02-02-2024,Adults & Health,De Vere Care Partnership Ltd,Home Care - Private Contractors Payment,133.38,0,NON COMMERCIAL SUPPLIER
02-02-2024,Adults & Health,De Vere Care Partnership Ltd,Home Care - Private Contractors Payment,861.84,0,NON COMMERCIAL SUPPLIER
02-02-2024,Adults & Health,De Vere Care Partnership Ltd,Daycare - Private Contractors Payment,82.08,0,NON COMMERCIAL SUPPLIER
02-02-2024,Adults & Health,De Vere Care Partnership Ltd,Home Care - Private Contractors Payment,179.55,0,NON COMMERCIAL SUPPLIER
02-02-2024,Adults & Health,De Vere Care Partnership Ltd,Home Care - Private Contractors Payment,30.78,0,NON COMMERCIAL SUPPLIER
02-02-2024,Adults & Health,De Vere Care Partnership Ltd,Home Care - Private Contractors Payment,20.52,0,NON COMMERCIAL SUPPLIER
02-02-2024,Adults & Health,De Vere Care Partnership Ltd,Home Care - Private Contractors Payment,71.82,0,NON COMMERCIAL SUPPLIER
02-02-2024,Adults & Health,De Vere Care Partnership Ltd,Home Care - Private Contractors Payment,107.73,0,NON COMMERCIAL SUPPLIER
02-02-2024,Adults & Health,De Vere Care Partnership Ltd,Home Care - Private Contractors Payment,71.82,0,NON COMMERCIAL SUPPLIER
02-02-2024,Adults & Health,De Vere Care Partnership Ltd,Reablement,323.19,0,NON COMMERCIAL SUPPLIER
02-02-2024,Adults & Health,De Vere Care Partnership Ltd,Daycare - Private Contractors Payment,20.52,0,NON COMMERCIAL SUPPLIER
02-02-2024,Adults & Health,De Vere Care Partnership Ltd,Reablement,107.73,0,NON COMMERCIAL SUPPLIER
02-02-2024,Adults & Health,De Vere Care Partnership Ltd,Home Care - Private Contractors Payment,46.17,0,NON COMMERCIAL SUPPLIER
02-02-2024,Adults & Health,De Vere Care Partnership Ltd,Home Care - Private Contractors Payment,20.52,0,NON COMMERCIAL SUPPLIER
02-02-2024,Adults & Health,De Vere Care Partnership Ltd,Home Care - Private Contractors Payment,143.64,0,NON COMMERCIAL SUPPLIER
02-02-2024,Adults & Health,De Vere Care Partnership Ltd,Home Care - Private Contractors Payment,610.47,0,NON COMMERCIAL SUPPLIER
02-02-2024,Adults & Health,De Vere Care Partnership Ltd,Home Care - Private Contractors Payment,20.52,0,NON COMMERCIAL SUPPLIER
02-02-2024,Adults & Health,De Vere Care Partnership Ltd,Daycare - Private Contractors Payment,41.04,0,NON COMMERCIAL SUPPLIER
02-02-2024,Adults & Health,De Vere Care Partnership Ltd,Home Care - Private Contractors Payment,251.37,0,NON COMMERCIAL SUPPLIER
02-02-2024,Adults & Health,De Vere Care Partnership Ltd,Home Care - Private Contractors Payment,30.78,0,NON COMMERCIAL SUPPLIER
02-02-2024,Adults & Health,De Vere Care Partnership Ltd,Home Care - Private Contractors Payment,46.17,0,NON COMMERCIAL SUPPLIER
02-02-2024,Adults & Health,De Vere Care Partnership Ltd,Daycare - Private Contractors Payment,205.2,0,NON COMMERCIAL SUPPLIER
02-02-2024,Adults & Health,De Vere Care Partnership Ltd,Home Care - Private Contractors Payment,466.83,0,NON COMMERCIAL SUPPLIER
02-02-2024,Adults & Health,De Vere Care Partnership Ltd,Home Care - Private Contractors Payment,251.37,0,NON COMMERCIAL SUPPLIER
02-02-2024,Adults & Health,De Vere Care Partnership Ltd,Home Care - Private Contractors Payment,287.28,0,NON COMMERCIAL SUPPLIER
02-02-2024,Adults & Health,De Vere Care Partnership Ltd,Home Care - Private Contractors Payment,251.37,0,NON COMMERCIAL SUPPLIER
02-02-2024,Adults & Health,De Vere Care Partnership Ltd,Home Care - Private Contractors Payment,20.52,0,NON COMMERCIAL SUPPLIER
02-02-2024,Adults & Health,De Vere Care Partnership Ltd,Home Care - Private Contractors Payment,10.26,0,NON COMMERCIAL SUPPLIER
02-02-2024,Adults & Health,De Vere Care Partnership Ltd,Home Care - Private Contractors Payment,215.02,0,NON COMMERCIAL SUPPLIER
02-02-2024,Adults & Health,De Vere Care Partnership Ltd,Home Care - Private Contractors Payment,861.84,0,NON COMMERCIAL SUPPLIER
02-02-2024,Adults & Health,De Vere Care Partnership Ltd,Home Care - Private Contractors Payment,1436.4,0,NON COMMERCIAL SUPPLIER
02-02-2024,Adults & Health,De Vere Care Partnership Ltd,Home Care - Private Contractors Payment,554.04,0,NON COMMERCIAL SUPPLIER
02-02-2024,Adults & Health,De Vere Care Partnership Ltd,Home Care - Private Contractors Payment,251.37,0,NON COMMERCIAL SUPPLIER
02-02-2024,Adults & Health,De Vere Care Partnership Ltd,Home Care - Private Contractors Payment,323.19,0,NON COMMERCIAL SUPPLIER
02-02-2024,Adults & Health,De Vere Care Partnership Ltd,Daycare - Private Contractors Payment,41.04,0,NON COMMERCIAL SUPPLIER
02-02-2024,Adults & Health,De Vere Care Partnership Ltd,Home Care - Private Contractors Payment,143.64,0,NON COMMERCIAL SUPPLIER
02-02-2024,Adults & Health,De Vere Care Partnership Ltd,Home Care - Private Contractors Payment,51.3,0,NON COMMERCIAL SUPPLIER
02-02-2024,Adults & Health,De Vere Care Partnership Ltd,Home Care - Private Contractors Payment,20.52,0,NON COMMERCIAL SUPPLIER
02-02-2024,Adults & Health,De Vere Care Partnership Ltd,Home Care - Private Contractors Payment,143.64,0,NON COMMERCIAL SUPPLIER
02-02-2024,Adults & Health,De Vere Care Partnership Ltd,Home Care - Private Contractors Payment,30.78,0,NON COMMERCIAL SUPPLIER
02-02-2024,Adults & Health,De Vere Care Partnership Ltd,Home Care - Private Contractors Payment,51.3,0,NON COMMERCIAL SUPPLIER
02-02-2024,Adults & Health,De Vere Care Partnership Ltd,Home Care - Private Contractors Payment,20.52,0,NON COMMERCIAL SUPPLIER
02-02-2024,Adults & Health,De Vere Care Partnership Ltd,Home Care - Private Contractors Payment,41.04,0,NON COMMERCIAL SUPPLIER
02-02-2024,Adults & Health,De Vere Care Partnership Ltd,Home Care - Private Contractors Payment,82.08,0,NON COMMERCIAL SUPPLIER
02-02-2024,Adults & Health,De Vere Care Partnership Ltd,Home Care - Private Contractors Payment,20.52,0,NON COMMERCIAL SUPPLIER
02-02-2024,Adults & Health,De Vere Care Partnership Ltd,Home Care - Private Contractors Payment,71.82,0,NON COMMERCIAL SUPPLIER
02-02-2024,Adults & Health,De Vere Care Partnership Ltd,Home Care - Private Contractors Payment,266.76,0,NON COMMERCIAL SUPPLIER
02-02-2024,Adults & Health,De Vere Care Partnership Ltd,Home Care - Private Contractors Payment,754.11,0,NON COMMERCIAL SUPPLIER
02-02-2024,Adults & Health,De Vere Care Partnership Ltd,Home Care - Private Contractors Payment,430.92,0,NON COMMERCIAL SUPPLIER
02-02-2024,Adults & Health,De Vere Care Partnership Ltd,Home Care - Private Contractors Payment,179.55,0,NON COMMERCIAL SUPPLIER
02-02-2024,Adults & Health,De Vere Care Partnership Ltd,Home Care - Private Contractors Payment,107.73,0,NON COMMERCIAL SUPPLIER
02-02-2024,Adults & Health,De Vere Care Partnership Ltd,Home Care - Private Contractors Payment,682.29,0,NON COMMERCIAL SUPPLIER
02-02-2024,Adults & Health,De Vere Care Partnership Ltd,Home Care - Private Contractors Payment,143.64,0,NON COMMERCIAL SUPPLIER
02-02-2024,Adults & Health,De Vere Care Partnership Ltd,Daycare - Private Contractors Payment,41.04,0,NON COMMERCIAL SUPPLIER
02-02-2024,Adults & Health,De Vere Care Partnership Ltd,Home Care - Private Contractors Payment,143.64,0,NON COMMERCIAL SUPPLIER
02-02-2024,Adults & Health,De Vere Care Partnership Ltd,Home Care - Private Contractors Payment,20.52,0,NON COMMERCIAL SUPPLIER
02-02-2024,Adults & Health,De Vere Care Partnership Ltd,Home Care - Private Contractors Payment,251.37,0,NON COMMERCIAL SUPPLIER
02-02-2024,Adults & Health,De Vere Care Partnership Ltd,Home Care - Private Contractors Payment,251.37,0,NON COMMERCIAL SUPPLIER
02-02-2024,Adults & Health,De Vere Care Partnership Ltd,Home Care - Private Contractors Payment,682.29,0,NON COMMERCIAL SUPPLIER
02-02-2024,Adults & Health,De Vere Care Partnership Ltd,Home Care - Private Contractors Payment,56.43,0,NON COMMERCIAL SUPPLIER
02-02-2024,Adults & Health,De Vere Care Partnership Ltd,Home Care - Private Contractors Payment,574.56,0,NON COMMERCIAL SUPPLIER
02-02-2024,Adults & Health,De Vere Care Partnership Ltd,Home Care - Private Contractors Payment,251.37,0,NON COMMERCIAL SUPPLIER
02-02-2024,Adults & Health,De Vere Care Partnership Ltd,Home Care - Private Contractors Payment,1795.5,0,NON COMMERCIAL SUPPLIER
02-02-2024,Adults & Health,De Vere Care Partnership Ltd,Home Care - Private Contractors Payment,107.73,0,NON COMMERCIAL SUPPLIER
02-02-2024,Adults & Health,De Vere Care Partnership Ltd,Home Care - Private Contractors Payment,143.64,0,NON COMMERCIAL SUPPLIER
02-02-2024,Adults & Health,De Vere Care Partnership Ltd,Home Care - Private Contractors Payment,20.52,0,NON COMMERCIAL SUPPLIER
02-02-2024,Adults & Health,De Vere Care Partnership Ltd,Home Care - Private Contractors Payment,20.52,0,NON COMMERCIAL SUPPLIER
02-02-2024,Adults & Health,De Vere Care Partnership Ltd,Home Care - Private Contractors Payment,153.9,0,NON COMMERCIAL SUPPLIER
02-02-2024,Adults & Health,De Vere Care Partnership Ltd,Home Care - Private Contractors Payment,430.92,0,NON COMMERCIAL SUPPLIER
02-02-2024,Adults & Health,De Vere Care Partnership Ltd,Home Care - Private Contractors Payment,323.19,0,NON COMMERCIAL SUPPLIER
02-02-2024,Adults & Health,De Vere Care Partnership Ltd,Home Care - Private Contractors Payment,610.47,0,NON COMMERCIAL SUPPLIER
02-02-2024,Adults & Health,De Vere Care Partnership Ltd,Daycare - Private Contractors Payment,205.2,0,NON COMMERCIAL SUPPLIER
02-02-2024,Adults & Health,De Vere Care Partnership Ltd,Home Care - Private Contractors Payment,466.83,0,NON COMMERCIAL SUPPLIER
02-02-2024,Adults & Health,De Vere Care Partnership Ltd,Home Care - Private Contractors Payment,430.92,0,NON COMMERCIAL SUPPLIER
02-02-2024,Adults & Health,De Vere Care Partnership Ltd,Home Care - Private Contractors Payment,2082.78,0,NON COMMERCIAL SUPPLIER
02-02-2024,Adults & Health,De Vere Care Partnership Ltd,Respite Care - Private Contractors Payment,102.6,0,NON COMMERCIAL SUPPLIER
02-02-2024,Adults & Health,De Vere Care Partnership Ltd,Home Care - Private Contractors Payment,179.55,0,NON COMMERCIAL SUPPLIER
02-02-2024,Adults & Health,De Vere Care Partnership Ltd,Home Care - Private Contractors Payment,179.55,0,NON COMMERCIAL SUPPLIER
02-02-2024,Adults & Health,De Vere Care Partnership Ltd,Home Care - Private Contractors Payment,215.46,0,NON COMMERCIAL SUPPLIER
02-02-2024,Adults & Health,De Vere Care Partnership Ltd,Home Care - Private Contractors Payment,143.64,0,NON COMMERCIAL SUPPLIER
02-02-2024,Adults & Health,De Vere Care Partnership Ltd,Home Care - Private Contractors Payment,107.73,0,NON COMMERCIAL SUPPLIER
02-02-2024,Adults & Health,De Vere Care Partnership Ltd,Daycare - Private Contractors Payment,102.6,0,NON COMMERCIAL SUPPLIER
02-02-2024,Adults & Health,De Vere Care Partnership Ltd,Home Care - Private Contractors Payment,20.52,0,NON COMMERCIAL SUPPLIER
02-02-2024,Adults & Health,De Vere Care Partnership Ltd,Home Care - Private Contractors Payment,143.64,0,NON COMMERCIAL SUPPLIER
02-02-2024,Adults & Health,De Vere Care Partnership Ltd,Home Care - Private Contractors Payment,251.37,0,NON COMMERCIAL SUPPLIER
02-02-2024,Adults & Health,De Vere Care Partnership Ltd,Home Care - Private Contractors Payment,215.46,0,NON COMMERCIAL SUPPLIER
02-02-2024,Adults & Health,De Vere Care Partnership Ltd,Reablement,107.73,0,NON COMMERCIAL SUPPLIER
02-02-2024,Adults & Health,De Vere Care Partnership Ltd,Home Care - Private Contractors Payment,107.73,0,NON COMMERCIAL SUPPLIER
02-02-2024,Adults & Health,De Vere Care Partnership Ltd,Home Care - Private Contractors Payment,266.76,0,NON COMMERCIAL SUPPLIER
02-02-2024,Adults & Health,De Vere Care Partnership Ltd,Home Care - Private Contractors Payment,251.37,0,NON COMMERCIAL SUPPLIER
02-02-2024,Adults & Health,De Vere Care Partnership Ltd,Home Care - Private Contractors Payment,20.52,0,NON COMMERCIAL SUPPLIER
02-02-2024,Adults & Health,De Vere Care Partnership Ltd,Home Care - Private Contractors Payment,71.82,0,NON COMMERCIAL SUPPLIER
02-02-2024,Adults & Health,De Vere Care Partnership Ltd,Home Care - Private Contractors Payment,143.64,0,NON COMMERCIAL SUPPLIER
02-02-2024,Adults & Health,De Vere Care Partnership Ltd,Home Care - Private Contractors Payment,205.2,0,NON COMMERCIAL SUPPLIER
02-02-2024,Adults & Health,De Vere Care Partnership Ltd,Home Care - Private Contractors Payment,30.78,0,NON COMMERCIAL SUPPLIER
02-02-2024,Adults & Health,De Vere Care Partnership Ltd,Respite Care - Private Contractors Payment,61.56,0,NON COMMERCIAL SUPPLIER
02-02-2024,Adults & Health,De Vere Care Partnership Ltd,Home Care - Private Contractors Payment,251.37,0,NON COMMERCIAL SUPPLIER
02-02-2024,Adults & Health,De Vere Care Partnership Ltd,Home Care - Private Contractors Payment,610.47,0,NON COMMERCIAL SUPPLIER
02-02-2024,Adults & Health,De Vere Care Partnership Ltd,Home Care - Private Contractors Payment,20.52,0,NON COMMERCIAL SUPPLIER
02-02-2024,Adults & Health,De Vere Care Partnership Ltd,Daycare - Private Contractors Payment,82.08,0,NON COMMERCIAL SUPPLIER
02-02-2024,Adults & Health,De Vere Care Partnership Ltd,Daycare - Private Contractors Payment,41.04,0,NON COMMERCIAL SUPPLIER
02-02-2024,Adults & Health,De Vere Care Partnership Ltd,Home Care - Private Contractors Payment,861.84,0,NON COMMERCIAL SUPPLIER
02-02-2024,Adults & Health,De Vere Care Partnership Ltd,Daycare - Private Contractors Payment,41.04,0,NON COMMERCIAL SUPPLIER
02-02-2024,Adults & Health,De Vere Care Partnership Ltd,Home Care - Private Contractors Payment,251.37,0,NON COMMERCIAL SUPPLIER
02-02-2024,Adults & Health,De Vere Care Partnership Ltd,Home Care - Private Contractors Payment,287.28,0,NON COMMERCIAL SUPPLIER
02-02-2024,Adults & Health,De Vere Care Partnership Ltd,Home Care - Private Contractors Payment,754.11,0,NON COMMERCIAL SUPPLIER
02-02-2024,Adults & Health,De Vere Care Partnership Ltd,Home Care - Private Contractors Payment,46.17,0,NON COMMERCIAL SUPPLIER
02-02-2024,Adults & Health,De Vere Care Partnership Ltd,Home Care - Private Contractors Payment,2082.78,0,NON COMMERCIAL SUPPLIER
02-02-2024,Adults & Health,De Vere Care Partnership Ltd,Home Care - Private Contractors Payment,179.55,0,NON COMMERCIAL SUPPLIER
02-02-2024,Adults & Health,De Vere Care Partnership Ltd,Reablement,251.37,0,NON COMMERCIAL SUPPLIER
02-02-2024,Adults & Health,De Vere Care Partnership Ltd,Home Care - Private Contractors Payment,107.73,0,NON COMMERCIAL SUPPLIER
02-02-2024,Adults & Health,De Vere Care Partnership Ltd,Reablement,107.73,0,NON COMMERCIAL SUPPLIER
02-02-2024,Adults & Health,De Vere Care Partnership Ltd,Home Care - Private Contractors Payment,20.52,0,NON COMMERCIAL SUPPLIER
02-02-2024,Adults & Health,De Vere Care Partnership Ltd,Home Care - Private Contractors Payment,61.56,0,NON COMMERCIAL SUPPLIER
02-02-2024,Adults & Health,De Vere Care Partnership Ltd,Home Care - Private Contractors Payment,82.08,0,NON COMMERCIAL SUPPLIER
02-02-2024,Adults & Health,De Vere Care Partnership Ltd,Home Care - Private Contractors Payment,30.78,0,NON COMMERCIAL SUPPLIER
02-02-2024,Adults & Health,De Vere Care Partnership Ltd,Home Care - Private Contractors Payment,179.55,0,NON COMMERCIAL SUPPLIER
02-02-2024,Adults & Health,De Vere Care Partnership Ltd,Reablement,82.08,0,NON COMMERCIAL SUPPLIER
02-02-2024,Adults & Health,De Vere Care Partnership Ltd,Home Care - Private Contractors Payment,15.39,0,NON COMMERCIAL SUPPLIER
02-02-2024,Adults & Health,De Vere Care Partnership Ltd,Home Care - Private Contractors Payment,395.01,0,NON COMMERCIAL SUPPLIER
02-02-2024,Adults & Health,De Vere Care Partnership Ltd,Daycare - Private Contractors Payment,20.52,0,NON COMMERCIAL SUPPLIER
02-02-2024,Adults & Health,De Vere Care Partnership Ltd,Home Care - Private Contractors Payment,466.83,0,NON COMMERCIAL SUPPLIER
02-02-2024,Adults & Health,De Vere Care Partnership Ltd,Home Care - Private Contractors Payment,20.52,0,NON COMMERCIAL SUPPLIER
02-02-2024,Adults & Health,De Vere Care Partnership Ltd,Home Care - Private Contractors Payment,143.64,0,NON COMMERCIAL SUPPLIER
02-02-2024,Adults & Health,De Vere Care Partnership Ltd,Home Care - Private Contractors Payment,41.04,0,NON COMMERCIAL SUPPLIER
02-02-2024,Adults & Health,De Vere Care Partnership Ltd,Home Care - Private Contractors Payment,251.37,0,NON COMMERCIAL SUPPLIER
02-02-2024,Adults & Health,De Vere Care Partnership Ltd,Home Care - Private Contractors Payment,287.28,0,NON COMMERCIAL SUPPLIER
02-02-2024,Adults & Health,De Vere Care Partnership Ltd,Home Care - Private Contractors Payment,251.37,0,NON COMMERCIAL SUPPLIER
02-02-2024,Adults & Health,De Vere Care Partnership Ltd,Home Care - Private Contractors Payment,323.19,0,NON COMMERCIAL SUPPLIER
02-02-2024,Adults & Health,De Vere Care Partnership Ltd,Home Care - Private Contractors Payment,107.73,0,NON COMMERCIAL SUPPLIER
02-02-2024,Adults & Health,De Vere Care Partnership Ltd,Home Care - Private Contractors Payment,20.52,0,NON COMMERCIAL SUPPLIER
02-02-2024,Adults & Health,De Vere Care Partnership Ltd,Home Care - Private Contractors Payment,1436.4,0,NON COMMERCIAL SUPPLIER
02-02-2024,Adults & Health,De Vere Care Partnership Ltd,Daycare - Private Contractors Payment,30.78,0,NON COMMERCIAL SUPPLIER
02-02-2024,Adults & Health,De Vere Care Partnership Ltd,Home Care - Private Contractors Payment,441.18,0,NON COMMERCIAL SUPPLIER
02-02-2024,Adults & Health,De Vere Care Partnership Ltd,Home Care - Private Contractors Payment,466.83,0,NON COMMERCIAL SUPPLIER
02-02-2024,Adults & Health,De Vere Care Partnership Ltd,Home Care - Private Contractors Payment,46.17,0,NON COMMERCIAL SUPPLIER
02-02-2024,Adults & Health,De Vere Care Partnership Ltd,Home Care - Private Contractors Payment,205.2,0,NON COMMERCIAL SUPPLIER
02-02-2024,Adults & Health,De Vere Care Partnership Ltd,Home Care - Private Contractors Payment,71.82,0,NON COMMERCIAL SUPPLIER
02-02-2024,Adults & Health,De Vere Care Partnership Ltd,Home Care - Private Contractors Payment,179.55,0,NON COMMERCIAL SUPPLIER
02-02-2024,Adults & Health,De Vere Care Partnership Ltd,Home Care - Private Contractors Payment,20.52,0,NON COMMERCIAL SUPPLIER
02-02-2024,Adults & Health,De Vere Care Partnership Ltd,Home Care - Private Contractors Payment,235.98,0,NON COMMERCIAL SUPPLIER
02-02-2024,Adults & Health,De Vere Care Partnership Ltd,Home Care - Private Contractors Payment,215.46,0,NON COMMERCIAL SUPPLIER
02-02-2024,Adults & Health,De Vere Care Partnership Ltd,Home Care - Private Contractors Payment,107.73,0,NON COMMERCIAL SUPPLIER
02-02-2024,Adults & Health,De Vere Care Partnership Ltd,Home Care - Private Contractors Payment,215.46,0,NON COMMERCIAL SUPPLIER
02-02-2024,Adults & Health,De Vere Care Partnership Ltd,Daycare - Private Contractors Payment,51.3,0,NON COMMERCIAL SUPPLIER
02-02-2024,Adults & Health,De Vere Care Partnership Ltd,Home Care - Private Contractors Payment,71.82,0,NON COMMERCIAL SUPPLIER
02-02-2024,Adults & Health,De Vere Care Partnership Ltd,Home Care - Private Contractors Payment,359.1,0,NON COMMERCIAL SUPPLIER
02-02-2024,Adults & Health,De Vere Care Partnership Ltd,Home Care - Private Contractors Payment,395.01,0,NON COMMERCIAL SUPPLIER
02-02-2024,Adults & Health,De Vere Care Partnership Ltd,Home Care - Private Contractors Payment,20.52,0,NON COMMERCIAL SUPPLIER
02-02-2024,Adults & Health,De Vere Care Partnership Ltd,Home Care - Private Contractors Payment,71.82,0,NON COMMERCIAL SUPPLIER
02-02-2024,Adults & Health,De Vere Care Partnership Ltd,Reablement,41.04,0,NON COMMERCIAL SUPPLIER
02-02-2024,Adults & Health,De Vere Care Partnership Ltd,Home Care - Private Contractors Payment,143.64,0,NON COMMERCIAL SUPPLIER
02-02-2024,Adults & Health,De Vere Care Partnership Ltd,Home Care - Private Contractors Payment,600.21,0,NON COMMERCIAL SUPPLIER
02-02-2024,Adults & Health,De Vere Care Partnership Ltd,Daycare - Private Contractors Payment,20.52,0,NON COMMERCIAL SUPPLIER
02-02-2024,Adults & Health,De Vere Care Partnership Ltd,Home Care - Private Contractors Payment,20.52,0,NON COMMERCIAL SUPPLIER
02-02-2024,Adults & Health,De Vere Care Partnership Ltd,Home Care - Private Contractors Payment,20.52,0,NON COMMERCIAL SUPPLIER
02-02-2024,Adults & Health,De Vere Care Partnership Ltd,Reablement,251.37,0,NON COMMERCIAL SUPPLIER
02-02-2024,Adults & Health,De Vere Care Partnership Ltd,Home Care - Private Contractors Payment,395.01,0,NON COMMERCIAL SUPPLIER
02-02-2024,Adults & Health,De Vere Care Partnership Ltd,Home Care - Private Contractors Payment,287.28,0,NON COMMERCIAL SUPPLIER
02-02-2024,Adults & Health,De Vere Care Partnership Ltd,Reablement,230.85,0,NON COMMERCIAL SUPPLIER
02-02-2024,Adults & Health,De Vere Care Partnership Ltd,Home Care - Private Contractors Payment,179.55,0,NON COMMERCIAL SUPPLIER
02-02-2024,Adults & Health,De Vere Care Partnership Ltd,Home Care - Private Contractors Payment,395.01,0,NON COMMERCIAL SUPPLIER
02-02-2024,Adults & Health,De Vere Care Partnership Ltd,Home Care - Private Contractors Payment,323.19,0,NON COMMERCIAL SUPPLIER
02-02-2024,Adults & Health,De Vere Care Partnership Ltd,Home Care - Private Contractors Payment,20.52,0,NON COMMERCIAL SUPPLIER
02-02-2024,Adults & Health,De Vere Care Partnership Ltd,Home Care - Private Contractors Payment,30.78,0,NON COMMERCIAL SUPPLIER
02-02-2024,Adults & Health,De Vere Care Partnership Ltd,Home Care - Private Contractors Payment,251.37,0,NON COMMERCIAL SUPPLIER
02-02-2024,Adults & Health,De Vere Care Partnership Ltd,Home Care - Private Contractors Payment,46.17,0,NON COMMERCIAL SUPPLIER
02-02-2024,Adults & Health,De Vere Care Partnership Ltd,Home Care - Private Contractors Payment,153.9,0,NON COMMERCIAL SUPPLIER
02-02-2024,Adults & Health,De Vere Care Partnership Ltd,Home Care - Private Contractors Payment,107.73,0,NON COMMERCIAL SUPPLIER
02-02-2024,Adults & Health,De Vere Care Partnership Ltd,Home Care - Private Contractors Payment,323.19,0,NON COMMERCIAL SUPPLIER
02-02-2024,Adults & Health,De Vere Care Partnership Ltd,Reablement,56.43,0,NON COMMERCIAL SUPPLIER
02-02-2024,Adults & Health,De Vere Care Partnership Ltd,Home Care - Private Contractors Payment,30.78,0,NON COMMERCIAL SUPPLIER
02-02-2024,Adults & Health,De Vere Care Partnership Ltd,Home Care - Private Contractors Payment,82.08,0,NON COMMERCIAL SUPPLIER
02-02-2024,Adults & Health,De Vere Care Partnership Ltd,Home Care - Private Contractors Payment,610.47,0,NON COMMERCIAL SUPPLIER
02-02-2024,Adults & Health,De Vere Care Partnership Ltd,Home Care - Private Contractors Payment,179.55,0,NON COMMERCIAL SUPPLIER
02-02-2024,Adults & Health,De Vere Care Partnership Ltd,Home Care - Private Contractors Payment,179.55,0,NON COMMERCIAL SUPPLIER
02-02-2024,Adults & Health,De Vere Care Partnership Ltd,Home Care - Private Contractors Payment,395.01,0,NON COMMERCIAL SUPPLIER
02-02-2024,Adults & Health,De Vere Care Partnership Ltd,Home Care - Private Contractors Payment,107.73,0,NON COMMERCIAL SUPPLIER
02-02-2024,Adults & Health,De Vere Care Partnership Ltd,Home Care - Private Contractors Payment,2082.78,0,NON COMMERCIAL SUPPLIER
02-02-2024,Adults & Health,De Vere Care Partnership Ltd,Daycare - Private Contractors Payment,30.78,0,NON COMMERCIAL SUPPLIER
02-02-2024,Adults & Health,De Vere Care Partnership Ltd,Home Care - Private Contractors Payment,323.19,0,NON COMMERCIAL SUPPLIER
02-02-2024,Adults & Health,De Vere Care Partnership Ltd,Home Care - Private Contractors Payment,466.83,0,NON COMMERCIAL SUPPLIER
02-02-2024,Adults & Health,De Vere Care Partnership Ltd,Respite Care - Private Contractors Payment,102.6,0,NON COMMERCIAL SUPPLIER
02-02-2024,Adults & Health,De Vere Care Partnership Ltd,Home Care - Private Contractors Payment,143.64,0,NON COMMERCIAL SUPPLIER
02-02-2024,Adults & Health,De Vere Care Partnership Ltd,Home Care - Private Contractors Payment,107.73,0,NON COMMERCIAL SUPPLIER
02-02-2024,Adults & Health,De Vere Care Partnership Ltd,Home Care - Private Contractors Payment,266.76,0,NON COMMERCIAL SUPPLIER
02-02-2024,Adults & Health,De Vere Care Partnership Ltd,Home Care - Private Contractors Payment,143.64,0,NON COMMERCIAL SUPPLIER
02-02-2024,Adults & Health,De Vere Care Partnership Ltd,Home Care - Private Contractors Payment,215.46,0,NON COMMERCIAL SUPPLIER
02-02-2024,Adults & Health,De Vere Care Partnership Ltd,Reablement,107.73,0,NON COMMERCIAL SUPPLIER
02-02-2024,Adults & Health,De Vere Care Partnership Ltd,Daycare - Private Contractors Payment,41.04,0,NON COMMERCIAL SUPPLIER
02-02-2024,Adults & Health,De Vere Care Partnership Ltd,Home Care - Private Contractors Payment,20.52,0,NON COMMERCIAL SUPPLIER
02-02-2024,Adults & Health,De Vere Care Partnership Ltd,Home Care - Private Contractors Payment,251.37,0,NON COMMERCIAL SUPPLIER
02-02-2024,Adults & Health,De Vere Care Partnership Ltd,Reablement,251.37,0,NON COMMERCIAL SUPPLIER
02-02-2024,Adults & Health,De Vere Care Partnership Ltd,Daycare - Private Contractors Payment,82.08,0,NON COMMERCIAL SUPPLIER
02-02-2024,Adults & Health,De Vere Care Partnership Ltd,Home Care - Private Contractors Payment,395.01,0,NON COMMERCIAL SUPPLIER
02-02-2024,Adults & Health,De Vere Care Partnership Ltd,Daycare - Private Contractors Payment,20.52,0,NON COMMERCIAL SUPPLIER
02-02-2024,Adults & Health,De Vere Care Partnership Ltd,Home Care - Private Contractors Payment,143.64,0,NON COMMERCIAL SUPPLIER
02-02-2024,Adults & Health,De Vere Care Partnership Ltd,Home Care - Private Contractors Payment,71.82,0,NON COMMERCIAL SUPPLIER
02-02-2024,Adults & Health,De Vere Care Partnership Ltd,Home Care - Private Contractors Payment,251.37,0,NON COMMERCIAL SUPPLIER
02-02-2024,Adults & Health,De Vere Care Partnership Ltd,Home Care - Private Contractors Payment,20.52,0,NON COMMERCIAL SUPPLIER
02-02-2024,Adults & Health,De Vere Care Partnership Ltd,Home Care - Private Contractors Payment,71.82,0,NON COMMERCIAL SUPPLIER
02-02-2024,Adults & Health,De Vere Care Partnership Ltd,Home Care - Private Contractors Payment,82.08,0,NON COMMERCIAL SUPPLIER
02-02-2024,Adults & Health,De Vere Care Partnership Ltd,Home Care - Private Contractors Payment,251.37,0,NON COMMERCIAL SUPPLIER
02-02-2024,Adults & Health,De Vere Care Partnership Ltd,Home Care - Private Contractors Payment,287.28,0,NON COMMERCIAL SUPPLIER
02-02-2024,Adults & Health,De Vere Care Partnership Ltd,Home Care - Private Contractors Payment,179.55,0,NON COMMERCIAL SUPPLIER
02-02-2024,Adults & Health,De Vere Care Partnership Ltd,Home Care - Private Contractors Payment,323.19,0,NON COMMERCIAL SUPPLIER
02-02-2024,Adults & Health,De Vere Care Partnership Ltd,Home Care - Private Contractors Payment,71.82,0,NON COMMERCIAL SUPPLIER
02-02-2024,Adults & Health,De Vere Care Partnership Ltd,Home Care - Private Contractors Payment,430.92,0,NON COMMERCIAL SUPPLIER
02-02-2024,Adults & Health,De Vere Care Partnership Ltd,Daycare - Private Contractors Payment,82.08,0,NON COMMERCIAL SUPPLIER
02-02-2024,Adults & Health,De Vere Care Partnership Ltd,Home Care - Private Contractors Payment,477.09,0,NON COMMERCIAL SUPPLIER
02-02-2024,Adults & Health,De Vere Care Partnership Ltd,Home Care - Private Contractors Payment,128.25,0,NON COMMERCIAL SUPPLIER
02-02-2024,Adults & Health,De Vere Care Partnership Ltd,Home Care - Private Contractors Payment,215.46,0,NON COMMERCIAL SUPPLIER
02-02-2024,Adults & Health,De Vere Care Partnership Ltd,Home Care - Private Contractors Payment,610.47,0,NON COMMERCIAL SUPPLIER
02-02-2024,Adults & Health,De Vere Care Partnership Ltd,Home Care - Private Contractors Payment,215.46,0,NON COMMERCIAL SUPPLIER
02-02-2024,Adults & Health,De Vere Care Partnership Ltd,Home Care - Private Contractors Payment,71.82,0,NON COMMERCIAL SUPPLIER
02-02-2024,Adults & Health,De Vere Care Partnership Ltd,Home Care - Private Contractors Payment,179.55,0,NON COMMERCIAL SUPPLIER
02-02-2024,Adults & Health,De Vere Care Partnership Ltd,Home Care - Private Contractors Payment,251.37,0,NON COMMERCIAL SUPPLIER
02-02-2024,Adults & Health,De Vere Care Partnership Ltd,Home Care - Private Contractors Payment,395.01,0,NON COMMERCIAL SUPPLIER
02-02-2024,Adults & Health,De Vere Care Partnership Ltd,Home Care - Private Contractors Payment,143.64,0,NON COMMERCIAL SUPPLIER
02-02-2024,Adults & Health,De Vere Care Partnership Ltd,Daycare - Private Contractors Payment,20.52,0,NON COMMERCIAL SUPPLIER
02-02-2024,Adults & Health,De Vere Care Partnership Ltd,Home Care - Private Contractors Payment,215.46,0,NON COMMERCIAL SUPPLIER
02-02-2024,Adults & Health,De Vere Care Partnership Ltd,Home Care - Private Contractors Payment,1169.64,0,NON COMMERCIAL SUPPLIER
02-02-2024,Adults & Health,De Vere Care Partnership Ltd,Home Care - Private Contractors Payment,251.37,0,NON COMMERCIAL SUPPLIER
02-02-2024,Adults & Health,De Vere Care Partnership Ltd,Home Care - Private Contractors Payment,1795.5,0,NON COMMERCIAL SUPPLIER
02-02-2024,Adults & Health,De Vere Care Partnership Ltd,Daycare - Private Contractors Payment,41.04,0,NON COMMERCIAL SUPPLIER
02-02-2024,Adults & Health,De Vere Care Partnership Ltd,Home Care - Private Contractors Payment,292.41,0,NON COMMERCIAL SUPPLIER
02-02-2024,Adults & Health,De Vere Care Partnership Ltd,Home Care - Private Contractors Payment,251.37,0,NON COMMERCIAL SUPPLIER
02-02-2024,Adults & Health,De Vere Care Partnership Ltd,Home Care - Private Contractors Payment,143.64,0,NON COMMERCIAL SUPPLIER
02-02-2024,Adults & Health,De Vere Care Partnership Ltd,Home Care - Private Contractors Payment,287.28,0,NON COMMERCIAL SUPPLIER
02-02-2024,Adults & Health,De Vere Care Partnership Ltd,Home Care - Private Contractors Payment,179.55,0,NON COMMERCIAL SUPPLIER
02-02-2024,Adults & Health,De Vere Care Partnership Ltd,Home Care - Private Contractors Payment,215.46,0,NON COMMERCIAL SUPPLIER
02-02-2024,Adults & Health,De Vere Care Partnership Ltd,Daycare - Private Contractors Payment,82.08,0,NON COMMERCIAL SUPPLIER
02-02-2024,Adults & Health,De Vere Care Partnership Ltd,Home Care - Private Contractors Payment,107.73,0,NON COMMERCIAL SUPPLIER
02-02-2024,Adults & Health,De Vere Care Partnership Ltd,Home Care - Private Contractors Payment,287.28,0,NON COMMERCIAL SUPPLIER
02-02-2024,Adults & Health,De Vere Care Partnership Ltd,Home Care - Private Contractors Payment,20.52,0,NON COMMERCIAL SUPPLIER
02-02-2024,Adults & Health,De Vere Care Partnership Ltd,Reablement,41.04,0,NON COMMERCIAL SUPPLIER
02-02-2024,Adults & Health,De Vere Care Partnership Ltd,Home Care - Private Contractors Payment,71.82,0,NON COMMERCIAL SUPPLIER
02-02-2024,Adults & Health,De Vere Care Partnership Ltd,Home Care - Private Contractors Payment,395.01,0,NON COMMERCIAL SUPPLIER
02-02-2024,Adults & Health,De Vere Care Partnership Ltd,Home Care - Private Contractors Payment,128.25,0,NON COMMERCIAL SUPPLIER
02-02-2024,Adults & Health,De Vere Care Partnership Ltd,Home Care - Private Contractors Payment,477.09,0,NON COMMERCIAL SUPPLIER
02-02-2024,Adults & Health,De Vere Care Partnership Ltd,Home Care - Private Contractors Payment,138.51,0,NON COMMERCIAL SUPPLIER
02-02-2024,Adults & Health,De Vere Care Partnership Ltd,Home Care - Private Contractors Payment,30.78,0,NON COMMERCIAL SUPPLIER
02-02-2024,Adults & Health,De Vere Care Partnership Ltd,Home Care - Private Contractors Payment,251.37,0,NON COMMERCIAL SUPPLIER
02-02-2024,Adults & Health,De Vere Care Partnership Ltd,Home Care - Private Contractors Payment,30.78,0,NON COMMERCIAL SUPPLIER
02-02-2024,Adults & Health,De Vere Care Partnership Ltd,Home Care - Private Contractors Payment,215.46,0,NON COMMERCIAL SUPPLIER
02-02-2024,Adults & Health,De Vere Care Partnership Ltd,Home Care - Private Contractors Payment,20.52,0,NON COMMERCIAL SUPPLIER
02-02-2024,Adults & Health,De Vere Care Partnership Ltd,Home Care - Private Contractors Payment,179.55,0,NON COMMERCIAL SUPPLIER
02-02-2024,Adults & Health,De Vere Care Partnership Ltd,Home Care - Private Contractors Payment,82.08,0,NON COMMERCIAL SUPPLIER
02-02-2024,Adults & Health,De Vere Care Partnership Ltd,Home Care - Private Contractors Payment,71.82,0,NON COMMERCIAL SUPPLIER
02-02-2024,Adults & Health,De Vere Care Partnership Ltd,Home Care - Private Contractors Payment,179.55,0,NON COMMERCIAL SUPPLIER
02-02-2024,Adults & Health,De Vere Care Partnership Ltd,Home Care - Private Contractors Payment,215.46,0,NON COMMERCIAL SUPPLIER
02-02-2024,Adults & Health,De Vere Care Partnership Ltd,Home Care - Private Contractors Payment,215.46,0,NON COMMERCIAL SUPPLIER
02-02-2024,Adults & Health,De Vere Care Partnership Ltd,Home Care - Private Contractors Payment,20.52,0,NON COMMERCIAL SUPPLIER
02-02-2024,Adults & Health,De Vere Care Partnership Ltd,Home Care - Private Contractors Payment,107.73,0,NON COMMERCIAL SUPPLIER
02-02-2024,Adults & Health,De Vere Care Partnership Ltd,Home Care - Private Contractors Payment,251.37,0,NON COMMERCIAL SUPPLIER
02-02-2024,Adults & Health,De Vere Care Partnership Ltd,Home Care - Private Contractors Payment,71.82,0,NON COMMERCIAL SUPPLIER
02-02-2024,Adults & Health,De Vere Care Partnership Ltd,Home Care - Private Contractors Payment,20.52,0,NON COMMERCIAL SUPPLIER
02-02-2024,Adults & Health,De Vere Care Partnership Ltd,Home Care - Private Contractors Payment,430.92,0,NON COMMERCIAL SUPPLIER
02-02-2024,Adults & Health,De Vere Care Partnership Ltd,Home Care - Private Contractors Payment,20.52,0,NON COMMERCIAL SUPPLIER
02-02-2024,Adults & Health,De Vere Care Partnership Ltd,Home Care - Private Contractors Payment,41.04,0,NON COMMERCIAL SUPPLIER
02-02-2024,Adults & Health,De Vere Care Partnership Ltd,Home Care - Private Contractors Payment,51.3,0,NON COMMERCIAL SUPPLIER
02-02-2024,Adults & Health,De Vere Care Partnership Ltd,Home Care - Private Contractors Payment,251.37,0,NON COMMERCIAL SUPPLIER
02-02-2024,Adults & Health,De Vere Care Partnership Ltd,Home Care - Private Contractors Payment,20.52,0,NON COMMERCIAL SUPPLIER
02-02-2024,Adults & Health,De Vere Care Partnership Ltd,Home Care - Private Contractors Payment,251.37,0,NON COMMERCIAL SUPPLIER
02-02-2024,Adults & Health,De Vere Care Partnership Ltd,Daycare - Private Contractors Payment,82.08,0,NON COMMERCIAL SUPPLIER
02-02-2024,Adults & Health,De Vere Care Partnership Ltd,Home Care - Private Contractors Payment,215.46,0,NON COMMERCIAL SUPPLIER
02-02-2024,Adults & Health,De Vere Care Partnership Ltd,Home Care - Private Contractors Payment,35.91,0,NON COMMERCIAL SUPPLIER
02-02-2024,Adults & Health,De Vere Care Partnership Ltd,Home Care - Private Contractors Payment,41.04,0,NON COMMERCIAL SUPPLIER
02-02-2024,Adults & Health,De Vere Care Partnership Ltd,Daycare - Private Contractors Payment,20.52,0,NON COMMERCIAL SUPPLIER
02-02-2024,Adults & Health,De Vere Care Partnership Ltd,Home Care - Private Contractors Payment,251.37,0,NON COMMERCIAL SUPPLIER
02-02-2024,Adults & Health,De Vere Care Partnership Ltd,Home Care - Private Contractors Payment,861.84,0,NON COMMERCIAL SUPPLIER
02-02-2024,Adults & Health,De Vere Care Partnership Ltd,Reablement,107.73,0,NON COMMERCIAL SUPPLIER
02-02-2024,Adults & Health,De Vere Care Partnership Ltd,Home Care - Private Contractors Payment,61.56,0,NON COMMERCIAL SUPPLIER
02-02-2024,Adults & Health,De Vere Care Partnership Ltd,Daycare - Private Contractors Payment,82.08,0,NON COMMERCIAL SUPPLIER
02-02-2024,Adults & Health,De Vere Care Partnership Ltd,Home Care - Private Contractors Payment,107.73,0,NON COMMERCIAL SUPPLIER
02-02-2024,Adults & Health,De Vere Care Partnership Ltd,Reablement,41.04,0,NON COMMERCIAL SUPPLIER
02-02-2024,Adults & Health,De Vere Care Partnership Ltd,Home Care - Private Contractors Payment,754.11,0,NON COMMERCIAL SUPPLIER
02-02-2024,Adults & Health,De Vere Care Partnership Ltd,Home Care - Private Contractors Payment,610.47,0,NON COMMERCIAL SUPPLIER
02-02-2024,Adults & Health,De Vere Care Partnership Ltd,Home Care - Private Contractors Payment,20.52,0,NON COMMERCIAL SUPPLIER
02-02-2024,Adults & Health,De Vere Care Partnership Ltd,Home Care - Private Contractors Payment,20.52,0,NON COMMERCIAL SUPPLIER
02-02-2024,Adults & Health,De Vere Care Partnership Ltd,Home Care - Private Contractors Payment,41.04,0,NON COMMERCIAL SUPPLIER
02-02-2024,Adults & Health,De Vere Care Partnership Ltd,Home Care - Private Contractors Payment,107.73,0,NON COMMERCIAL SUPPLIER
02-02-2024,Adults & Health,De Vere Care Partnership Ltd,Home Care - Private Contractors Payment,107.73,0,NON COMMERCIAL SUPPLIER
02-02-2024,Adults & Health,De Vere Care Partnership Ltd,Home Care - Private Contractors Payment,466.83,0,NON COMMERCIAL SUPPLIER
02-02-2024,Adults & Health,De Vere Care Partnership Ltd,Home Care - Private Contractors Payment,502.74,0,NON COMMERCIAL SUPPLIER
02-02-2024,Adults & Health,De Vere Care Partnership Ltd,Daycare - Private Contractors Payment,30.78,0,NON COMMERCIAL SUPPLIER
02-02-2024,Adults & Health,De Vere Care Partnership Ltd,Home Care - Private Contractors Payment,718.2,0,NON COMMERCIAL SUPPLIER
02-02-2024,Adults & Health,De Vere Care Partnership Ltd,Home Care - Private Contractors Payment,71.82,0,NON COMMERCIAL SUPPLIER
02-02-2024,Adults & Health,De Vere Care Partnership Ltd,Home Care - Private Contractors Payment,143.64,0,NON COMMERCIAL SUPPLIER
02-02-2024,Adults & Health,De Vere Care Partnership Ltd,Daycare - Private Contractors Payment,41.04,0,NON COMMERCIAL SUPPLIER
02-02-2024,Adults & Health,De Vere Care Partnership Ltd,Home Care - Private Contractors Payment,20.52,0,NON COMMERCIAL SUPPLIER
02-02-2024,Adults & Health,De Vere Care Partnership Ltd,Reablement,30.78,0,NON COMMERCIAL SUPPLIER
02-02-2024,Adults & Health,De Vere Care Partnership Ltd,Daycare - Private Contractors Payment,41.04,0,NON COMMERCIAL SUPPLIER
02-02-2024,Adults & Health,De Vere Care Partnership Ltd,Home Care - Private Contractors Payment,359.1,0,NON COMMERCIAL SUPPLIER
02-02-2024,Adults & Health,De Vere Care Partnership Ltd,Home Care - Private Contractors Payment,179.55,0,NON COMMERCIAL SUPPLIER
02-02-2024,Adults & Health,De Vere Care Partnership Ltd,Home Care - Private Contractors Payment,215.46,0,NON COMMERCIAL SUPPLIER
02-02-2024,Adults & Health,De Vere Care Partnership Ltd,Home Care - Private Contractors Payment,71.82,0,NON COMMERCIAL SUPPLIER
02-02-2024,Adults & Health,De Vere Care Partnership Ltd,Home Care - Private Contractors Payment,323.19,0,NON COMMERCIAL SUPPLIER
02-02-2024,Adults & Health,De Vere Care Partnership Ltd,Home Care - Private Contractors Payment,143.64,0,NON COMMERCIAL SUPPLIER
02-02-2024,Adults & Health,De Vere Care Partnership Ltd,Home Care - Private Contractors Payment,107.73,0,NON COMMERCIAL SUPPLIER
02-02-2024,Adults & Health,De Vere Care Partnership Ltd,Home Care - Private Contractors Payment,20.52,0,NON COMMERCIAL SUPPLIER
02-02-2024,Adults & Health,De Vere Care Partnership Ltd,Home Care - Private Contractors Payment,20.52,0,NON COMMERCIAL SUPPLIER
02-02-2024,Adults & Health,De Vere Care Partnership Ltd,Home Care - Private Contractors Payment,143.64,0,NON COMMERCIAL SUPPLIER
02-02-2024,Adults & Health,De Vere Care Partnership Ltd,Home Care - Private Contractors Payment,30.78,0,NON COMMERCIAL SUPPLIER
02-02-2024,Adults & Health,De Vere Care Partnership Ltd,Home Care - Private Contractors Payment,107.73,0,NON COMMERCIAL SUPPLIER
02-02-2024,Adults & Health,De Vere Care Partnership Ltd,Reablement,71.82,0,NON COMMERCIAL SUPPLIER
02-02-2024,Adults & Health,De Vere Care Partnership Ltd,Home Care - Private Contractors Payment,41.04,0,NON COMMERCIAL SUPPLIER
02-02-2024,Adults & Health,De Vere Care Partnership Ltd,Home Care - Private Contractors Payment,697.68,0,NON COMMERCIAL SUPPLIER
02-02-2024,Adults & Health,De Vere Care Partnership Ltd,Home Care - Private Contractors Payment,20.52,0,NON COMMERCIAL SUPPLIER
02-02-2024,Adults & Health,De Vere Care Partnership Ltd,Home Care - Private Contractors Payment,251.37,0,NON COMMERCIAL SUPPLIER
02-02-2024,Adults & Health,De Vere Care Partnership Ltd,Home Care - Private Contractors Payment,430.92,0,NON COMMERCIAL SUPPLIER
02-02-2024,Adults & Health,De Vere Care Partnership Ltd,Home Care - Private Contractors Payment,430.92,0,NON COMMERCIAL SUPPLIER
02-02-2024,Adults & Health,De Vere Care Partnership Ltd,Reablement,20.52,0,NON COMMERCIAL SUPPLIER
02-02-2024,Adults & Health,De Vere Care Partnership Ltd,Home Care - Private Contractors Payment,128.25,0,NON COMMERCIAL SUPPLIER
02-02-2024,Adults & Health,De Vere Care Partnership Ltd,Home Care - Private Contractors Payment,861.84,0,NON COMMERCIAL SUPPLIER
02-02-2024,Adults & Health,De Vere Care Partnership Ltd,Home Care - Private Contractors Payment,107.73,0,NON COMMERCIAL SUPPLIER
02-02-2024,Adults & Health,De Vere Care Partnership Ltd,Home Care - Private Contractors Payment,1795.5,0,NON COMMERCIAL SUPPLIER
02-02-2024,Adults & Health,De Vere Care Partnership Ltd,Home Care - Private Contractors Payment,107.73,0,NON COMMERCIAL SUPPLIER
02-02-2024,Adults & Health,De Vere Care Partnership Ltd,Home Care - Private Contractors Payment,718.2,0,NON COMMERCIAL SUPPLIER
02-02-2024,Adults & Health,De Vere Care Partnership Ltd,Home Care - Private Contractors Payment,215.46,0,NON COMMERCIAL SUPPLIER
02-02-2024,Adults & Health,De Vere Care Partnership Ltd,Home Care - Private Contractors Payment,143.64,0,NON COMMERCIAL SUPPLIER
02-02-2024,Adults & Health,De Vere Care Partnership Ltd,Home Care - Private Contractors Payment,133.38,0,NON COMMERCIAL SUPPLIER
02-02-2024,Adults & Health,De Vere Care Partnership Ltd,Home Care - Private Contractors Payment,82.08,0,NON COMMERCIAL SUPPLIER
02-02-2024,Adults & Health,De Vere Care Partnership Ltd,Home Care - Private Contractors Payment,107.73,0,NON COMMERCIAL SUPPLIER
02-02-2024,Adults & Health,De Vere Care Partnership Ltd,Home Care - Private Contractors Payment,82.08,0,NON COMMERCIAL SUPPLIER
02-02-2024,Adults & Health,De Vere Care Partnership Ltd,Home Care - Private Contractors Payment,107.73,0,NON COMMERCIAL SUPPLIER
02-02-2024,Adults & Health,De Vere Care Partnership Ltd,Home Care - Private Contractors Payment,251.37,0,NON COMMERCIAL SUPPLIER
02-02-2024,Adults & Health,De Vere Care Partnership Ltd,Home Care - Private Contractors Payment,107.73,0,NON COMMERCIAL SUPPLIER
02-02-2024,Adults & Health,De Vere Care Partnership Ltd,Home Care - Private Contractors Payment,610.47,0,NON COMMERCIAL SUPPLIER
02-02-2024,Adults & Health,De Vere Care Partnership Ltd,Home Care - Private Contractors Payment,20.52,0,NON COMMERCIAL SUPPLIER
02-02-2024,Adults & Health,De Vere Care Partnership Ltd,Home Care - Private Contractors Payment,20.52,0,NON COMMERCIAL SUPPLIER
02-02-2024,Adults & Health,De Vere Care Partnership Ltd,Home Care - Private Contractors Payment,754.11,0,NON COMMERCIAL SUPPLIER
02-02-2024,Adults & Health,De Vere Care Partnership Ltd,Home Care - Private Contractors Payment,754.11,0,NON COMMERCIAL SUPPLIER
02-02-2024,Adults & Health,De Vere Care Partnership Ltd,Daycare - Private Contractors Payment,41.04,0,NON COMMERCIAL SUPPLIER
02-02-2024,Adults & Health,De Vere Care Partnership Ltd,Home Care - Private Contractors Payment,610.47,0,NON COMMERCIAL SUPPLIER
02-02-2024,Adults & Health,De Vere Care Partnership Ltd,Home Care - Private Contractors Payment,251.37,0,NON COMMERCIAL SUPPLIER
02-02-2024,Adults & Health,De Vere Care Partnership Ltd,Home Care - Private Contractors Payment,35.91,0,NON COMMERCIAL SUPPLIER
02-02-2024,Adults & Health,De Vere Care Partnership Ltd,Home Care - Private Contractors Payment,179.55,0,NON COMMERCIAL SUPPLIER
02-02-2024,Adults & Health,De Vere Care Partnership Ltd,Home Care - Private Contractors Payment,323.19,0,NON COMMERCIAL SUPPLIER
02-02-2024,Adults & Health,De Vere Care Partnership Ltd,Home Care - Private Contractors Payment,251.37,0,NON COMMERCIAL SUPPLIER
02-02-2024,Adults & Health,De Vere Care Partnership Ltd,Home Care - Private Contractors Payment,287.28,0,NON COMMERCIAL SUPPLIER
02-02-2024,Adults & Health,De Vere Care Partnership Ltd,Home Care - Private Contractors Payment,251.37,0,NON COMMERCIAL SUPPLIER
02-02-2024,Adults & Health,De Vere Care Partnership Ltd,Home Care - Private Contractors Payment,610.47,0,NON COMMERCIAL SUPPLIER
02-02-2024,Adults & Health,De Vere Care Partnership Ltd,Home Care - Private Contractors Payment,143.64,0,NON COMMERCIAL SUPPLIER
02-02-2024,Adults & Health,De Vere Care Partnership Ltd,Home Care - Private Contractors Payment,143.64,0,NON COMMERCIAL SUPPLIER
02-02-2024,Adults & Health,De Vere Care Partnership Ltd,Home Care - Private Contractors Payment,251.37,0,NON COMMERCIAL SUPPLIER
02-02-2024,Adults & Health,De Vere Care Partnership Ltd,Home Care - Private Contractors Payment,76.95,0,NON COMMERCIAL SUPPLIER
02-02-2024,Adults & Health,De Vere Care Partnership Ltd,Home Care - Private Contractors Payment,359.1,0,NON COMMERCIAL SUPPLIER
02-02-2024,Adults & Health,De Vere Care Partnership Ltd,Home Care - Private Contractors Payment,364.23,0,NON COMMERCIAL SUPPLIER
02-02-2024,Adults & Health,De Vere Care Partnership Ltd,Home Care - Private Contractors Payment,30.78,0,NON COMMERCIAL SUPPLIER
02-02-2024,Adults & Health,De Vere Care Partnership Ltd,Home Care - Private Contractors Payment,51.3,0,NON COMMERCIAL SUPPLIER
02-02-2024,Adults & Health,De Vere Care Partnership Ltd,Home Care - Private Contractors Payment,97.47,0,NON COMMERCIAL SUPPLIER
02-02-2024,Adults & Health,De Vere Care Partnership Ltd,Home Care - Private Contractors Payment,20.52,0,NON COMMERCIAL SUPPLIER
02-02-2024,Adults & Health,De Vere Care Partnership Ltd,Home Care - Private Contractors Payment,441.18,0,NON COMMERCIAL SUPPLIER
02-02-2024,Adults & Health,De Vere Care Partnership Ltd,Home Care - Private Contractors Payment,251.37,0,NON COMMERCIAL SUPPLIER
02-02-2024,Adults & Health,De Vere Care Partnership Ltd,Home Care - Private Contractors Payment,395.01,0,NON COMMERCIAL SUPPLIER
02-02-2024,Adults & Health,De Vere Care Partnership Ltd,Home Care - Private Contractors Payment,61.56,0,NON COMMERCIAL SUPPLIER
02-02-2024,Adults & Health,De Vere Care Partnership Ltd,Home Care - Private Contractors Payment,143.64,0,NON COMMERCIAL SUPPLIER
02-02-2024,Adults & Health,De Vere Care Partnership Ltd,Home Care - Private Contractors Payment,215.46,0,NON COMMERCIAL SUPPLIER
02-02-2024,Adults & Health,De Vere Care Partnership Ltd,Home Care - Private Contractors Payment,51.3,0,NON COMMERCIAL SUPPLIER
02-02-2024,Adults & Health,De Vere Care Partnership Ltd,Home Care - Private Contractors Payment,430.92,0,NON COMMERCIAL SUPPLIER
02-02-2024,Adults & Health,De Vere Care Partnership Ltd,Home Care - Private Contractors Payment,20.52,0,NON COMMERCIAL SUPPLIER
02-02-2024,Adults & Health,De Vere Care Partnership Ltd,Reablement,200.07,0,NON COMMERCIAL SUPPLIER
02-02-2024,Adults & Health,De Vere Care Partnership Ltd,Home Care - Private Contractors Payment,143.64,0,NON COMMERCIAL SUPPLIER
02-02-2024,Adults & Health,De Vere Care Partnership Ltd,Home Care - Private Contractors Payment,25.65,0,NON COMMERCIAL SUPPLIER
02-02-2024,Adults & Health,De Vere Care Partnership Ltd,Home Care - Private Contractors Payment,718.2,0,NON COMMERCIAL SUPPLIER
02-02-2024,Adults & Health,De Vere Care Partnership Ltd,Home Care - Private Contractors Payment,466.83,0,NON COMMERCIAL SUPPLIER
02-02-2024,Adults & Health,De Vere Care Partnership Ltd,Home Care - Private Contractors Payment,102.6,0,NON COMMERCIAL SUPPLIER
02-02-2024,Adults & Health,De Vere Care Partnership Ltd,Home Care - Private Contractors Payment,430.92,0,NON COMMERCIAL SUPPLIER
02-02-2024,Adults & Health,De Vere Care Partnership Ltd,Home Care - Private Contractors Payment,143.64,0,NON COMMERCIAL SUPPLIER
02-02-2024,Adults & Health,De Vere Care Partnership Ltd,Home Care - Private Contractors Payment,20.52,0,NON COMMERCIAL SUPPLIER
02-02-2024,Adults & Health,De Vere Care Partnership Ltd,Home Care - Private Contractors Payment,179.55,0,NON COMMERCIAL SUPPLIER
02-02-2024,Adults & Health,De Vere Care Partnership Ltd,Home Care - Private Contractors Payment,610.47,0,NON COMMERCIAL SUPPLIER
02-02-2024,Adults & Health,De Vere Care Partnership Ltd,Home Care - Private Contractors Payment,61.56,0,NON COMMERCIAL SUPPLIER
02-02-2024,Adults & Health,De Vere Care Partnership Ltd,Home Care - Private Contractors Payment,30.78,0,NON COMMERCIAL SUPPLIER
02-02-2024,Adults & Health,De Vere Care Partnership Ltd,Home Care - Private Contractors Payment,20.52,0,NON COMMERCIAL SUPPLIER
02-02-2024,Adults & Health,De Vere Care Partnership Ltd,Home Care - Private Contractors Payment,107.73,0,NON COMMERCIAL SUPPLIER
02-02-2024,Adults & Health,De Vere Care Partnership Ltd,Home Care - Private Contractors Payment,102.6,0,NON COMMERCIAL SUPPLIER
02-02-2024,Adults & Health,De Vere Care Partnership Ltd,Home Care - Private Contractors Payment,107.73,0,NON COMMERCIAL SUPPLIER
02-02-2024,Adults & Health,De Vere Care Partnership Ltd,Home Care - Private Contractors Payment,251.37,0,NON COMMERCIAL SUPPLIER
02-02-2024,Adults & Health,De Vere Care Partnership Ltd,Home Care - Private Contractors Payment,41.04,0,NON COMMERCIAL SUPPLIER
02-02-2024,Adults & Health,De Vere Care Partnership Ltd,Home Care - Private Contractors Payment,20.52,0,NON COMMERCIAL SUPPLIER
02-02-2024,Adults & Health,De Vere Care Partnership Ltd,Home Care - Private Contractors Payment,143.64,0,NON COMMERCIAL SUPPLIER
02-02-2024,Adults & Health,De Vere Care Partnership Ltd,Home Care - Private Contractors Payment,30.78,0,NON COMMERCIAL SUPPLIER
02-02-2024,Adults & Health,De Vere Care Partnership Ltd,Home Care - Private Contractors Payment,179.55,0,NON COMMERCIAL SUPPLIER
02-02-2024,Adults & Health,De Vere Care Partnership Ltd,Reablement,251.37,0,NON COMMERCIAL SUPPLIER
02-02-2024,Adults & Health,De Vere Care Partnership Ltd,Daycare - Private Contractors Payment,51.3,0,NON COMMERCIAL SUPPLIER
02-02-2024,Adults & Health,De Vere Care Partnership Ltd,Home Care - Private Contractors Payment,205.2,0,NON COMMERCIAL SUPPLIER
02-02-2024,Adults & Health,De Vere Care Partnership Ltd,Home Care - Private Contractors Payment,251.37,0,NON COMMERCIAL SUPPLIER
02-02-2024,Adults & Health,De Vere Care Partnership Ltd,Home Care - Private Contractors Payment,610.47,0,NON COMMERCIAL SUPPLIER
02-02-2024,Adults & Health,De Vere Care Partnership Ltd,Home Care - Private Contractors Payment,51.3,0,NON COMMERCIAL SUPPLIER
02-02-2024,Adults & Health,De Vere Care Partnership Ltd,Home Care - Private Contractors Payment,71.82,0,NON COMMERCIAL SUPPLIER
02-02-2024,Adults & Health,De Vere Care Partnership Ltd,Home Care - Private Contractors Payment,61.56,0,NON COMMERCIAL SUPPLIER
02-02-2024,Adults & Health,De Vere Care Partnership Ltd,Home Care - Private Contractors Payment,20.52,0,NON COMMERCIAL SUPPLIER
02-02-2024,Adults & Health,De Vere Care Partnership Ltd,Home Care - Private Contractors Payment,359.1,0,NON COMMERCIAL SUPPLIER
02-02-2024,Adults & Health,De Vere Care Partnership Ltd,Home Care - Private Contractors Payment,230.85,0,NON COMMERCIAL SUPPLIER
02-02-2024,Adults & Health,De Vere Care Partnership Ltd,Home Care - Private Contractors Payment,251.37,0,NON COMMERCIAL SUPPLIER
02-02-2024,Adults & Health,De Vere Care Partnership Ltd,Home Care - Private Contractors Payment,251.37,0,NON COMMERCIAL SUPPLIER
02-02-2024,Adults & Health,De Vere Care Partnership Ltd,Home Care - Private Contractors Payment,107.73,0,NON COMMERCIAL SUPPLIER
02-02-2024,Adults & Health,De Vere Care Partnership Ltd,Home Care - Private Contractors Payment,441.18,0,NON COMMERCIAL SUPPLIER
02-02-2024,Adults & Health,De Vere Care Partnership Ltd,Home Care - Private Contractors Payment,179.55,0,NON COMMERCIAL SUPPLIER
02-02-2024,Adults & Health,De Vere Care Partnership Ltd,Home Care - Private Contractors Payment,600.21,0,NON COMMERCIAL SUPPLIER
02-02-2024,Adults & Health,De Vere Care Partnership Ltd,Home Care - Private Contractors Payment,30.78,0,NON COMMERCIAL SUPPLIER
02-02-2024,Adults & Health,De Vere Care Partnership Ltd,Home Care - Private Contractors Payment,215.46,0,NON COMMERCIAL SUPPLIER
02-02-2024,Adults & Health,De Vere Care Partnership Ltd,Home Care - Private Contractors Payment,287.28,0,NON COMMERCIAL SUPPLIER
02-02-2024,Adults & Health,De Vere Care Partnership Ltd,Home Care - Private Contractors Payment,466.83,0,NON COMMERCIAL SUPPLIER
02-02-2024,Adults & Health,De Vere Care Partnership Ltd,Home Care - Private Contractors Payment,395.01,0,NON COMMERCIAL SUPPLIER
02-02-2024,Adults & Health,De Vere Care Partnership Ltd,Reablement,30.78,0,NON COMMERCIAL SUPPLIER
02-02-2024,Adults & Health,De Vere Care Partnership Ltd,Home Care - Private Contractors Payment,20.52,0,NON COMMERCIAL SUPPLIER
02-02-2024,Adults & Health,De Vere Care Partnership Ltd,Home Care - Private Contractors Payment,71.82,0,NON COMMERCIAL SUPPLIER
02-02-2024,Adults & Health,De Vere Care Partnership Ltd,Daycare - Private Contractors Payment,82.08,0,NON COMMERCIAL SUPPLIER
02-02-2024,Adults & Health,De Vere Care Partnership Ltd,Home Care - Private Contractors Payment,251.37,0,NON COMMERCIAL SUPPLIER
02-02-2024,Adults & Health,De Vere Care Partnership Ltd,Home Care - Private Contractors Payment,143.64,0,NON COMMERCIAL SUPPLIER
02-02-2024,Adults & Health,De Vere Care Partnership Ltd,Home Care - Private Contractors Payment,323.19,0,NON COMMERCIAL SUPPLIER
02-02-2024,Adults & Health,De Vere Care Partnership Ltd,Home Care - Private Contractors Payment,143.64,0,NON COMMERCIAL SUPPLIER
02-02-2024,Adults & Health,De Vere Care Partnership Ltd,Home Care - Private Contractors Payment,15.39,0,NON COMMERCIAL SUPPLIER
02-02-2024,Adults & Health,De Vere Care Partnership Ltd,Reablement,251.37,0,NON COMMERCIAL SUPPLIER
02-02-2024,Adults & Health,De Vere Care Partnership Ltd,Reablement,71.82,0,NON COMMERCIAL SUPPLIER
02-02-2024,Adults & Health,De Vere Care Partnership Ltd,Home Care - Private Contractors Payment,251.37,0,NON COMMERCIAL SUPPLIER
02-02-2024,Adults & Health,De Vere Care Partnership Ltd,Reablement,143.64,0,NON COMMERCIAL SUPPLIER
02-02-2024,Adults & Health,De Vere Care Partnership Ltd,Home Care - Private Contractors Payment,179.55,0,NON COMMERCIAL SUPPLIER
02-02-2024,Adults & Health,De Vere Care Partnership Ltd,Daycare - Private Contractors Payment,102.6,0,NON COMMERCIAL SUPPLIER
02-02-2024,Adults & Health,De Vere Care Partnership Ltd,Home Care - Private Contractors Payment,395.01,0,NON COMMERCIAL SUPPLIER
02-02-2024,Adults & Health,De Vere Care Partnership Ltd,Home Care - Private Contractors Payment,215.46,0,NON COMMERCIAL SUPPLIER
02-02-2024,Adults & Health,De Vere Care Partnership Ltd,Daycare - Private Contractors Payment,20.52,0,NON COMMERCIAL SUPPLIER
02-02-2024,Adults & Health,De Vere Care Partnership Ltd,Home Care - Private Contractors Payment,287.28,0,NON COMMERCIAL SUPPLIER
02-02-2024,Adults & Health,De Vere Care Partnership Ltd,Home Care - Private Contractors Payment,179.55,0,NON COMMERCIAL SUPPLIER
02-02-2024,Adults & Health,De Vere Care Partnership Ltd,Home Care - Private Contractors Payment,287.28,0,NON COMMERCIAL SUPPLIER
02-02-2024,Adults & Health,De Vere Care Partnership Ltd,Home Care - Private Contractors Payment,861.84,0,NON COMMERCIAL SUPPLIER
02-02-2024,Adults & Health,De Vere Care Partnership Ltd,Home Care - Private Contractors Payment,107.73,0,NON COMMERCIAL SUPPLIER
02-02-2024,Adults & Health,De Vere Care Partnership Ltd,Home Care - Private Contractors Payment,143.64,0,NON COMMERCIAL SUPPLIER
02-02-2024,Adults & Health,De Vere Care Partnership Ltd,Home Care - Private Contractors Payment,230.85,0,NON COMMERCIAL SUPPLIER
02-02-2024,Adults & Health,De Vere Care Partnership Ltd,Home Care - Private Contractors Payment,20.52,0,NON COMMERCIAL SUPPLIER
02-02-2024,Adults & Health,De Vere Care Partnership Ltd,Reablement,30.78,0,NON COMMERCIAL SUPPLIER
02-02-2024,Adults & Health,De Vere Care Partnership Ltd,Home Care - Private Contractors Payment,1795.5,0,NON COMMERCIAL SUPPLIER
02-02-2024,Adults & Health,De Vere Care Partnership Ltd,Home Care - Private Contractors Payment,251.37,0,NON COMMERCIAL SUPPLIER
02-02-2024,Adults & Health,De Vere Care Partnership Ltd,Home Care - Private Contractors Payment,82.08,0,NON COMMERCIAL SUPPLIER
02-02-2024,Adults & Health,De Vere Care Partnership Ltd,Home Care - Private Contractors Payment,179.55,0,NON COMMERCIAL SUPPLIER
02-02-2024,Adults & Health,De Vere Care Partnership Ltd,Home Care - Private Contractors Payment,430.92,0,NON COMMERCIAL SUPPLIER
02-02-2024,Adults & Health,De Vere Care Partnership Ltd,Home Care - Private Contractors Payment,107.73,0,NON COMMERCIAL SUPPLIER
02-02-2024,Adults & Health,De Vere Care Partnership Ltd,Daycare - Private Contractors Payment,82.08,0,NON COMMERCIAL SUPPLIER
02-02-2024,Adults & Health,De Vere Care Partnership Ltd,Daycare - Private Contractors Payment,41.04,0,NON COMMERCIAL SUPPLIER
02-02-2024,Adults & Health,De Vere Care Partnership Ltd,Home Care - Private Contractors Payment,20.52,0,NON COMMERCIAL SUPPLIER
02-02-2024,Adults & Health,De Vere Care Partnership Ltd,Home Care - Private Contractors Payment,143.64,0,NON COMMERCIAL SUPPLIER
02-02-2024,Adults & Health,De Vere Care Partnership Ltd,Home Care - Private Contractors Payment,718.2,0,NON COMMERCIAL SUPPLIER
02-02-2024,Adults & Health,De Vere Care Partnership Ltd,Home Care - Private Contractors Payment,61.56,0,NON COMMERCIAL SUPPLIER
02-02-2024,Adults & Health,De Vere Care Partnership Ltd,Home Care - Private Contractors Payment,389.88,0,NON COMMERCIAL SUPPLIER
02-02-2024,Adults & Health,De Vere Care Partnership Ltd,Home Care - Private Contractors Payment,215.46,0,NON COMMERCIAL SUPPLIER
02-02-2024,Adults & Health,De Vere Care Partnership Ltd,Home Care - Private Contractors Payment,153.9,0,NON COMMERCIAL SUPPLIER
02-02-2024,Adults & Health,De Vere Care Partnership Ltd,Reablement,323.19,0,NON COMMERCIAL SUPPLIER
02-02-2024,Adults & Health,De Vere Care Partnership Ltd,Daycare - Private Contractors Payment,41.04,0,NON COMMERCIAL SUPPLIER
02-02-2024,Adults & Health,De Vere Care Partnership Ltd,Home Care - Private Contractors Payment,107.73,0,NON COMMERCIAL SUPPLIER
02-02-2024,Adults & Health,De Vere Care Partnership Ltd,Home Care - Private Contractors Payment,466.83,0,NON COMMERCIAL SUPPLIER
02-02-2024,Adults & Health,De Vere Care Partnership Ltd,Home Care - Private Contractors Payment,251.37,0,NON COMMERCIAL SUPPLIER
02-02-2024,Adults & Health,De Vere Care Partnership Ltd,Home Care - Private Contractors Payment,107.73,0,NON COMMERCIAL SUPPLIER
02-02-2024,Adults & Health,De Vere Care Partnership Ltd,Home Care - Private Contractors Payment,71.82,0,NON COMMERCIAL SUPPLIER
02-02-2024,Adults & Health,De Vere Care Partnership Ltd,Home Care - Private Contractors Payment,754.11,0,NON COMMERCIAL SUPPLIER
02-02-2024,Adults & Health,De Vere Care Partnership Ltd,Home Care - Private Contractors Payment,194.94,0,NON COMMERCIAL SUPPLIER
02-02-2024,Adults & Health,De Vere Care Partnership Ltd,Home Care - Private Contractors Payment,20.52,0,NON COMMERCIAL SUPPLIER
02-02-2024,Adults & Health,De Vere Care Partnership Ltd,Home Care - Private Contractors Payment,107.73,0,NON COMMERCIAL SUPPLIER
02-02-2024,Adults & Health,De Vere Care Partnership Ltd,Home Care - Private Contractors Payment,20.52,0,NON COMMERCIAL SUPPLIER
02-02-2024,Adults & Health,De Vere Care Partnership Ltd,Home Care - Private Contractors Payment,266.76,0,NON COMMERCIAL SUPPLIER
02-02-2024,Adults & Health,De Vere Care Partnership Ltd,Daycare - Private Contractors Payment,30.78,0,NON COMMERCIAL SUPPLIER
02-02-2024,Adults & Health,De Vere Care Partnership Ltd,Home Care - Private Contractors Payment,71.82,0,NON COMMERCIAL SUPPLIER
02-02-2024,Adults & Health,De Vere Care Partnership Ltd,Home Care - Private Contractors Payment,287.28,0,NON COMMERCIAL SUPPLIER
02-02-2024,Adults & Health,De Vere Care Partnership Ltd,Home Care - Private Contractors Payment,20.52,0,NON COMMERCIAL SUPPLIER
02-02-2024,Adults & Health,De Vere Care Partnership Ltd,Home Care - Private Contractors Payment,107.73,0,NON COMMERCIAL SUPPLIER
02-02-2024,Adults & Health,De Vere Care Partnership Ltd,Home Care - Private Contractors Payment,143.64,0,NON COMMERCIAL SUPPLIER
02-02-2024,Adults & Health,De Vere Care Partnership Ltd,Daycare - Private Contractors Payment,82.08,0,NON COMMERCIAL SUPPLIER
02-02-2024,Adults & Health,De Vere Care Partnership Ltd,Home Care - Private Contractors Payment,466.83,0,NON COMMERCIAL SUPPLIER
02-02-2024,Adults & Health,De Vere Care Partnership Ltd,Home Care - Private Contractors Payment,251.37,0,NON COMMERCIAL SUPPLIER
02-02-2024,Adults & Health,De Vere Care Partnership Ltd,Home Care - Private Contractors Payment,143.64,0,NON COMMERCIAL SUPPLIER
02-02-2024,Adults & Health,De Vere Care Partnership Ltd,Home Care - Private Contractors Payment,107.73,0,NON COMMERCIAL SUPPLIER
02-02-2024,Adults & Health,De Vere Care Partnership Ltd,Home Care - Private Contractors Payment,107.73,0,NON COMMERCIAL SUPPLIER
02-02-2024,Adults & Health,De Vere Care Partnership Ltd,Home Care - Private Contractors Payment,251.37,0,NON COMMERCIAL SUPPLIER
02-02-2024,Adults & Health,De Vere Care Partnership Ltd,Home Care - Private Contractors Payment,179.55,0,NON COMMERCIAL SUPPLIER
02-02-2024,Adults & Health,De Vere Care Partnership Ltd,Home Care - Private Contractors Payment,1795.5,0,NON COMMERCIAL SUPPLIER
02-02-2024,Adults & Health,De Vere Care Partnership Ltd,Home Care - Private Contractors Payment,215.46,0,NON COMMERCIAL SUPPLIER
02-02-2024,Adults & Health,De Vere Care Partnership Ltd,Home Care - Private Contractors Payment,112.86,0,NON COMMERCIAL SUPPLIER
02-02-2024,Adults & Health,De Vere Care Partnership Ltd,Home Care - Private Contractors Payment,179.55,0,NON COMMERCIAL SUPPLIER
02-02-2024,Adults & Health,De Vere Care Partnership Ltd,Home Care - Private Contractors Payment,20.52,0,NON COMMERCIAL SUPPLIER
02-02-2024,Adults & Health,De Vere Care Partnership Ltd,Home Care - Private Contractors Payment,287.28,0,NON COMMERCIAL SUPPLIER
02-02-2024,Adults & Health,De Vere Care Partnership Ltd,Home Care - Private Contractors Payment,61.56,0,NON COMMERCIAL SUPPLIER
02-02-2024,Adults & Health,De Vere Care Partnership Ltd,Home Care - Private Contractors Payment,20.52,0,NON COMMERCIAL SUPPLIER
02-02-2024,Adults & Health,De Vere Care Partnership Ltd,Home Care - Private Contractors Payment,107.73,0,NON COMMERCIAL SUPPLIER
02-02-2024,Adults & Health,De Vere Care Partnership Ltd,Home Care - Private Contractors Payment,477.09,0,NON COMMERCIAL SUPPLIER
02-02-2024,Adults & Health,De Vere Care Partnership Ltd,Home Care - Private Contractors Payment,179.55,0,NON COMMERCIAL SUPPLIER
02-02-2024,Adults & Health,De Vere Care Partnership Ltd,Home Care - Private Contractors Payment,107.73,0,NON COMMERCIAL SUPPLIER
02-02-2024,Adults & Health,De Vere Care Partnership Ltd,Reablement,20.52,0,NON COMMERCIAL SUPPLIER
02-02-2024,Adults & Health,De Vere Care Partnership Ltd,Home Care - Private Contractors Payment,215.46,0,NON COMMERCIAL SUPPLIER
02-02-2024,Adults & Health,De Vere Care Partnership Ltd,Home Care - Private Contractors Payment,215.46,0,NON COMMERCIAL SUPPLIER
02-02-2024,Adults & Health,De Vere Care Partnership Ltd,Home Care - Private Contractors Payment,251.37,0,NON COMMERCIAL SUPPLIER
02-02-2024,Adults & Health,De Vere Care Partnership Ltd,Home Care - Private Contractors Payment,107.73,0,NON COMMERCIAL SUPPLIER
02-02-2024,Adults & Health,De Vere Care Partnership Ltd,Home Care - Private Contractors Payment,235.98,0,NON COMMERCIAL SUPPLIER
02-02-2024,Adults & Health,De Vere Care Partnership Ltd,Home Care - Private Contractors Payment,41.04,0,NON COMMERCIAL SUPPLIER
02-02-2024,Adults & Health,De Vere Care Partnership Ltd,Home Care - Private Contractors Payment,179.55,0,NON COMMERCIAL SUPPLIER
02-02-2024,Adults & Health,De Vere Care Partnership Ltd,Home Care - Private Contractors Payment,323.19,0,NON COMMERCIAL SUPPLIER
02-02-2024,Adults & Health,De Vere Care Partnership Ltd,Home Care - Private Contractors Payment,51.3,0,NON COMMERCIAL SUPPLIER
02-02-2024,Adults & Health,De Vere Care Partnership Ltd,Daycare - Private Contractors Payment,20.52,0,NON COMMERCIAL SUPPLIER
02-02-2024,Adults & Health,De Vere Care Partnership Ltd,Home Care - Private Contractors Payment,71.82,0,NON COMMERCIAL SUPPLIER
02-02-2024,Adults & Health,De Vere Care Partnership Ltd,Home Care - Private Contractors Payment,215.46,0,NON COMMERCIAL SUPPLIER
02-02-2024,Adults & Health,De Vere Care Partnership Ltd,Home Care - Private Contractors Payment,143.64,0,NON COMMERCIAL SUPPLIER
02-02-2024,Adults & Health,De Vere Care Partnership Ltd,Home Care - Private Contractors Payment,179.55,0,NON COMMERCIAL SUPPLIER
02-02-2024,Adults & Health,De Vere Care Partnership Ltd,Home Care - Private Contractors Payment,61.56,0,NON COMMERCIAL SUPPLIER
02-02-2024,Adults & Health,De Vere Care Partnership Ltd,Home Care - Private Contractors Payment,20.52,0,NON COMMERCIAL SUPPLIER
02-02-2024,Adults & Health,De Vere Care Partnership Ltd,Home Care - Private Contractors Payment,610.47,0,NON COMMERCIAL SUPPLIER
02-02-2024,Adults & Health,De Vere Care Partnership Ltd,Home Care - Private Contractors Payment,287.28,0,NON COMMERCIAL SUPPLIER
02-02-2024,Adults & Health,De Vere Care Partnership Ltd,Home Care - Private Contractors Payment,143.64,0,NON COMMERCIAL SUPPLIER
02-02-2024,Adults & Health,De Vere Care Partnership Ltd,Reablement,107.73,0,NON COMMERCIAL SUPPLIER
02-02-2024,Adults & Health,De Vere Care Partnership Ltd,Home Care - Private Contractors Payment,251.37,0,NON COMMERCIAL SUPPLIER
02-02-2024,Adults & Health,De Vere Care Partnership Ltd,Home Care - Private Contractors Payment,41.04,0,NON COMMERCIAL SUPPLIER
02-02-2024,Adults & Health,De Vere Care Partnership Ltd,Reablement,71.82,0,NON COMMERCIAL SUPPLIER
02-02-2024,Adults & Health,De Vere Care Partnership Ltd,Home Care - Private Contractors Payment,179.55,0,NON COMMERCIAL SUPPLIER
02-02-2024,Adults & Health,De Vere Care Partnership Ltd,Home Care - Private Contractors Payment,107.73,0,NON COMMERCIAL SUPPLIER
02-02-2024,Adults & Health,De Vere Care Partnership Ltd,Home Care - Private Contractors Payment,143.64,0,NON COMMERCIAL SUPPLIER
02-02-2024,Adults & Health,De Vere Care Partnership Ltd,Home Care - Private Contractors Payment,251.37,0,NON COMMERCIAL SUPPLIER
02-02-2024,Adults & Health,De Vere Care Partnership Ltd,Home Care - Private Contractors Payment,610.47,0,NON COMMERCIAL SUPPLIER
02-02-2024,Adults & Health,De Vere Care Partnership Ltd,Home Care - Private Contractors Payment,61.56,0,NON COMMERCIAL SUPPLIER
02-02-2024,Adults & Health,De Vere Care Partnership Ltd,Respite Care - Private Contractors Payment,102.6,0,NON COMMERCIAL SUPPLIER
02-02-2024,Adults & Health,De Vere Care Partnership Ltd,Home Care - Private Contractors Payment,251.37,0,NON COMMERCIAL SUPPLIER
02-02-2024,Adults & Health,De Vere Care Partnership Ltd,Home Care - Private Contractors Payment,251.37,0,NON COMMERCIAL SUPPLIER
02-02-2024,Adults & Health,De Vere Care Partnership Ltd,Home Care - Private Contractors Payment,179.55,0,NON COMMERCIAL SUPPLIER
02-02-2024,Adults & Health,De Vere Care Partnership Ltd,Daycare - Private Contractors Payment,82.08,0,NON COMMERCIAL SUPPLIER
02-02-2024,Adults & Health,De Vere Care Partnership Ltd,Reablement,107.73,0,NON COMMERCIAL SUPPLIER
02-02-2024,Adults & Health,De Vere Care Partnership Ltd,Home Care - Private Contractors Payment,466.83,0,NON COMMERCIAL SUPPLIER
02-02-2024,Adults & Health,De Vere Care Partnership Ltd,Daycare - Private Contractors Payment,30.78,0,NON COMMERCIAL SUPPLIER
02-02-2024,Adults & Health,De Vere Care Partnership Ltd,Daycare - Private Contractors Payment,30.78,0,NON COMMERCIAL SUPPLIER
02-02-2024,Adults & Health,De Vere Care Partnership Ltd,Home Care - Private Contractors Payment,41.04,0,NON COMMERCIAL SUPPLIER
02-02-2024,Adults & Health,De Vere Care Partnership Ltd,Reablement,179.55,0,NON COMMERCIAL SUPPLIER
02-02-2024,Adults & Health,De Vere Care Partnership Ltd,Daycare - Private Contractors Payment,164.16,0,NON COMMERCIAL SUPPLIER
02-02-2024,Adults & Health,De Vere Care Partnership Ltd,Daycare - Private Contractors Payment,20.52,0,NON COMMERCIAL SUPPLIER
02-02-2024,Adults & Health,De Vere Care Partnership Ltd,Home Care - Private Contractors Payment,215.46,0,NON COMMERCIAL SUPPLIER
02-02-2024,Adults & Health,De Vere Care Partnership Ltd,Home Care - Private Contractors Payment,107.73,0,NON COMMERCIAL SUPPLIER
02-02-2024,Adults & Health,De Vere Care Partnership Ltd,Home Care - Private Contractors Payment,359.1,0,NON COMMERCIAL SUPPLIER
02-02-2024,Adults & Health,De Vere Care Partnership Ltd,Home Care - Private Contractors Payment,30.78,0,NON COMMERCIAL SUPPLIER
02-02-2024,Adults & Health,De Vere Care Partnership Ltd,Home Care - Private Contractors Payment,41.04,0,NON COMMERCIAL SUPPLIER
02-02-2024,Adults & Health,De Vere Care Partnership Ltd,Home Care - Private Contractors Payment,395.01,0,NON COMMERCIAL SUPPLIER
02-02-2024,Adults & Health,De Vere Care Partnership Ltd,Home Care - Private Contractors Payment,61.56,0,NON COMMERCIAL SUPPLIER
02-02-2024,Adults & Health,De Vere Care Partnership Ltd,Home Care - Private Contractors Payment,20.52,0,NON COMMERCIAL SUPPLIER
02-02-2024,Adults & Health,De Vere Care Partnership Ltd,Home Care - Private Contractors Payment,143.64,0,NON COMMERCIAL SUPPLIER
02-02-2024,Adults & Health,De Vere Care Partnership Ltd,Home Care - Private Contractors Payment,20.52,0,NON COMMERCIAL SUPPLIER
02-02-2024,Adults & Health,De Vere Care Partnership Ltd,Home Care - Private Contractors Payment,251.37,0,NON COMMERCIAL SUPPLIER
02-02-2024,Adults & Health,De Vere Care Partnership Ltd,Home Care - Private Contractors Payment,266.76,0,NON COMMERCIAL SUPPLIER
02-02-2024,Adults & Health,De Vere Care Partnership Ltd,Daycare - Private Contractors Payment,102.6,0,NON COMMERCIAL SUPPLIER
02-02-2024,Adults & Health,De Vere Care Partnership Ltd,Home Care - Private Contractors Payment,107.73,0,NON COMMERCIAL SUPPLIER
02-02-2024,Adults & Health,De Vere Care Partnership Ltd,Home Care - Private Contractors Payment,287.28,0,NON COMMERCIAL SUPPLIER
02-02-2024,Adults & Health,De Vere Care Partnership Ltd,Home Care - Private Contractors Payment,143.64,0,NON COMMERCIAL SUPPLIER
02-02-2024,Adults & Health,De Vere Care Partnership Ltd,Home Care - Private Contractors Payment,754.11,0,NON COMMERCIAL SUPPLIER
02-02-2024,Adults & Health,De Vere Care Partnership Ltd,Home Care - Private Contractors Payment,682.29,0,NON COMMERCIAL SUPPLIER
02-02-2024,Adults & Health,De Vere Care Partnership Ltd,Home Care - Private Contractors Payment,20.52,0,NON COMMERCIAL SUPPLIER
02-02-2024,Adults & Health,De Vere Care Partnership Ltd,Home Care - Private Contractors Payment,266.76,0,NON COMMERCIAL SUPPLIER
02-02-2024,Adults & Health,De Vere Care Partnership Ltd,Home Care - Private Contractors Payment,61.56,0,NON COMMERCIAL SUPPLIER
02-02-2024,Adults & Health,De Vere Care Partnership Ltd,Home Care - Private Contractors Payment,430.92,0,NON COMMERCIAL SUPPLIER
02-02-2024,Adults & Health,De Vere Care Partnership Ltd,Home Care - Private Contractors Payment,395.01,0,NON COMMERCIAL SUPPLIER
02-02-2024,Adults & Health,De Vere Care Partnership Ltd,Home Care - Private Contractors Payment,71.82,0,NON COMMERCIAL SUPPLIER
02-02-2024,Adults & Health,De Vere Care Partnership Ltd,Home Care - Private Contractors Payment,502.74,0,NON COMMERCIAL SUPPLIER
02-02-2024,Adults & Health,De Vere Care Partnership Ltd,Home Care - Private Contractors Payment,41.04,0,NON COMMERCIAL SUPPLIER
02-02-2024,Adults & Health,De Vere Care Partnership Ltd,Home Care - Private Contractors Payment,143.64,0,NON COMMERCIAL SUPPLIER
02-02-2024,Adults & Health,De Vere Care Partnership Ltd,Home Care - Private Contractors Payment,107.73,0,NON COMMERCIAL SUPPLIER
02-02-2024,Adults & Health,De Vere Care Partnership Ltd,Daycare - Private Contractors Payment,41.04,0,NON COMMERCIAL SUPPLIER
02-02-2024,Adults & Health,De Vere Care Partnership Ltd,Home Care - Private Contractors Payment,143.64,0,NON COMMERCIAL SUPPLIER
02-02-2024,Adults & Health,De Vere Care Partnership Ltd,Home Care - Private Contractors Payment,20.52,0,NON COMMERCIAL SUPPLIER
02-02-2024,Adults & Health,De Vere Care Partnership Ltd,Home Care - Private Contractors Payment,164.16,0,NON COMMERCIAL SUPPLIER
02-02-2024,Adults & Health,De Vere Care Partnership Ltd,Home Care - Private Contractors Payment,323.19,0,NON COMMERCIAL SUPPLIER
02-02-2024,Adults & Health,De Vere Care Partnership Ltd,Home Care - Private Contractors Payment,251.37,0,NON COMMERCIAL SUPPLIER
02-02-2024,Adults & Health,De Vere Care Partnership Ltd,Home Care - Private Contractors Payment,82.08,0,NON COMMERCIAL SUPPLIER
02-02-2024,Adults & Health,De Vere Care Partnership Ltd,Home Care - Private Contractors Payment,323.19,0,NON COMMERCIAL SUPPLIER
02-02-2024,Adults & Health,De Vere Care Partnership Ltd,Home Care - Private Contractors Payment,107.73,0,NON COMMERCIAL SUPPLIER
02-02-2024,Adults & Health,De Vere Care Partnership Ltd,Home Care - Private Contractors Payment,20.52,0,NON COMMERCIAL SUPPLIER
02-02-2024,Adults & Health,De Vere Care Partnership Ltd,Home Care - Private Contractors Payment,71.82,0,NON COMMERCIAL SUPPLIER
02-02-2024,Adults & Health,De Vere Care Partnership Ltd,Home Care - Private Contractors Payment,30.78,0,NON COMMERCIAL SUPPLIER
02-02-2024,Adults & Health,De Vere Care Partnership Ltd,Reablement,20.52,0,NON COMMERCIAL SUPPLIER
02-02-2024,Adults & Health,De Vere Care Partnership Ltd,Home Care - Private Contractors Payment,466.83,0,NON COMMERCIAL SUPPLIER
02-02-2024,Adults & Health,De Vere Care Partnership Ltd,Reablement,107.73,0,NON COMMERCIAL SUPPLIER
02-02-2024,Adults & Health,De Vere Care Partnership Ltd,Home Care - Private Contractors Payment,107.73,0,NON COMMERCIAL SUPPLIER
02-02-2024,Adults & Health,De Vere Care Partnership Ltd,Home Care - Private Contractors Payment,184.68,0,NON COMMERCIAL SUPPLIER
02-02-2024,Adults & Health,De Vere Care Partnership Ltd,Home Care - Private Contractors Payment,20.52,0,NON COMMERCIAL SUPPLIER
02-02-2024,Adults & Health,De Vere Care Partnership Ltd,Home Care - Private Contractors Payment,20.52,0,NON COMMERCIAL SUPPLIER
02-02-2024,Adults & Health,De Vere Care Partnership Ltd,Home Care - Private Contractors Payment,251.37,0,NON COMMERCIAL SUPPLIER
02-02-2024,Adults & Health,De Vere Care Partnership Ltd,Home Care - Private Contractors Payment,61.56,0,NON COMMERCIAL SUPPLIER
02-02-2024,Adults & Health,De Vere Care Partnership Ltd,Home Care - Private Contractors Payment,441.18,0,NON COMMERCIAL SUPPLIER
02-02-2024,Adults & Health,De Vere Care Partnership Ltd,Home Care - Private Contractors Payment,143.64,0,NON COMMERCIAL SUPPLIER
02-02-2024,Adults & Health,De Vere Care Partnership Ltd,Home Care - Private Contractors Payment,2082.78,0,NON COMMERCIAL SUPPLIER
02-02-2024,Adults & Health,De Vere Care Partnership Ltd,Home Care - Private Contractors Payment,251.37,0,NON COMMERCIAL SUPPLIER
02-02-2024,Adults & Health,De Vere Care Partnership Ltd,Home Care - Private Contractors Payment,574.56,0,NON COMMERCIAL SUPPLIER
02-02-2024,Adults & Health,De Vere Care Partnership Ltd,Home Care - Private Contractors Payment,51.3,0,NON COMMERCIAL SUPPLIER
02-02-2024,Adults & Health,De Vere Care Partnership Ltd,Reablement,143.64,0,NON COMMERCIAL SUPPLIER
02-02-2024,Adults & Health,De Vere Care Partnership Ltd,Home Care - Private Contractors Payment,379.62,0,NON COMMERCIAL SUPPLIER
02-02-2024,Adults & Health,De Vere Care Partnership Ltd,Home Care - Private Contractors Payment,323.19,0,NON COMMERCIAL SUPPLIER
